{"text_format":"1","workbook":"xlsx","n_sheets":13,"sheets":["Bewertungen","Pflegegrad","Anleitung","Richtlinien","Haushalt","Außer Haus","M1","M2","M3","M4","M5","M6","Druckvorlage"],"not_rendered":{"charts":0,"images":0,"macros":1,"external_links":0,"defined_names":1,"comments":0,"pivot_tables":0},"unopened":[],"bounds":{"document_bytes":16777216,"sheet_cells":100000,"rows_first":2000,"rows_last":500,"rows_between":2000,"halvings":0,"cell_chars":16384,"cell_head_chars":4096},"cells_cut":0,"cells_raw":0,"read":"whole","date_system":"1900"}

{"sheet":"Bewertungen","index":0,"n_rows":104,"n_cols":16,"rows_kept":104,"cut":false,"hidden":false,"merged":[[95,3,95,6],[64,7,64,8],[0,3,0,6],[14,3,14,6],[29,3,29,6],[46,3,46,6],[68,3,68,6]]}
[null,"Hinweise","Beim Klicken auf hellblaue Felder vor den Kategorien und in Spalte M-Q erscheinen Erläuterungen aus den Begutachtungsrichtlinien in der Bearbeitungsleiste (über den Spalten).","Schwellenwerte (wenn erreicht, dann 1-4 Punkte bei \"Punkte Modul\")",null,null,null,"Gewichtungs-faktor\n10 %","Modul","Summe Punkte (Modul)","Punkte Modul (0-4)","gewichteter Punktwert Modul",null,"gewichteter Punktwert (alle Module)","Pflegegrad","Notizen"]
[null,null,null,{"$f":"'M1'!F2","v":2},{"$f":"'M1'!G2","v":4},{"$f":"'M1'!H2","v":6},{"$f":"'M1'!I2","v":10},{"$f":"'M1'!J2","v":2.5},1,{"$f":"'M1'!L2","v":0},{"$f":"'M1'!M2","v":0},{"$f":"'M1'!N2","v":0},null,{"$f":"'M1'!P2","v":0},{"$f":"'M1'!Q2","v":0}]
[null,null,"Module / Einschätzungskriterien","Bei jedem Unterpunkt höchstens eine Kategorie ankreuzen (Anklicken =",null,null,null,null,null,null,null,null,null,null,null," "]
[null,null,null," \"x\" eingeben) oder nichts ankreuzen (nichts ankreuzen = selbständig)",null,null,null,null,null,null,"Hinweise aus den Begutachtungsrichtlinien",null,null,null,null," "]
[null,"Die Einschätzung richtet sich ausschließlich danach, ob die Person in der Lage ist ohne personelle Unterstützung eine Körperhaltung einzunehmen/zu wechseln und sich fortzubewegen. Zu beurteilen sind hier lediglich Aspekte wie Körperkraft, Balance, Bewegungskoordination etc. und nicht die zielgerichtete Fortbewegung. Hier werden nicht die Folgen kognitiver Beeinträchtigungen auf Planung, Steuerung und Durchführung motorischer Handlungen abgebildet.","1. Mobilität","selbständig","überwiegend selbständig","überwiegend unselbständig","unselbständig",null,"Fehler-Hinweis","Punkte","selbständig","überwiegend selbständig","überwiegend unselbständig","unselbständig",null," "]
[null,"Einnehmen von verschiedenen Positionen im Bett, Drehen um die Längsachse, Aufrichten aus dem Liegen.","1.1 Positionswechsel im Bett",null,null,null,null,"jew. 0-3",{"$f":"IF(COUNTA(D6:G6)>1,\"Fehler!\",\"\")","v":""},{"$f":"'M1'!J7","v":0},"Selbständig ist auch eine Person, die ihre Position unter Nutzung von Hilfsmitteln (Aufrichter, Bettgitter, Strickleiter, elektrisch verstellbares Bett) allein verändern kann.","Die Person kann beispielsweise nach Anreichen eines Hilfsmittels oder Reichen der Hand ihre Lage im Bett verändern.","Die Person kann beim Positionswechsel nur wenig mithelfen, z. B. auf den Rücken rollen, am Bettgestell festhalten, Aufforderungen folgen wie z. B. „Bitte die Arme vor der Brust verschränken und den Kopf auf die Brust legen.“","Die Person kann sich beim Positionswechsel nicht oder nur minimal beteiligen.",null," "]
[null,"Sich auf einem Bett, Stuhl oder Sessel aufrecht halten.","1.2 Halten einer stabilen Sitzposition",null,null,null,null,"Punkte",{"$f":"IF(COUNTA(D7:G7)>1,\"Fehler!\",\"\")","v":""},{"$f":"'M1'!J12","v":0},"Selbständig ist eine Person auch dann, wenn sie beim Sitzen gelegentlich ihre Sitzposition korrigieren muss.","Die Person kann sich nur kurz, z. B. für die Dauer einer Mahlzeit oder eines Waschvorgangs selbständig in der Sitzposition halten, darüber hinaus benötigt sie aber personelle Unterstützung zur Positionskorrektur.","Die Person kann sich wegen eingeschränkter Rumpfkontrolle auch mit Rücken- und Seitenstütze nicht in aufrechter Position halten und benötigt auch während der Dauer einer Mahlzeit oder eines Waschvorgangs personelle Unterstützung zur Positionskorrektur.","Die Person kann sich nicht in Sitzposition halten. Bei fehlender Rumpf- und Kopfkontrolle kann die Person nur im Bett oder Lagerungsstuhl liegend gelagert werden.",null," "]
[null,"Von einer erhöhten Sitzfläche, Bettkante, Stuhl, Sessel, Bank, Toilette etc., aufstehen und sich auf einen Rollstuhl, Toilettenstuhl, Sessel o.ä. umsetzen","1.3 Umsetzen",null,null,null,null,null,{"$f":"IF(COUNTA(D8:G8)>1,\"Fehler!\",\"\")","v":""},{"$f":"'M1'!J17","v":0},"Selbständig ist jemand auch dann, wenn er keine Personenhilfe benötigt, aber ein Hilfsmittel oder einen anderen Gegenstand zum Festhalten oder Hochziehen (z.B. Griffstangen) benutzt oder sich auf Tisch/Armlehnen oder sonstigen Gegenständen abstützen muss, um aufzustehen. Als selbständig ist auch zu bewerten, wer zwar nicht stehen kann, aber sich mit Armkraft ohne personelle Hilfe umsetzen kann (z.B. Bett – Rollstuhl, Rollstuhl – Toilette)","Die Person kann aus eigener Kraft aufstehen oder sich umsetzen, wenn sie eine Hand oder einen Arm gereicht bekommt.","Die Pflegeperson muss beim Aufstehen/Umsetzen (erheblichen) Kraftaufwand aufbringen (hochziehen, halten, stützen, heben). Die beeinträchtigte Person hilft jedoch in geringem Maße mit, kann z.B. kurzzeitig stehen.","Die Person muss gehoben oder getragen werden, Mithilfe ist nicht möglich.",null," "]
[null,"Sich innerhalb einer Wohnung oder im Wohnbereich einer Einrichtung zwischen den Zimmern sicher bewegen. Als Anhaltsgröße für übliche Gehstrecken innerhalb einer Wohnung werden mindestens acht Meter festgelegt. Die Fähigkeiten zur räumlichen Orientierung und zum Treppensteigen sind unter Punkt F 4.2.2 bzw. Punkt F 4.1.5 zu berücksichtigen.","1.4 Fortbewegen innerhalb des Wohnbereichs",null,null,null,null,null,{"$f":"IF(COUNTA(D9:G9)>1,\"Fehler!\",\"\")","v":""},{"$f":"'M1'!J22","v":0},"Die Person kann sich ohne Hilfe durch andere Personen fortbewegen. Dies kann ggf. unter Nutzung von Hilfsmitteln, z. B. Rollator, Rollstuhl oder sonstigen Gegenständen, z. B. Stock oder Möbelstück geschehen.","Die Person kann die Aktivität überwiegend selbständig durchführen. Personelle Hilfe ist beispielsweise erforderlich im Sinne von Bereitstellen von Hilfsmitteln (z.B. Rollator oder Gehstock), Beobachtung aus Sicherheitsgründen oder gelegentlichem Stützen/Unterhaken.","Die Person kann nur wenige Schritte gehen oder sich mit dem Rollstuhl nur wenige Meter fortbewegen oder kann nur mit Stützung oder Festhalten einer Pflegeperson gehen. Die ausschließliche Fähigkeit der Fortbewegung durch Krabbeln oder Robben ist generell als „überwiegend unselbständig“ zu bewerten.","Die Person muss getragen oder vollständig im Rollstuhl geschoben werden",null," "]
[null,"Überwinden von Treppen zwischen zwei Etagen","1.5 Treppensteigen",null,null,null,null,null,{"$f":"IF(COUNTA(D10:G10)>1,\"Fehler!\",\"\")","v":""},{"$f":"'M1'!J27","v":0},"Die Person kann ohne Hilfe durch andere Personen  in aufrechter Position eine Treppe steigen.","Die Person kann die eine Treppe alleine steigen, benötigt aber Begleitung wegen eines Sturzrisikos.","Treppensteigen ist nur mit Stützen oder Festhalten der Person möglich.","Person muss getragen oder mit Hilfsmitteln transportiert werden, keine Eigenbeteiligung.",null," "]
[null,null,null,null,null,null,null,null,null,null,null,null,null,null,null," "]
[null,"Vollständiger Verlust der Greif-, Steh- und Gehfunktionen: Das Kriterium der „Gebrauchsunfähigkeit beider Arme und beider Beine“ umfasst nicht zwingend die Bewegungsunfähigkeit der Arme und Beine, die durch Lähmungen aller Extremitäten hervorgerufen werden kann. Ein vollständiger Verlust der Greif-, Steh- und Gehfunktion ist unabhängig von der Ursache zu bewerten. Dies kann z. B. auch bei Menschen im Wachkoma vorkommen oder durch hochgradige Kontrakturen, Versteifungen, hochgradigen Tremor und Rigor oder Athetose bedingt sein. Eine Gebrauchsunfähigkeit beider Arme und beider Beine liegt auch vor, wenn eine minimale Restbeweglichkeit der Arme noch vorhanden ist, z. B. die Person mit dem Ellenbogen noch den Joystick eines Rollstuhls bedienen kann, oder nur noch unkontrollierbare Greifreflexe bestehen.","1.6 Besondere Bedarfskonstellation: ","Bei dieser besonderen Bedarfskonstellation wird unabhängig",null,null,null,null,null,"Die Anleitung zu dieser Datei finden Sie im Arbeitsblatt \"Anleitung\"",null,null,null,null,null," "]
[null,null,"Gebrauchsunfähigkeit beider Arme und beider Beine","vom erreichten Gesamtpunktwert Pflegegrad 5 anerkannt!",null,null,null,null,null,"Klicken Sie unterhalb der Tabelle links auf den Reiter \"Anleitung\"",null,null,null,null,null," "]
[null,null,null,null,null,null,null,null,null,null,null,null,null,null,null," "]
[null,null,null,"Schwellenwerte (wenn erreicht, dann 1-4 Punkte bei \"Punkte Modul\")",null,null,null,"Gewichtung\n15 %","Modul","Summe Modul","Punkte Modul (0-4)","gewichtet Modul",null,"gewichtet Gesamt","Pflegegrad"," "]
[null,null,null,{"$f":"'M2'!F2","v":2},{"$f":"'M2'!G2","v":6},{"$f":"'M2'!H2","v":11},{"$f":"'M2'!I2","v":17},{"$f":"'M2'!J2","v":3.75},2,{"$f":"'M2'!L2","v":0},{"$f":"'M2'!M2","v":0},{"$f":"'M2'!N2","v":0},null,{"$f":"'M2'!P2","v":0},{"$f":"'M2'!Q2","v":0}," "]
[null,"Die Einschätzung bezieht sich bei den Merkmalen 4.2.1 bis 4.2.8 ausschließlich auf die kognitiven Funktionen und Aktivitäten. Zu beurteilen sind hier lediglich Aspekte wie Erkennen, Entscheiden oder Steuern etc. und nicht die motorische Umsetzung. Bei den Kriterien zur Kommunikation 4.2.9 bis 4.2.11 sind auch die Auswirkungen von Hör-, Sprech- oder Sprachstörungen zu berücksichtigen. Für diesen Bereich gilt eine ähnliche Graduierung wie im Falle der Selbständigkeit (vierstufige Skala). Der Unterschied liegt darin, dass hier keine Aktivität, sondern eine geistige Funktion beurteilt wird. Für die Bewertung ist unerheblich, ob ein zuvor selbständiger Erwachsener eine Fähigkeit verloren hat oder nie ausgebildet hat. Die Bewertungsskala umfasst folgende Ausprägungen: 0 = Fähigkeit vorhanden, unbeeinträchtigt (Die Fähigkeit ist (nahezu) vollständig vorhanden); 1 = Fähigkeit größtenteils vorhanden (Die Fähigkeit ist überwiegend (die meiste Zeit über, in den meisten Situationen), aber nicht durchgängig vorhanden. Die Person hat Schwierigkeiten, höhere oder komplexere Anforderungen zu bewältigen.); 2 = Fähigkeit in geringem Maße vorhanden (Die Fähigkeit ist stark beeinträchtigt, aber erkennbar vorhanden. Die Person hat häufig oder in vielen Situationen Schwierigkeiten. Sie kann nur geringe Anforderungen bewältigen. Es sind Ressourcen vorhanden.) 3 = Fähigkeit nicht vorhanden (Die Fähigkeit ist nicht oder nur in sehr geringem Maße (sehr selten) vorhanden.)","2. Kognitive und kommunikative Fähigkeiten","vorhanden/unbeeinträchtigt","größtenteils vorhanden","in geringem Maße vorhanden","nicht vorhanden",null,"Fehler-Hinweis","Punkte","vorhanden/unbeeinträchtigt","größtenteils vorhanden","in geringem Maße vorhanden","nicht vorhanden",null," "]
[null,"Fähigkeit, Personen aus dem näheren Umfeld wiederzuerkennen, d. h. Menschen, zu denen im Alltag regelmäßig ein direkter Kontakt besteht. Dazu gehören z. B. Familienmitglieder, Nachbarn aber auch Pflegekräfte eines ambulanten Dienstes oder einer stationären Pflegeeinrichtung.","2.1 Erkennen von Personen aus dem näheren Umfeld",null,null,null,null,"jew. 0-3",{"$f":"IF(COUNTA(D18:G18)>1,\"Fehler!\",\"\")","v":""},{"$f":"'M2'!J7","v":0},"Die Person erkennt andere Personen aus ihrem näheren Umfeld unmittelbar.","Die Person erkennt bekannte Personen beispielsweise erst nach einer längeren Zeit des Kontaktes in einem Gespräch oder sie hat Schwierigkeiten wenn auch nicht täglich, aber doch in regelmäßigen Abständen, vertraute Personen zu erkennen.","Die aus dem näheren Umfeld stammenden Personen werden nur selten erkannt oder die Fähigkeit hängt ggf. von der Tagesform ab, d. h. die Fähigkeit unterliegt im Zeitverlauf erheblichen Schwankungen.","Auch Familienmitglieder werden nicht oder nur ausnahmsweise erkannt.",null," "]
[null,"Fähigkeit, sich in der räumlichen Umgebung zurechtzufinden, andere Orte gezielt anzusteuern und zu wissen, wo man sich befindet.","2.2 Örtliche Orientierung",null,null,null,null,"Punkte",{"$f":"IF(COUNTA(D19:G19)>1,\"Fehler!\",\"\")","v":""},{"$f":"'M2'!J12","v":0},"Die Person weiß in welcher Stadt, auf welchem Stockwerk und ggf. in welcher Einrichtung sie sich befindet. Sie kennt sich in den regelmäßig genutzten Räumlichkeiten aus. Ein Verirren in den Räumlichkeiten der eigenen Wohnung oder unmittelbar im Wohnbereich einer Einrichtung kommt nicht vor und die Person findet sich auch in der näheren außerhäuslichen Umgebung zurecht. Sie weiß beispielsweise, wie sie zu benachbarten Geschäften, zu einer Bushaltestelle oder zu einer anderen nahe gelegenen Örtlichkeit gelangt.","Es bestehen Schwierigkeiten, sich in der außerhäuslichen Umgebung zu orientieren, beispielsweise nach Verlassen des Hauses wieder den Weg zurück zu finden. In den eigenen Wohnräumen existieren solche Schwierigkeiten hingegen nicht.","Die Person hat auch in einer gewohnten Wohnumgebung Schwierigkeiten sich zurechtzufinden. Regelmäßig genutzte Räumlichkeiten und Wege in der Wohnumgebung werden nicht immer erkannt.","Selbst in der eigenen Wohnumgebung ist die Person regelmäßig auf Unterstützung angewiesen, um sich zurechtzufinden.",null," "]
[null,"Die Fähigkeit, zeitliche Strukturen zu erkennen. Dazu gehören Uhrzeit, Tagesabschnitte (Vormittag, Nachmittag, Abend etc.), Jahreszeiten und die zeitliche Abfolge des eigenen Lebens. Aufschluss über die Fähigkeit zur zeitlichen Orientierung geben Antworten auf die Frage nach der Jahreszeit, dem Jahr, dem Wochentag, dem Monat oder der Tageszeit.","2.3 Zeitliche Orientierung",null,null,null,null,null,"",{"$f":"'M2'!J17","v":0},"Die zeitliche Orientierung ist ohne nennenswerte Beeinträchtigungen vorhanden.","Die Person ist die meiste Zeit über zeitlich orientiert, aber nicht durchgängig. Sie hat auch Schwierigkeiten, ohne äußere Orientierungshilfen (Uhr, Dunkelheit etc.) den Tagesabschnitt zu bestimmen","Die zeitliche Orientierung ist die meiste Zeit nur in Ansätzen vorhanden. Die Person ist auch unter Nutzung äußerer Orientierungshilfen zumeist nicht in der Lage, Tageszeiten zu erkennen, zu denen regelmäßig bestimmte Ereignisse stattfinden (z.B. Mittagessen).","Das Verständnis für zeitliche Strukturen und Abläufe ist kaum oder noch nicht vorhanden.",null," "]
[null,"Fähigkeit, sich an kurz und auch länger zurückliegende Ereignisse oder Beobachtungen zu erinnern: Dazu gehört, dass die Person z. B. weiß, was sie zum Frühstück gegessen hat oder mit welchen Tätigkeiten sie den Vormittag verbracht hat. Im Hinblick auf das Langzeitgedächtnis geht es bei Erwachsenen z. B. um die Kenntnis des Geburtsjahres, des Geburtsorts oder wichtiger Bestandteile des Lebensverlaufs wie Eheschließung und Berufstätigkeit.","2.4 Erinnern an wesentliche Ereignisse oder Beobachtungen",null,null,null,null,null,"",{"$f":"'M2'!J22","v":0},"Die Person kann über kurz zurückliegende Ereignisse Auskunft geben oder durch Handlungen und Gesten signalisieren, dass sie sich erinnert.","Die Person hat Schwierigkeiten, sich an manche kurz zurückliegende Ereignisse zu erinnern oder muss hierzu länger nachdenken, sie hat aber keine nennenswerten Probleme, sich an Ereignisse aus der eigenen Lebensgeschichte zu erinnern.","Die Person vergisst kurz zurückliegende Ereignisse häufig. Nicht alle, aber wichtige Ereignisse aus der eigenen Lebensgeschichte sind (noch) präsent.","Die Person ist nicht (oder nur selten) in der Lage, sich an Ereignisse, Dinge oder Personen aus der eigenen Lebensgeschichte zu erinnern.",null," "]
[null,"Fähigkeit, zielgerichtete Handlungen des Lebensalltags, die eine Abfolge von Teilschritten umfassen, zu steuern: Die Betonung liegt in diesem Fall auf dem Begriff Alltagshandlungen. Gemeint sind zielgerichtete Handlungen, die diese Person täglich oder nahezu täglich im Lebensalltag durchführt oder durchgeführt hat, wie z. B. das komplette Ankleiden, Kaffeekochen oder Tischdecken.","2.5 Steuern von mehrschrittigen Alltagshandlungen",null,null,null,null,null,"",{"$f":"'M2'!J27","v":0},"Die Person ist in der Lage, die erforderlichen Handlungsschritte selbständig in der richtigen Reihenfolge auszuführen oder zu steuern, so dass das angestrebte Ergebnis der Handlung erreicht wird.","Die Person verliert manchmal den Faden und vergisst, welcher Handlungsschritt der nächste ist. Erhält sie dabei eine Erinnerungshilfe, kann sie die Handlung aber selbständig fortsetzen.","Die Person hat erhebliche Schwierigkeiten. Sie verwechselt regelmäßig die Reihenfolge der einzelnen Handlungsschritte oder vergisst einzelne, notwendige Handlungsschritte.","Mehrschrittige Alltagshandlungen werden erst gar nicht begonnen oder nach den ersten Versuchen aufgegeben.",null," "]
[null,"Fähigkeit, folgerichtige und geeignete Entscheidungen im Alltagsleben zu treffen: Dazu gehört z. B. die dem Wetter angepasste Auswahl von Kleidung, die Entscheidung über die Durchführung von Aktivitäten wie Einkaufen, Familienangehörige oder Freunde anrufen, einer Freizeitbeschäftigung nachzugehen. Zu klären ist hier die Frage, ob die Entscheidungen folgerichtig sind, d. h. geeignet sind, das angestrebte Ziel zu erreichen oder ein gewisses Maß an Sicherheit und Wohlbefinden oder Bedürfnisbefriedigung zu gewährleisten, z. B. warme Kleidung.","2.6 Treffen von Entscheidungen im Alltagsleben",null,null,null,null,null,"",{"$f":"'M2'!J32","v":0},"Die Person kann auch in unbekannten Situationen folgerichtige Entscheidungen treffen, beispielsweise beim Umgang mit unbekannten Personen, die an der Haustür klingeln.","Im Rahmen der Alltagsroutinen oder zuvor besprochenen Situationen können Entscheidungen getroffen werden, die Person hat aber Schwierigkeiten in unbekannten Situationen.","Die Person trifft zwar Entscheidungen, diese Entscheidungen sind jedoch in der Regel nicht geeignet, ein bestimmtes Ziel zu erreichen. Dies ist beispielsweise der Fall, wenn die Person mit nur leichter Bekleidung bei winterlichen Temperaturen im Freien spazieren gehen will. Weiterhin liegt eine schwere Beeinträchtigung vor, wenn die Person nur mit Unterstützung in Form von Anleitung, Aufforderung, Aufzeigen von Handlungsalternativen in der Lage ist, Entscheidungen zu treffen.","Die Person kann Entscheidungen auch mit Unterstützung nicht mehr oder nur selten treffen. Sie zeigt keine deutbare Reaktion auf das Angebot mehrerer Entscheidungsalternativen).",null," "]
[null,"Fähigkeit, Sachverhalte zu verstehen und Informationen inhaltlich einordnen zu können: Hier geht es um Ereignisse und Inhalte, die Bestandteil des Alltagslebens der meisten Menschen sind. Gemeint ist etwa die Fähigkeit, zu erkennen, dass man sich in einer bestimmten Situation befindet, z. B. gemeinschaftliche Aktivitäten mit anderen Menschen, Versorgung durch eine Pflegekraft, MDK-Begutachtung sowie die Fähigkeit, Informationen zum Tagesgeschehen aus den Medien z. B. Fernsehgerät, Tageszeitung aufzunehmen und inhaltlich zu verstehen. Gleiches gilt für mündlich von anderen Personen übermittelte Informationen.","2.7 Verstehen von Sachverhalten und Informationen",null,null,null,null,null,"",{"$f":"'M2'!J37","v":0},"Die Person kann Sachverhalte und Informationen aus dem Alltagsleben ohne nennenswerte Probleme verstehen.","Die Person kann einfache Sachverhalte und Informationen nachvollziehen, hat bei komplizierteren jedoch Schwierigkeiten.","Die Person kann auch einfache Informationen häufig nur nachvollziehen, wenn sie wiederholt erklärt werden. Eine schwere Beeinträchtigung liegt auch dann vor, wenn das Verständnis sehr stark von der Tagesform abhängt.","Die Person gibt weder verbal noch nonverbal zu erkennen, dass sie Situationen und übermittelte Informationen verstehen kann.",null," "]
[null,"Fähigkeit, Risiken und Gefahren zu erkennen: Dazu gehören Gefahren wie Stromund Feuerquellen, Barrieren und Hindernisse auf dem Fußboden bzw. auf Fußwegen, eine problematische Beschaffenheit des Bodens (z. B. Glätte) oder Gefahrenzonen in der außerhäuslichen Umgebung (z. B. verkehrsreiche Straßen, Baustellen).","2.8 Erkennen von Risiken und Gefahren",null,null,null,null,null,"",{"$f":"'M2'!J42","v":0},"Die Person kann solche Risiken und Gefahrenquellen im Alltagsleben ohne weiteres erkennen, auch wenn sie ihnen aus anderen Gründen (z. B. aufgrund von somatischen Beeinträchtigungen) nicht aus dem Weg gehen kann.","Die Person erkennt meist nur solche Risiken und Gefahren, die sich in der vertrauten innerhäuslichen  Wohnumgebung wiederfinden. Es bestehen aber beispielsweise Schwierigkeiten, Risiken im Straßenverkehr angemessen einzuschätzen oder Gefährdungen in ungewohnter Umgebung zu erkennen.","Die Person kann auch Risiken und Gefahren, denen sie häufig auch in der Wohnumgebung begegnet, oft nicht als solche erkennen.","Die Person kann Risiken und Gefahren so gut wie gar nicht erkennen.",null," "]
[null,"Fähigkeit, elementare Bedürfnisse verbal oder nonverbal mitzuteilen: Das beinhaltet sich bei Hunger oder Durst, Schmerzen oder Frieren bemerkbar zu machen. Bei Sprachstörungen kann dies ggf. durch Laute, Mimik oder Gestik bzw. unter Nutzung von Hilfsmitteln erfolgen. (Bei den Kriterien zur Kommunikation 4.2.9 bis 4.2.11 sind auch die Auswirkungen von Hör-, Sprech- oder Sprachstörungen zu berücksichtigen.)","2.9 Mitteilen von elementaren Bedürfnissen",null,null,null,null,null,"",{"$f":"'M2'!J47","v":0},"Die Person kann Bedürfnisse äußern.","Die Person kann auf Nachfrage elementare Bedürfnisse äußern. Die Person äußert Bedürfnisse aber nicht immer von sich aus.","Elementare Bedürfnisse sind nur aus nonverbalen Reaktionen (Mimik, Gestik, Lautäußerungen) ableitbar, ggf. nach oder durch entsprechende(r) Stimulation; oder die Person äußert von sich aus keine elementaren Bedürfnisse, muss dazu ständig angeleitet werden, kann aber Zustimmung oder Ablehnung deutlich machen.","Die Person äußert nicht oder nur sehr selten Bedürfnisse, auch nicht in nonverbaler Form. Sie kann weder Zustimmung noch Ablehnung deutlich machen.",null," "]
[null,"Fähigkeit, Aufforderungen in Hinblick auf alltägliche Grundbedürfnisse zu verstehen: Zu den alltäglichen Grundbedürfnissen gehören z. B. Essen, Trinken, sich kleiden, sich beschäftigen.  (Bei den Kriterien zur Kommunikation 4.2.9 bis 4.2.11 sind auch die Auswirkungen von Hör-, Sprech- oder Sprachstörungen zu berücksichtigen.)","2.10 Verstehen von Aufforderungen",null,null,null,null,null,"",{"$f":"'M2'!J52","v":0},"Aufforderungen und Bitten zu alltäglichen Grundbedürfnissen werden ohne weiteres verstanden.","Einfache Bitten und Aufforderungen, wie z. B. „Setz dich bitte an den Tisch!“, „Zieh dir die Jacke über!“, „Komm zum Essen!“, „Prosit!“ werden verstanden, Aufforderungen in nicht alltäglichen Situationen müssen erklärt werden. Ggf. sind besonders deutliche Ansprache, Wiederholungen, Zeichensprache, Gebärdensprache oder Schrift erforderlich, um Aufforderungen verständlich zu machen.","Die Person kann Aufforderungen und Bitten meist nicht verstehen, wenn diese nicht wiederholt geäußert und erläutert werden. Das Verständnis ist sehr von der Tagesform abhängig. Sie zeigt aber Zustimmung oder Ablehnung gegenüber nonverbalen Aufforderungen, z. B. Berührungen oder Geleiten an den Esstisch.","Die Person kann Anleitung und Aufforderungen kaum oder nicht verstehen.",null," "]
[null,"Fähigkeit, in einem Gespräch Gesprächsinhalte aufzunehmen, sinngerecht zu antworten und zur Weiterführung des Gesprächs Inhalte einzubringen:  (Bei den Kriterien zur Kommunikation 4.2.9 bis 4.2.11 sind auch die Auswirkungen von Hör-, Sprech- oder Sprachstörungen zu berücksichtigen.)","2.11 Beteiligen an einem Gespräch",null,null,null,null,null,"",{"$f":"'M2'!J57","v":0},"Die Person kommt sowohl in Einzel- als auch in Gesprächen kleiner Gruppen gut zurecht. Sie zeigt im Gespräch Eigeninitiative, Interesse und beteiligt sich, wenn vielleicht auch nur auf direkte Ansprache hin. Ihre Äußerungen passen zu den Inhalten des Gesprächs.","Die Person kommt in Gesprächen mit einer Person gut zurecht, in Gruppen ist sie jedoch meist überfordert und verliert den Faden. Wortfindungsstörungen treten ggf. regelmäßig auf. Die Person ist häufig auf besonders deutliche Ansprache oder Wiederholung von Worten, Sätzen angewiesen.","Die Person kann auch einem Gespräch nur mit einer Person kaum folgen oder sie kann sich nur wenig oder mit einzelnen Worten beteiligen. Die Person zeigt nur wenig Eigeninitiative, reagiert aber auf Ansprache oder Fragen mit wenigen Worten, z. B. mit ja oder nein; Die Person beteiligt sich am Gespräch, weicht aber in aller Regel vom Gesprächsinhalt ab (führt mehr ein Selbstgespräch) oder es besteht leichte Ablenkbarkeit durch Umgebungseinflüsse.","Ein Gespräch mit der Person, das über einfache Mitteilungen hinausgeht, ist auch unter Einsatz nonverbaler Kommunikation kaum oder nicht möglich.",null," "]
[null,null,null,null,null,null,null,null,null,null,null,null,null,null,null," "]
[null,null,null,"Schwellenwerte (wenn erreicht, dann 1-4 Punkte bei \"Punkte Modul\")",null,null,null,"Gewichtung\n15 %","Modul","Summe Modul","Punkte Modul (0-4)","gewichtet Modul",null,"gewichtet Gesamt","Pflegegrad"," "]
[null,null,null,{"$f":"'M3'!F2","v":1},{"$f":"'M3'!G2","v":3},{"$f":"'M3'!H2","v":5},{"$f":"'M3'!I2","v":7},{"$f":"'M3'!J2","v":3.75},3,{"$f":"'M3'!L2","v":0},{"$f":"'M3'!M2","v":0},{"$f":"'M3'!N2","v":0},null,{"$f":"'M3'!P2","v":0},{"$f":"'M3'!Q2","v":0}," "]
[null,"In diesem Modul geht es um Verhaltensweisen und psychische Problemlagen als Folge von Gesundheitsproblemen, die immer wieder auftreten und personelle Unterstützung erforderlich machen. Es geht hier um Unterstützung des pflegebedürftigen Menschen bei der Bewältigung von belastenden Emotionen (wie z. B. Panikattacken), beim Abbau psychischer Spannungen und bei der Impulssteuerung,  bei der Förderung positiver Emotionen durch Ansprache oder körperliche Berührung;  bei der Vermeidung von Gefährdungen im Lebensalltag, bei Tendenz zu selbstschädigendem Verhalten. Im Mittelpunkt dieses Moduls steht die Frage, inwieweit die Person ihr Verhalten ohne personelle Unterstützung steuern kann. Von fehlender Selbststeuerung ist auch dann auszugehen, wenn ein Verhalten zwar nach Aufforderung abgestellt wird, aber danach immer wieder aufs Neue auftritt, weil das Verbot nicht verstanden wird oder die Person sich nicht erinnern kann. Abzugrenzen sind hier gezielte herausfordernde Verhaltensweisen, z. B. im Rahmen von Beziehungsproblemen, die nicht zu berücksichtigen sind. Anders als in den übrigen Modulen sind die Kriterien nicht abschließend definiert, sondern beispielhaft erläutert. Manche Verhaltensweisen lassen sich nicht eindeutig nur einem Kriterium zuordnen, z. B. Beschimpfungen zu verbaler Aggression (F 4.3.6) oder zu anderen pflegerelevanten vokalen Auffälligkeiten (F 4.3.7) oder treten in Kombination auf. Ausschlaggebend ist, ob und wie oft die Verhaltensweisen eine personelle Unterstützung notwendig machen. Bei Kombination verschiedener Verhaltensweisen wird die Häufigkeit von Ereignissen mit personellem Unterstützungsbedarf nur einmal erfasst, z. B. wird nächtliche Unruhe bei Angstzuständen, entweder unter Punkt F 4. 3.2 oder unter Punkt F 4.3.10 bewertet. Es werden folgende Merkmalsausprägungen erfasst: 0 = nie 1 = selten, d.h. maximal 1x wöchentlich 2 = häufig, d.h. zweimal oder mehrmals wöchentlich, aber nicht täglich 3 = täglich.","3. Verhaltensweisen und psychische Problemlagen","nie","maximal 1x wöchentlich","mehrmals wöchentlich","täglich",null,"Fehler-Hinweis","Punkte",null,null,null,null,null," "]
[null,"Dieses Kriterium fasst verschiedene Verhaltensweisen zusammen. Dazu gehören vor allem das (scheinbar) ziellose Umhergehen in der Wohnung oder der Einrichtung und der Versuch desorientierter Personen, ohne Begleitung die Wohnung, Einrichtung zu verlassen oder Orte aufzusuchen, die für diese Person unzugänglich sein sollten, z. B. Treppenhaus, Zimmer anderer Bewohner. Ebenso zu berücksichtigen ist allgemeine Rastlosigkeit in Form von ständigem Aufstehen und Hinsetzen oder Hin- und Herrutschen auf dem Sitzplatz oder im und aus dem Bett.","3.1 Motorisch geprägte Verhaltensauffälligkeiten",null,null,null,null,"jew. 0, 1, 3 ",{"$f":"IF(COUNTA(D33:G33)>1,\"Fehler!\",\"\")","v":""},{"$f":"'M3'!J7","v":0},null,null,null,null,null," "]
[null,"Gemeint sind hier nächtliches Umherirren oder nächtliche Unruhephasen bis hin zur Umkehr des Tag-, Nachtrhythmus im Sinne von aktiv sein in der Nacht und schlafen während des Tages. Zu bewerten ist, wie häufig Anlass für personelle Unterstützung zur Steuerung des Schlaf-Wach-Rhythmus bestehen, z. B. wieder ins Bett bringen und beruhigen. Schlafstörungen wie Einschlafschwierigkeiten am Abend oder Wachphasen während der Nacht sind nicht zu werten. Andere nächtliche Hilfen, z. B. Aufstehen, zu Bett bringen bei Nykturie oder Lagerungen sind nur unter F 4.6.2. zu werten.","3.2 Nächtliche Unruhe",null,null,null,null,"oder 5","",{"$f":"'M3'!J12","v":0},"Diese Exceldatei wurde auf der Grundlage der Begutachtungs-",null,null,null,null," "]
[null,"Selbstschädigendes und autoaggressives Verhalten kann z. B. darin bestehen, sich selbst durch Gegenstände zu verletzen, ungenießbare Substanzen zu essen und zu trinken, sich selbst schlagen und sich selbst mit den Fingernägeln oder Zähnen verletzen.","3.3 Selbstschädigendes und autoaggressives Verhalten",null,null,null,null,"Punkte","",{"$f":"'M3'!J17","v":0},"Richtlinien (BRi) vom 15.04.2016 sowie des zweiten Pflege-",null,null,null,null," "]
[null,"Gemeint sind hier aggressive, auf Gegenstände gerichtete Handlungen wie Gegenstände wegstoßen oder wegschieben, gegen Gegenstände schlagen, das Zerstören von Dingen sowie das Treten nach Gegenständen.","3.4 Beschädigen von Gegenständen",null,null,null,null,null,"",{"$f":"'M3'!J22","v":0},"stärkungsgesetzes (PSG II) erstellt. Sie ist frei verwendbar.",null,null,null,null," "]
[null,"Physisch aggressives Verhalten gegenüber anderen Personen kann z. B. darin bestehen, nach Personen zu schlagen oder zu treten, andere mit Zähnen oder Fingernägeln zu verletzen, andere zu stoßen oder wegzudrängen oder in Verletzungsversuchen gegenüber anderen Personen mit Gegenständen.","3.5 Physisch aggressives Verhalten gegenüber anderen Personen",null,null,null,null,null,"",{"$f":"'M3'!J27","v":0},"(nur zur Beurteilung von Personen über 18 Jahren. Für Kinder ",null,null,null,null," "]
[null,"Verbale Aggression kann sich z. B. in verbalen Beschimpfungen oder in der Bedrohung anderer Personen ausdrücken.","3.6 Verbale Aggression",null,null,null,null,null,"",{"$f":"'M3'!J32","v":0},"und Jugendliche gelten abweichende Regelungen)",null,null,null,null," "]
[null,"Andere pflegerelevante vokale Auffälligkeiten können sein: Lautes Rufen, Schreien, Klagen ohne nachvollziehbaren Grund, vor sich hin schimpfen, fluchen, seltsame Laute von sich geben, ständiges Wiederholen von Sätzen und Fragen.","3.7 Andere pflegerelevante vokale Auffälligkeiten",null,null,null,null,null,"",{"$f":"'M3'!J37","v":0},"Stand: 9.10.16",null,null,null,null," "]
[null,"Hier ist die Abwehr von Unterstützung, z. B. bei der Körperpflege, die Verweigerung der Nahrungsaufnahme, der Medikamenteneinnahme oder anderer notwendiger Verrichtungen sowie die Manipulation an Vorrichtungen wie z. B. an Kathetern, Infusionen oder Sondenernährung gemeint. Dazu gehört nicht die willentliche (selbstbestimmte) Ablehnung bestimmter Maßnahmen.","3.8 Abwehr pflegerischer oder anderer unterstützender Maßnahmen",null,null,null,null,null,"",{"$f":"'M3'!J42","v":0},"Erstellt von: Günther Schwarz, Alzheimer Beratung, Evangelische",null,null,null,null," "]
[null,"Wahnvorstellungen beziehen sich z. B. auf die Vorstellung, mit Verstorbenen oder imaginären Personen in Kontakt zu stehen oder auf die Vorstellung, verfolgt, bedroht oder bestohlen zu werden.","3.9 Wahnvorstellungen",null,null,null,null,null,"",{"$f":"'M3'!J47","v":0},"Gesellschaft, Stuttgart ©. Für die Richtigkeit und Entsprechung ",null,null,null,null," "]
[null,"Die Person hat starke Ängste oder Sorgen, sie erlebt Angstattacken unabhängig von der Ursache.","3.10 Ängste",null,null,null,null,null,"",{"$f":"'M3'!J52","v":0},"der Angaben übernehme ich keine Gewähr. (Anregungen oder",null,null,null,null," "]
[null,"Antriebslosigkeit bei depressiver Stimmungslage zeigt sich z. B. daran, dass die Person kaum Interesse an der Umgebung hat, kaum Eigeninitiative aufbringt und Motivierung durch andere benötigt, um etwas zu tun. Sie wirkt traurig oder apathisch, möchte am liebsten das Bett nicht verlassen. Hier ist nicht gemeint, dass Menschen mit rein kognitiven Beeinträchtigungen, z. B. bei Demenz Impulse benötigen, um eine Handlung zu beginnen oder fortzuführen.","3.11 Antriebslosigkeit bei depressiver Stimmungslage",null,null,null,null,null,"",{"$f":"'M3'!J57","v":0},"Hinweise zu Fehlern bitte an guenther.schwarz@eva-stuttgart.de)",null,null,null,null," "]
[null,"Sozial inadäquate Verhaltensweisen sind z. B. distanzloses Verhalten, auffälliges Einfordern von Aufmerksamkeit, sich vor anderen in unpassenden Situationen auskleiden, unangemessenes Greifen nach Personen oder unangemessene körperliche oder verbale sexuelle Annäherungsversuche.","3.12 Sozial inadäquate Verhaltensweisen",null,null,null,null,null,"",{"$f":"'M3'!J62","v":0},null,null,null,null,null," "]
[null,"Sonstige pflegerelevante inadäquate Handlungen sind z. B. Nesteln an der Kleidung, ständiges Wiederholen der gleichen Handlung (Stereotypien), planlose Aktivitäten, Verstecken oder Horten von Gegenständen, Kotschmieren, Urinieren in die Wohnung.","3.13 Sonstige pflegerelevante inadäquate Handlungen",null,null,null,null,null,"",{"$f":"'M3'!J67","v":0},null,null,null,null,null," "]
[null,null,null,null,null,null,null,null,null,null,null,null,null,null,null," "]
[null,null,null,"Schwellenwerte (wenn erreicht, dann 1-4 Punkte bei \"Punkte Modul\")",null,null,null,"Gewichtung\n40 %","Modul","Summe Modul","Punkte Modul (0-4)","gewichtet Modul",null,"gewichtet Gesamt","Pflegegrad"," "]
[null,null,null,{"$f":"'M4'!F2","v":3},{"$f":"'M4'!G2","v":8},{"$f":"'M4'!H2","v":19},{"$f":"'M4'!I2","v":37},10,4,{"$f":"'M4'!L2","v":0},{"$f":"'M4'!M2","v":0},{"$f":"'M4'!N2","v":0},null,{"$f":"'M4'!P2","v":0},{"$f":"'M4'!Q2","v":0}," "]
[null,"Angaben zur Versorgung: Zu diesem Modul werden zunächst besondere Bedarfsaspekte erfasst. Dazu gehören die parenterale Ernährung oder die Ernährung über eine Sonde, die künstliche Harn- oder Stuhlableitung, sowie Störungen der Blasen- und Darmkontrolle in ihren Ausprägungsgraden.\nErnährung parenteral oder über Sonde: Es ist anzugeben, ob die Ernährung parenteral z. B. über einen Port, über eine perkutane endoskopische Gastrostomie (PEG), eine perkutane endoskopischen Jejunostomie (PEJ) oder eine nasale Magensonde, sowie ob sie über Pumpe, Schwerkraft oder als Bolusgabe erfolgt.\nBlasenkontrolle/Harnkontinenz: Gemeint ist hier, Harndrang zu verspüren und so rechtzeitig zu äußern, dass die Blasenentleerung geregelt werden kann. Jegliche Art von unwillkürlichem Harnabgang ist zu berücksichtigen, unabhängig von der Ursache. Zu erfassen ist hier vorrangig die Kontrolle der Blasenentleerung, die Steuerung der Blasenentleerung, die Vermeidung unwillkürlicher Harnabgänge, ggf. mit personeller Hilfe. Es sind folgende Merkmalsausprägungen vorgesehen: Ständig kontinent (Keine unwillkürlichen Harnabgänge.); Überwiegend kontinent (Maximal einmal täglich unwillkürlicher Harnabgang oder Tröpfcheninkontinenz.); Überwiegend inkontinent (Mehrmals täglich unwillkürliche Harnabgänge, aber gesteuerte Blasenentleerung ist noch teilweise möglich.); Komplett inkontinent (Die Person ist komplett harninkontinent.  Gesteuerte Blasenentleerung ist nicht möglich.) Alternativ anzugeben ist, ob ein suprapubischer oder transurethraler Dauerkatheter oder Urostoma vorhanden ist. Einmalkatheterisieren ist nicht hier sondern unter Punkt F 4.5.10 zu berücksichtigen, hier ist anzugeben, ob und in welchem Umfang daneben eine Inkontinenz besteht.\nDarmkontrolle, Stuhlkontinenz: Gemeint ist, Stuhldrang zu verspüren und so rechtzeitig zu äußern, dass die Darmentleerung geregelt werden kann. Zu bewerten ist hier die Vermeidung unwillkürlicher Stuhlabgänge, ggf. mit personeller Hilfe.\nEs sind folgende Merkmalsausprägungen vorgesehen: Ständig kontinent (Keine unwillkürlichen Stuhlabgänge.); Überwiegend kontinent (Die Person ist überwiegend stuhlkontinent, gelegentlich unwillkürliche Stuhlabgänge oder nur geringe Stuhlmengen, sogenannte Schmierstühle.); Überwiegend inkontinent (Die Person ist überwiegend stuhlinkontinent, selten gesteuerte Darmentleerung möglich.); Komplett inkontinent (Die Person ist komplett stuhlinkontinent,  gesteuerte\nDarmentleerung ist nicht möglich.). Alternativ anzugeben ist, ob ein Colo-, Ileostoma vorhanden ist. \nBewertung der Selbständigkeit: Zu bewerten ist, ob die untersuchte Person die jeweilige Aktivität praktisch durchführen kann. Es ist unerheblich, ob die Beeinträchtigungen der Selbständigkeit aufgrund von Schädigungen somatischer oder mentaler Funktionen bestehen oder ob Teilaspekte bereits in anderen Modulen berücksichtigt worden sind.","4. Selbstversorgung","selbständig","überwiegend selbständig","überwiegend unselbständig","unselbständig",null,"Fehler-Hinweis","Punkte","selbständig","überwiegend selbständig","überwiegend unselbständig","unselbständig",null," "]
[null,"Sich Hände, Gesicht, den Hals, die Arme, Achselhöhlen und den vorderen Brustbereich waschen und abtrocknen.","4.1 Waschen des vorderen Oberkörpers",null,null,null,null,"jew. 0-3",{"$f":"IF(COUNTA(D50:G50)>1,\"Fehler!\",\"\")","v":""},{"$f":"'M4'!J7","v":0},"Die Person kann die beschriebene Aktivität ohne personelle Hilfe durchführen.","Die Person kann die Aktivität selbständig durchführen, wenn benötigte Gegenstände, z. B. Seife, Waschlappen bereitgelegt werden oder sie Aufforderung bzw. punktuelle Teilhilfen, z. B. Waschen unter den Achseln oder der Brust erhält.","Die Person kann nur geringe Anteile der Aktivität selbständig durchführen, sich z. B. nur Hände oder Gesicht waschen oder benötigt umfassende Anleitung.","Die Person kann sich an der Aktivität nicht oder nur minimal beteiligen.",null," "]
[null,"Kämmen, Zahnpflege, Prothesenreinigung, Rasieren","4.2 Körperpflege im Bereich des Kopfes",null,null,null,null,"Punkte","",{"$f":"'M4'!J12","v":0},"Die Person kann die beschriebenen Aktivitäten ohne personelle Hilfe durchführen.","Die Person kann die Aktivitäten selbständig durchführen, wenn benötigte Gegenstände bereitgelegt oder gerichtet werden, z. B. Aufdrehen der Zahnpastatube, Auftragen der Zahnpasta auf die Bürste, Aufbringen von Haftcreme auf die Prothese, Anreichen oder Säubern des Rasierapparates. Alternativ sind Aufforderungen oder punktuelle Teilhilfen erforderlich wie Korrekturen nach dem Kämmen oder nur das Kämmen des Hinterkopfes, das Reinigen der hinteren Backenzähne bei der Zahn-, Mundpflege bzw. die Nachrasur bei sonst selbständigem Rasieren.","Die Person kann nur geringe Anteile der Aktivität selbständig leisten, so beginnt sie z. B. mit dem Zähneputzen oder der Rasur, ohne die Aktivität zu Ende zu führen.","Die Person kann sich an den Aktivitäten nicht oder nur minimal beteiligen.",null," "]
[null,"Den Intimbereich waschen und abtrocknen.","4.3 Waschen des Intimbereichs",null,null,null,null,null,"",{"$f":"'M4'!J17","v":0},"Die Person kann die beschriebene Aktivität ohne personelle Hilfe durchführen.","Die Person kann die Aktivität selbständig durchführen, wenn benötigte Utensilien, z. B. Seife, Waschlappen bereitgelegt werden oder sie Aufforderung bzw. punktuelle Teilhilfen erhält.","Die Person kann nur geringe Anteile der Aktivität  selbständig durchführen, sich z. B. nur den vorderen Intimbereich waschen.","Die Person kann sich an der Aktivität nicht oder nur minimal beteiligen.",null," "]
[null,"Durchführung des Dusch- oder Wannenbades einschließlich des Waschens der Haare: Dabei sind neben der Fähigkeit, den Körper waschen zu können, auch Sicherheitsaspekte zu berücksichtigen. (Teil-) Hilfen beim Waschen in der Wanne, Dusche sind hier ebenso zu berücksichtigen wie die Hilfe beim Einund Aussteigen oder eine notwendige Überwachung während des Bades. Dazu gehört auch das Abtrocknen, Haare waschen und föhnen.","4.4 Duschen und Baden einschließlich Waschen der Haare",null,null,null,null,null,"",{"$f":"'M4'!J22","v":0},"Die Person kann die beschriebene Aktivität ohne personelle Hilfe durchführen.","Die Person kann die Aktivität selbständig durchführen, wenn Utensilien vorbereitet bzw. bereitgestellt werden, einzelne Handreichungen geleistet werden, z. B. Stützen beim Ein-, Aussteigen, Bedienung eines Badewannenlifters, Hilfe beim Haare waschen oder Föhnen, beim Abtrocknen oder wenn während des (Dusch-) Bades aus nachvollziehbaren Sicherheitsgründen Anwesenheit erforderlich ist.","Die Person kann nur einen begrenzten Teil der Aktivität selbständig durchführen, z.B. das Waschen des vorderen Oberkörpers.","Die Person kann sich an der Aktivität nicht oder nur minimal beteiligen.",null," "]
[null,"Bereitliegende Kleidungsstücke, z. B. Unterhemd, T-Shirt, Hemd, Bluse, Pullover, Jacke, BH, Schlafanzugoberteil oder Nachthemd, an- und ausziehen: Die Beurteilung ist unabhängig davon vorzunehmen, ob solche Kleidungsstücke derzeit getragen werden. Die situationsgerechte Auswahl der Kleidung ist nicht hier sondern unter Punkt F 4.2.6 zu berücksichtigen. Das An- und Ablegen von körpernahen Hilfsmitteln ist unter Punkt F 4.5.7 zu berücksichtigen.","4.5 An- und Auskleiden des Oberkörpers",null,null,null,null,null,"",{"$f":"'M4'!J27","v":0},"Die Person kann die beschriebene Aktivität ohne personelle Hilfe durchführen.","Die Person kann die Aktivität beispielsweise selbständig durchführen, wenn Kleidungsstücke passend angereicht oder gehalten werden beim Anziehen eines Hemdes etc. Auch wenn Hilfe nur bei Verschlüssen erforderlich ist, trifft die Bewertung „überwiegend selbständig“ zu, ebenso wenn nur Kontrolle des Sitzes der Kleidung und Aufforderungen zur Vervollständigung der Handlung erforderlich sind.","Die Person kann nur bei einem begrenzten Teil der Aktivität mithelfen, beispielsweise die Hände in die Ärmel eines bereitgehaltenen T-Shirts schieben.","Die Person kann sich an der Aktivität nicht oder nur minimal beteiligen.",null," "]
[null,"Bereitliegende Kleidungsstücke, z. B. Unterwäsche Hose, Rock, Strümpfe und Schuhe, an- und ausziehen: Die Beurteilung ist unabhängig davon vorzunehmen, ob solche Kleidungsstücke derzeit getragen werden. Die situationsgerechte Auswahl der Kleidung ist unter Punkt F 4.2.6 zu berücksichtigen. Das An- und Ablegen von körpernahen Hilfsmitteln ist unter Punkt F 4.5.7 zu berücksichtigen, z. B. Kompressionstrümpfe.","4.6 An- und Auskleiden des Unterkörpers",null,null,null,null,null,"",{"$f":"'M4'!J32","v":0},"Die Person kann die beschriebene Aktivität ohne personelle Hilfe durchführen.","Die Person kann die Aktivität beispielsweise selbständig durchführen, wenn Kleidungsstücke angereicht oder gehalten werden (Einstiegshilfe). Auch wenn Hilfe nur bei Verschlüssen, z. B. Schnürsenkel binden, Knöpfe schließen oder Kontrolle des Sitzes der Kleidung und Aufforderungen zur Vervollständigung der Handlung erforderlich sind, trifft die Bewertung „überwiegend selbständig“ zu.","Die Person kann die Aktivität zu einem geringen Teil selbständig durchführen. Beispielsweise gelingt das Hochziehen von Hose, Rock zur Taille selbständig, zuvor muss das Kleidungsstück jedoch von der Pflegeperson über die Füße gezogen werden.","Die Person kann sich an der Aktivität nicht oder nur minimal beteiligen.",null," "]
[null,"Zerteilen von Nahrung in mundgerechte Stücke und Eingießen von Getränken: Dazu gehört das Zerteilen von belegten Brotscheiben, Obst oder andere Speisen in mundgerechte Stücke, z. B. das Kleinschneiden von Fleisch, das Zerdrücken von Kartoffeln, Pürieren der Nahrung ,Verschlüsse von Getränkeflaschen öffnen, Getränke aus einer Flasche oder Kanne in ein Glas bzw. eine Tasse eingießen, ggf. unter Nutzung von Hilfsmitteln wie Anti-Rutschbrett oder sonstigem Gegenstand wie Spezialbesteck.","4.7 Mundgerechtes Zubereiten der Nahrung und Eingießen von Getränken",null,null,null,null,null,"",{"$f":"'M4'!J37","v":0},"Die Person kann die beschriebene Aktivität ohne personelle Hilfe durchführen.","Es ist punktuelle Hilfe erforderlich, z.B. beim Öffnen einer Flasche oder beim Schneiden von sehr harten Nahrungsmitteln.","Die Person kann die Aktivität zu einem geringen Teil selbständig durchführen, beispielsweise schneidet sie zwar belegte Brotscheiben, schafft es aber nicht, mundgerechte Stücke herzustellen. Oder sie gießt aus einer Flasche Wasser ins Glas, verschüttet das Wasser dabei jedoch regelmäßig.","Die Person kann sich an der Aktivität nicht oder nur minimal beteiligen.",null," "]
[null,"Bereit gestellte, mundgerecht zubereitete Speisen essen: Dies beinhaltet das Aufnehmen, zum Mund Führen, ggf. Abbeißen, Kauen und Schlucken von mundgerecht zubereiteten Speisen, die üblicherweise mit den Fingern gegessen werden, z. B. Brot, Kekse, Obst oder das Essen mit Gabel oder Löffel, ggf. mit speziellen Hilfsmitteln wie adaptiertem Besteck. Zu berücksichtigen ist auch, inwieweit die Notwendigkeit der ausreichenden Nahrungsaufnahme (auch ohne Hungergefühl oder Appetit) erkannt und die empfohlene, gewohnte Menge tatsächlich gegessen wird. Das Einhalten von Diäten ist nicht hier sondern unter Punkt F 4.5.16 zu bewerten. Die Beurteilung ist auch dann vorzunehmen, wenn die Nahrungsaufnahme über eine Sonde bzw. parenteral erfolgt.","4.8 Essen (dreifach gewichtet!)",null,null,null,null,"0-9 Punkte","",{"$f":"'M4'!J42","v":0},"Die Person kann die beschriebene Aktivität ohne personelle Hilfe durchführen.","Die Person kann überwiegend selbständig essen, benötigt aber punktuelle Anleitung, muss beispielsweise aufgefordert werden, mit dem Essen zu beginnen oder weiter zu essen. Es sind punktuelle Hilfen erforderlich, z. B. Zurücklegen aus der Hand gerutschter Speisen oder Besteck in die Hand geben.","Es muss ständig zur Nahrungsaufnahme motiviert werden oder die Nahrung muss größtenteils gereicht werden oder es ist ständige und unmittelbare Eingreifbereitschaft der Pflegeperson erforderlich, aufgrund von Aspirationsgefahr.","Die Nahrung muss (nahezu) komplett gereicht werden.",null," "]
[null,"Bereitstehende Getränke aufnehmen, ggf. mit Gegenständen wie Strohhalm, Spezialbecher mit Trinkaufsatz: Zu berücksichtigen ist auch, inwieweit die Notwendigkeit der Flüssigkeitsaufnahme (auch ohne ausreichendes Durstgefühl) erkannt und die empfohlene oder gewohnte Menge tatsächlich getrunken wird. Die Beurteilung der Selbständigkeit ist auch dann vorzunehmen, wenn die Flüssigkeitsaufnahme über eine Sonde bzw. parenteral erfolgt.","4.9 Trinken (doppelt gewichtet!)",null,null,null,null,"0-6 Punkte","",{"$f":"'M4'!J47","v":0},"Die Person kann die beschriebene Aktivität ohne personelle Hilfe durchführen.","Die Person kann selbständig trinken, wenn ein Glas, eine Tasse unmittelbar in den Aktionsradius der Person positioniert oder sie ans Trinken erinnert wird.","Das Trinkgefäß muss beispielsweise in die Hand gegeben werden, das Trinken erfolgt jedoch selbständig oder die Person muss zu fast jedem Schluck motiviert werden oder es ist ständige und unmittelbare Eingreifbereitschaft der Pflegeperson erforderlich, aufgrund von Aspirationsgefahr.","Getränke müssen (nahezu) komplett gereicht werden.",null," "]
[null,"Gehen zur Toilette, Hinsetzen und Aufstehen, Sitzen während der Blasen-oder Darmentleerung, Intimhygiene und Richten der Kleidung: Die Beurteilung ist auch dann vorzunehmen, wenn anstelle der Toilettenbenutzung eine Versorgung mit Hilfsmitteln erfolgt, z. B. Inkontinenzmaterial, Katheter, Urostoma, Ileooder Colostoma.","4.10 Benutzen einer Toilette oder eines Toilettenstuhls (doppelt gewichtet!)",null,null,null,null,"0-6 Punkte","",{"$f":"'M4'!J52","v":0},"Die Person kann die Aktivität ohne personelle Hilfe durchführen.","Die Person kann die Aktivität überwiegend selbständig durchführen. Personelle Hilfe kann sich beispielsweise beschränken auf einzelne Handlungsschritte wie:\n- nur Bereitstellen und Leeren des Toilettenstuhls (alternativ Urinflasche oder anderer Behälter),\n- nur Aufforderung oder Orientierungshinweise zum Auffinden der Toilette oder Begleitung auf dem Weg zur Toilette,\n- nur Anreichen von Toilettenpapier oder Waschlappen, Intimhygiene nur nach Stuhlgang,\n- nur Unterstützung beim Hinsetzen, Aufstehen von der Toilette,\n- nur punktuelle Hilfe beim Richten der Bekleidung","Die Person kann nur einzelne Handlungsschritte selbst ausführen, z. B. nur Richten der Bekleidung oder Intimhygiene nur nach Wasserlassen.","Die Person kann sich nicht oder nur minimal an der Aktivität beteiligen.",null," "]
[null,null,null,"entfällt","selbständig","überwiegend selbständig","überwiegend unselbständig","unselbständig",null,null,null,null,null,null,null," "]
[null,"Inkontinenz- und Stomasysteme sachgerecht verwenden, nach Bedarf wechseln und entsorgen: Dazu gehört auch das Entleeren eines Urinbeutels bei Dauerkatheter, Urostoma oder die Anwendung eines Urinalkondoms. Die regelmäßige Einmalkatheterisierung ist nicht hier sondern unter Punkt 5.10 zu erfassen.","4.11 Bewältigen der Folgen einer Harninkontinenz und Umgang mit Dauerkatheter und Urostoma\n",null,null,null,null,null,{"$f":"IF(COUNTA(D61:H61)>1,\"Fehler!\",\"\")","v":""},{"$f":"'M4'!J58","v":0},"entfällt, wenn ständig oder überwiegend kontinent: Ständig kontinent: (keine unwillkürlichen Harnabgänge) (4.11 entfällt). Überwiegend kontinent: Maximal 1x täglichunwillkürlicher Harnabgang oder Tröpfcheninkontinenz) (4.11 entfällt). Überwiegend inkontinent: Mehrmals täglich unwillkürliche Harnabgänge.  ","Die Person kann Hilfsmittel selbständig benutzen.","Die Person kann die Aktivität überwiegend selbständig durchführen, wenn Inkontinenzsysteme bereit gelegt oder entsorgt werden oder an den Wechsel erinnert wird.","Die Person kann sich am Wechsel der Inkontinenzsysteme beteiligen, z. B. nur Vorlagen einlegen oder Inkontinenzhosen nur entfernen.","Beteiligung ist nicht oder nur minimal möglich."," "]
[null,"Inkontinenz- und Stomasysteme sachgerecht verwenden, nach Bedarf wechseln und entsorgen: Dazu gehört Inkontinenzsysteme, z. B. große Vorlagen mit Netzhose, Inkontinenzhose mit Klebestreifen oder Pants sachgerecht verwenden, nach Bedarf wechseln und entsorgen. Dazu gehört auch die Anwendung eines Analtampons oder das Entleeren oder Wechseln eines Stomabeutels bei Enterostoma. Die Pflege des Stomas und der Wechsel einer Basisplatte ist unter 5.9 zu berücksichtigen.","4.12 Bewältigen der Folgen einer Stuhlinkontinenz und Umgang  mit Stoma",null,null,null,null,null,{"$f":"IF(COUNTA(D62:H62)>1,\"Fehler!\",\"\")","v":""},{"$f":"'M4'!J64","v":0},"entfällt, wenn ständig oder überwiegend kontinent: Ständig kontinent: keine unwillkürlichen Stuhlabgänge (4.12 entfällt). Überwiegend kontinent: gelegentlich unwillkürliche Stuhlabgänge oder nur geringe Stuhlmengen, sogenannte Schmierstühle (4.12 entfällt). Überwiegend inkontinent: selten gesteuerte Darmentleerung.  ","Die Person kann Hilfsmittel selbständig benutzen.","Die Person kann die Aktivität überwiegend selbständig durchführen, wenn Inkontinenzsysteme bereit gelegt und entsorgt werden oder an den Wechsel erinnert wird.","Die Person kann sich am Wechsel der Inkontinenzsysteme beteiligen, z.B. Mithilfe beim Wechsel eines Stomabeutels. Bei Vorliegen einer Stuhlinkontinenz sind Ressourcen beim Wechsel des Inkontinenzmaterials eher selten.","Beteiligung ist nicht (oder nur minimal) möglich."," "]
[null,null,"Achtung: Frage 4.11 und 4.12 entfällt, wenn überwiegend oder ständig kontinent.",null,null,null,null,null,null,null,null,null,null,null,null," "]
[null,"Blaseninkontinenz: Ständig kontinent: (keine unwillkürlichen Harnabgänge) (4.11 entfällt). Überwiegend kontinent: Maximal 1x täglichunwillkürlicher Harnabgang oder Tröpfcheninkontinenz) (4.11 entfällt). Überwiegend inkontinent: Mehrmals täglich unwillkürliche Harnabgänge.  Stuhlinkontinenz: Ständig kontinent: keine unwillkürlichen Stuhlabgänge (4.12 entfällt). Überwiegend kontinent: gelegentlich unwillkürliche Stuhlabgänge oder nur geringe Stuhlmengen, sogenannte Schmierstühle (4.12 entfällt). Überwiegend inkontinent: selten gesteuerte Darmentleerung.  ","(siehe Erläuterung im hellblauen Feld links)",null,null,null,null,null,null,null,null,null,null,null,null," "]
[null,null,null,"entfällt","ohne fremde Hilfe","mit Hilfe: nicht täglich, nicht auf Dauer \n(0 Punkte)","mit Hilfe: täglich, zusätzlich zu oraler Ernährung \n(6 Punkte)","mit Hilfe: ausschließlich oder nahezu ausschließlich \n(3 Punkte)",null,null,"entfällt","ohne Hilfe: selbständig","mit Hilfe: nicht täglich, nicht auf Dauer","mit Hilfe: täglich, zusätzlich zu oraler Ernährung","mit Hilfe: ausschließlich oder nahezu ausschließlich"," "]
[null,"Ernährung über einen parenteralen Zugang (z. B. einen Port) oder über einen Zugang in den Magen oder Dünndarm (PEG/PEJ)","4.13 Ernährung parenteral oder über Sonde",null,null,null,null,null,{"$f":"IF(COUNTA(D66:H66)>1,\"Fehler!\",\"\")","v":""},{"$f":"'M4'!J73","v":0},"keine Ernährung parenteral oder über Sonde.","Die Person führt die Versorgung ohne Fremdhilfe durch.","erfolgt mit fremder Hilfe: Die Person erhält zusätzlich zur oralen Nahrungsaufnahme Nahrung oder Flüssigkeit parenteral oder über Sonde, aber nur gelegentlich oder vorübergehend.","erfolgt mit fremder Hilfe: Die Person erhält in der Regel täglich Nahrung oder Flüssigkeit parenteral oder über Sonde und täglich oral Nahrung. Sie wird zum Teil, aber nicht ausreichend über die orale Nahrungsaufnahme ernährt und benötigt zur Nahrungsergänzung bzw. zur Vermeidung von Mangelernährung täglich Sondenkost.","erfolgt mit fremder Hilfe: Die Person erhält ausschließlich oder nahezu ausschließlich Nahrung und Flüssigkeit parenteral oder über Sonde. Eine orale Nahrungsaufnahme erfolgt nicht oder nur in geringem Maße zur Förderung der Sinneswahrnehmung."," "]
[null,null,null,null,null,null,null,"weniger Punkte bei \"ausschließlich\"!",null,null,null,null,null,null,null," "]
[null,null,null,null,null,null,null,null,null,null,null,null,null,null,null," "]
[null,null,null,"Schwellenwerte (wenn erreicht, dann 1-4 Punkte bei \"Punkte Modul\")",null,null,null,"Gewichtung\n20 %","Modul","Summe Modul","Punkte Modul (0-4)","gewichtet Modul",null,"gewichtet Gesamt","Pflegegrad"," "]
[null,null,null,{"$f":"'M5'!F2","v":1},{"$f":"'M5'!G2","v":2},{"$f":"'M5'!H2","v":4},{"$f":"'M5'!I2","v":6},{"$f":"'M5'!J2","v":5},5,{"$f":"'M5'!L2","v":0},{"$f":"'M5'!M2","v":0},{"$f":"'M5'!N2","v":0},null,{"$f":"'M5'!P2","v":0},{"$f":"'M5'!Q2","v":0}," "]
[null,"Achtung: Hier sind nur Angaben zu ärztlich angeordneten Maßnahmen zu machen, wenn die Hilfe einer ",null,null,null,null,null,null,null,null,null,null,null,null,null," "]
[null,"anderen Person gebraucht wird und die Aktivitäten voraussichtlich länger als 6 Monate erforderlich sind. ",null,null,null,null,null,null,null,null,null,null,null,null,null," "]
[null,"Bei jeder Aktivität nur eine Häufigkeitsangabe machen. Dazu eine ganze Zahl eingeben (1, 2, 3, …..)",null,null,null,null,null,null,"hier werden jeweils Gruppen von Kriterien zu einem Wert zusammengefasst",null,null,null,null,null,null," "]
[null,"Der Bereich „Bewältigung von und selbständiger Umgang mit krankheits- oder therapiebedingten Anforderungen und Belastungen“ erfasst im Rahmen der Begutachtung vom bisherigen Pflegebedürftigkeitsbegriff nicht berücksichtigte Aktivitäten und Fähigkeiten. Sie sind dem Themenkreis der selbstständigen Krankheitsbewältigung zuzuordnen, und zwar insbesondere der „krankheitsbezogene Arbeit“, die direkt auf die Kontrolle von Erkrankungen und Symptomen sowie auf die Durchführung therapeutischer Interventionen bezogen ist. Hierbei geht es ausdrücklich nicht darum, den Bedarf an Maßnahmen der häuslichen Krankenpflege bzw. Behandlungspflege nach dem Fünften Buch einzuschätzen. Insoweit gilt § 13 Absatz 2 SGB XI. Diese Leistungen werden auch weiterhin in der häuslichen Versorgung von der Gesetzlichen Krankenversicherung erbracht; in der vollstationären Versorgung im Rahmen des § 43 SGB XI von der Pflegeversicherung. Ein Großteil der hier aufgeführten Maßnahmen und Handlungen kann von erkrankten Personen eigenständig durchgeführt werden, sofern sie über die dazu nötigen Ressourcen verfügen, d. h. über körperliche und kognitive Fähigkeiten, spezifische Fertigkeiten, Motivation, Kenntnisse u. a. m. Dies gilt auch für Maßnahmen, die nur selten von den Erkrankten selbst durchgeführt werden, wie z. B. das Absaugen von Sekret oder die regelmäßige Einmalkatheterisierung. Mit dem Bereich ist daher häufig ein Hilfebedarf bei der Anleitung und Motivation oder Schulung verknüpft.\nIn die Bewertung gehen nur die ärztlich angeordneten Maßnahmen ein, die gezielt auf eine bestehende Erkrankung ausgerichtet und für voraussichtlich mindestens sechs Monate erforderlich sind. Die ärztliche Anordnung kann sich auch auf nicht verschreibungspflichtige Medikamente oder äußerliche Anwendungen oder Übungsbehandlungen beziehen.\nZu bewerten ist, ob die Person die jeweilige Aktivität praktisch durchführen kann. Ist dies nicht der Fall, wird die Häufigkeit der erforderlichen Hilfe durch andere Personen dokumentiert (Anzahl pro Tag/pro Woche/pro Monat). Es ist unerheblich, ob die personelle Unterstützung durch Pflegepersonen oder Pflege(fach-)kräfte erfolgt und auch ob sie gemäß § 37 SGB V verordnet und abgerechnet wird.\nZu jedem Kriterium ist nur ein Eintrag möglich:\nEntfällt oder selbständig oder Häufigkeit der Hilfe mit einer vollen Zahl pro Tag, pro Woche oder pro Monat. Ggf. ist von Tag auf Woche oder auf Monat umzurechnen. Zur Umrechnung von Woche auf Monat werden wöchentliche Maßnahmen mit vier multipliziert.\nErfolgt eine Medikation z. B. jeden zweiten Tag, so kann man diese Frequenz nur mit 15 x pro Monat darstellen. Werden zweimal täglich Insulin-Injektionen gegeben und zweimal wöchentlich zusätzlich andere Injektionen, ist umzurechnen auf die Woche. Es erfolgt der Eintrag 16 x pro Woche.","5. Umgang mit krankheits- / therapiebedingten Anforderungen und Belastungen","entfällt oder selbständig","wie oft monatlich","wie oft wöchentlich","wie oft täglich",null,"Fehler-Hinweis","Punkte",null,null,null,null,null," "]
[null,"Orale Medikation, Augen- oder Ohrentropfen, Zäpfchen und Medikamentenpflaster: Das Ausmaß der Hilfestellung kann von 1x wöchentlichen Stellen der Medikamente im Wochendispenser bis zu mehrfach täglicher Einzelgabe differieren. Werden Medikamente verabreicht, ist das Stellen nicht gesondert zu berücksichtigen.","5.1 Medikation",null,null,null,null,null,{"$f":"IF(COUNTA(D75:G75)>1,\"Fehler!\",\"\")","v":""},null,"pro Tag ca.:",{"$f":"'M5'!K8","v":0},null,null,null," "]
[null,"Subkutane und intramuskuläre Injektionen und subkutane Infusionen: Dazu gehören z. B. Insulininjektionen oder auch die Versorgung mit Medikamentenpumpen über einen subkutanen Zugang.","5.2 Injektionen",null,null,null,null,null,"",null,null,{"$f":"'M5'!K13","v":0},null,null,null," "]
[null,"Hierunter fällt hauptsächlich die Port-Versorgung. Sie ist oft fachpflegerisch erforderlich. In Bezug auf den Umgang mit intravenösen Zugängen ist auch die Kontrolle zur Vermeidung von Komplikationen wie Verstopfung des Katheters zu berücksichtigen. Analog ist auch die Versorgung intrathekaler Zugänge hier zu erfassen. Das Anhängen von Nährlösungen zur parenteralen Ernährung ist nicht hier sondern unter Punkt 4.13 zu erfassen.","5.3 Versorgung intravenöser Zugänge (z. B. Port)",null,null,null,null,null,"",null,null,{"$f":"'M5'!K18","v":0},"Die durchschnittliche Häufigkeit der",null,null," "]
[null,"Absaugen kann z. B. bei beatmeten oder tracheotomierten Patienten in sehr unterschiedlicher und wechselnder Häufigkeit notwendig sein. Es ist der durchschnittliche Bedarf anzugeben. Ebenso ist hier das An- und Ablegen von Sauerstoffbrillen oder analog auch von Atemmasken zur nächtlichen Druckbeatmung zu erfassen sowie das Bereitstellen eines Inhalationsgerätes (inkl. deren Reinigung). Jede Maßnahme ist auch einzeln zu berücksichtigen.","5.4 Absaugen oder Sauerstoffgabe",null,null,null,null,null,"",null,null,{"$f":"'M5'!K23","v":0},"Hilfen Pro Tag wird bei 5.1 bis 5.7",null,null," "]
[null,"Hier sind alle externen Anwendungen mit ärztlich verordneten Salben, Cremes, Emulsionen etc. abzubilden, außerdem Kälte- und Wärmeanwendungen, die z.B. bei rheumatischen Erkrankungen verordnet werden. Jede Maßnahme ist auch einzeln zu berücksichtigen.","5.5 Einreibungen sowie Kälte- und Wärmeanwendungen",null,null,null,null,null,"",null,null,{"$f":"'M5'!K28","v":0},"zusammengezählt. Mind. 1 = 1 Punkt",null,null," "]
[null,"Die Aktivität umfasst Messungen wie z. B. Blutdruck, Puls, Blutzucker, Temperatur, Körpergewicht, Flüssigkeitshaushalt, soweit diese auf ärztliche Anordnung  erfolgen. Dabei geht es nicht nur darum, die Messung durchzuführen, sondern auch notwendige Schlüsse zu ziehen, etwa zur Festlegung der erforderlichen Insulindosis oder zur Notwendigkeit anderer Maßnahmen, wie das Umstellen der Ernährung oder auch das Aufsuchen einer Ärztin oder eines Arztes. Dies gilt beispielsweise auch für Menschen mit erhöhtem Blutdruck, die zur Ergänzung der medikamentösen Therapie und einer Umstellung ihres Lebensstils regelmäßig Blutdruck und Puls kontrollieren.","5.6 Messung und Deutung von Körperzuständen",null,null,null,null,null,"",null,null,{"$f":"'M5'!K33","v":0},"größer 3 = 2 Punkte; größer 8 = 3 Punkte",null,null," "]
[null,"Hierunter versteht man beispielsweise das Anund Ablegen von Prothesen, kieferorthopädische Apparaturen; Orthesen, Brille, Hörgerät oder Kompressionsstrümpfen (inkl. deren Reinigung). Der Umgang mit Zahnprothesen ist unter Punkt 4.2 zu erfassen.","5.7 Körpernahe Hilfsmittel",null,null,null,null,"5.1 bis 5.7:","",{"$f":"'M5'!J38","v":0},null,{"$f":"'M5'!K38","v":0},"Summe",{"$f":"'M5'!K39","v":0},null," "]
[null,"Die Aktivität beinhaltet die Versorgung chronischer Wunden, wie z. B. Ulcus cruris oder Dekubitus.","5.8 Verbandwechsel und Wundversorgung",null,null,null,null,null,"",null,null,{"$f":"'M5'!K44","v":0},"Hilfen Pro Tag werden bei 5.8 bis 5.11",null,null," "]
[null,"Gemeint ist hier die Pflege künstlicher Körperöffnungen wie Tracheostoma, PEG, subrapubischer Blasenkatheter, Urostoma, Colooder Ileostoma. Hierbei ist auch das Reinigen des Katheters, die Desinfektion der Einstichstelle der PEG und falls notwendig auch der Verbandswechsel zu bewerten. Die Pflege eines Urostoma, Colo-oder Ileostoma ist in der Regel mit dem der Wechsel der Basisplatte oder dem Wechsel eines einteiligen Systems verbunden. Der einfache Wechsel oder das Entleeren eines Stomaoder Katheterbeutels oder das Anhängen von Sondennahrung sind unter den Punkten 4.11 ff zu werten.","5.9 Versorgung mit Stoma",null,null,null,null,null,"",null,null,{"$f":"'M5'!K49","v":0},"zusammengezählt. Mind. 0,1429 = 1 Pkt.",null,null," "]
[null,"Regelmäßige Einmalkatheterisierungen kommen insbesondere bei neurogenen Blasenentleerungsstörungen vor. Mit Abführmethoden sind Anwendungen von Klistier, Einlauf, digitale Ausräumung gemeint.","5.10 Regelmäßige Einmalkatheterisierung und Nutzung von Abführmethoden",null,null,null,null,null,"",null,null,{"$f":"'M5'!K54","v":0},"mind. 1 = 2 Punkte; mind. 3 = 3 Punkte",null,null," "]
[null,"Bei vielen Erkrankungen werden aus einer Heilmitteltherapie heraus Anweisungen zu einem Eigenübungsprogramm gegeben, welches dauerhaft und regelmäßig durchgeführt werden soll, z. B. krankengymnastische Übungen, Atemübungen oder logopädische Übungen. Des Weiteren sind Maßnahmen zur Sekretelemination (ausgenommen Absaugen) zu nennen oder die Durchführung spezifischer Therapien nach Bobath oder Vojta oder die Durchführung ambulanter Peritonealdialyse (CAPD).","5.11 Therapiemaßnahmen in häuslicher Umgebung",null,null,null,null,"5.8 bis 5.11:","",{"$f":"'M5'!J59","v":0},null,{"$f":"'M5'!K59","v":0},"Summe",{"$f":"'M5'!K60","v":0},null," "]
[null,null,null,"entfällt oder selbständig","wie oft monatlich\n(je 2 Punkte)","wie oft wöchentlich\n(je 8,6 Pkt.)","täglich:  \n\"x\" eingeben\n(60 Pkt.)",null,null,null,null,null,null,null,null," "]
[null,"Gemeint sind hier spezielle Therapiemaßnahmen wie Hämodialyse oder Beatmung, die im häuslichen Umfeld durchgeführt werden können, wenn ständige Überwachung während der Maßnahme durch geschulte Pflegepersonen gewährleistet wird. Spezielle Krankenbeobachtung (gemäß Pos. 24 HKP-Richtlinie) ist meist rund um die Uhr erforderlich, z. B. bei maschineller Beatmung, und ist mit einmal täglich einzutragen.","5.12 Zeit- und technikintensive Maßnahmen in häuslicher Umgebung",null,null,null,null,null,"",null,null,{"$f":"'M5'!K65","v":0},null,null,null," "]
[null,null,null,"entfällt oder selbständig","wie oft monatlich\n(je 1 Punkt)","wie oft wöchentlich\n(je 4,3 Pkt.)",null,null,null,null,null,null,null,null,null," "]
[null,"Hierunter fallen regelmäßige Besuche bei der niedergelassenen Hausärztin bzw. beim niedergelassenen Hausarzt oder Fachärztin bzw. Facharzt zu diagnostischen oder therapeutischen Zwecken. Wenn eine Unterstützung auf dem Weg zu oder bei Arztbesuchen erforderlich ist, ist diese in durchschnittlicher Häufigkeit zu erfassen.","5.13 Arztbesuche",null,null,null,null,null,{"$f":"IF(COUNTA(D89:F89)>1,\"Fehler!\",\"\")","v":""},null,null,{"$f":"'M5'!K69","v":0},"Punkte bei 5.12 bis 5.15 werden zusam-",null,null," "]
[null,"Hier ist das Aufsuchen anderer Therapeuten, z. B. Physiotherapeuten/Krankengymnasten, Ergotherapeuten, Logopäden, Psychotherapeuten, von Krankenhäusern zur ambulanten Behandlung oder Diagnostik oder anderer Einrichtungen des Gesundheitswesens zu berücksichtigen. Sollte der Gesamtzeitaufwand bei der Nutzung dieser Einrichtungen einschließlich der Fahrtzeiten für die Pflegeperson mehr als drei Stunden umfassen, so ist dies unter Punkt 5.15 zu berücksichtigen.","5.14 Besuche anderer medizinischer oder therapeutischer Einrichtungen (bis zu 3 Stunden)",null,null,null,null,null,{"$f":"IF(COUNTA(D90:F90)>1,\"Fehler!\",\"\")","v":""},null,null,{"$f":"'M5'!K73","v":0},"mengezählt. Ab 4,3 = 1 Punkt; ab 8,6 Pkt.",null,null," "]
[null,null,null,"entfällt oder selbständig","wie oft monatlich\n(je 2 Punkte)","wie oft wöchentlich\n(je 8,6 Pkt.)",null,null,null,null,null,null,"= 2 Pkt.; ab 12,9 = 3 Pkt.; ab 60 = 6 Pkt.",null,null," "]
[null,"Bei manchen Erkrankungen kann es notwendig sein, spezialisierte Einrichtungen aufzusuchen, wodurch erhebliche Fahrtzeiten anfallen können. Auch kann es erforderlich sein, sich zeitaufwändiger diagnostischer oder therapeutischer Maßnahmen zu unterziehen z. B. onkologische Behandlung oder Dialyse. Der dafür erforderliche Zeitaufwand für die Pflegeperson muss pro Termin mehr als drei Stunden betragen. Sollte der Zeitaufwand bei der Nutzung dieser Einrichtungen (einschl. Fahrtzeiten) unter drei Stunden liegen, so ist dies unter Punkt5.13 oder 5.14 zu berücksichtigen.","5.15 Zeitlich ausgedehnter Besuch medizinischer oder therapeut. Einrichtungen (länger als 3 Std.)",null,null,null,null,"5.12 bis 5.15:",{"$f":"IF(COUNTA(D92:F92)>1,\"Fehler!\",\"\")","v":""},{"$f":"'M5'!J77","v":0},null,{"$f":"'M5'!K77","v":0},"Summe",{"$f":"'M5'!K78","v":0},null," "]
[null,null,"ab hier bitte wieder ggf. \"x\" eingeben","selbständig","überwiegend selbständig","überwiegend unselbständig","unselbständig",null,null,null,"selbständig","überwiegend selbständig","überwiegend unselbständig","unselbständig",null," "]
[null,"Bei manchen Erkrankungen werden bestimmte Diäten11 oder Essvorschriften oder andere Verhaltensvorschriften von der Ärztin oder vom Arzt angeordnet. Dazu gehören auch die ärztlich angeordnete Nahrungs- und Flüssigkeitszufuhr, in der sowohl die Art und Menge der Lebensmittel wie auch die Art und der Zeitpunkt der Aufnahme aus therapeutischen Gründen geregelt sind, z. B. bei Stoffwechselstörungen, Nahrungsmittelallergien, bei Essstörungen wie Anorexie oder Prader-Willi-Syndrom. Andere Verhaltensvorschriften können sich auf vitale Funktionen beziehen, z. B. Sicherstellung einer Langzeit-Sauerstoff-Therapie bei unruhigen Personen. Diese Vorschriften sind im Einzelnen zu benennen. Im Weiteren sind der Grad der Selbständigkeit bei der Einhaltung dieser Vorschriften und der daraus resultierende Bedarf an personeller Unterstützung zu beurteilen. Es geht hier um die Einsichtsfähigkeit der Person zur Einhaltung der Vorschriften und nicht um die Zubereitung einer Diät oder das An- und Ablegen einer Sauerstoffmaske. Nicht gemeint ist die selbstbestimmte Ablehnung von ärztlichen Vorschriften bei erhaltenen mentalen Funktionen. Liegen keine Vorschriften vor, ist das Feld „entfällt, nicht erforderlich“ anzukreuzen.","5.16 Einhalten einer Diät oder anderer krankheits- oder therapiebedingter Verhaltensvorschriften",null,null,null,null,null,{"$f":"IF(COUNTA(D94:G94)>1,\"Fehler!\",\"\")","v":""},{"$f":"'M5'!J83","v":0},"Die Person kann die Vorschriften selbständig einhalten. Das Bereitstellen einer Diät reicht aus. Liegen keine Vorschriften vor, ist das Feld „entfällt, nicht erforderlich“ anzukreuzen.","Die Person benötigt Erinnerung, Anleitung. In der Regel reicht das Bereitstellen der Diät nicht aus. Darüber hinausgehendes Eingreifen ist maximal einmal täglich erforderlich.","Die Person benötigt meistens Anleitung, Beaufsichtigung. Das Bereitstellen der Diät reicht nicht aus. Darüber hinausgehendes Eingreifen ist mehrmals täglich erforderlich.","Die Person benötigt immer Anleitung, Beaufsichtigung. Das Bereitstellen der Diät reicht nicht aus. Darüber hinausgehendes Eingreifen ist (fast) durchgehend erforderlich.",null," "]
[null,null,null,null,null,null,null,null,null,null,null,null,null,null,null," "]
[null,null,null,"Schwellenwerte (wenn erreicht, dann 1-4 Punkte bei \"Punkte Modul\")",null,null,null,"Gewichtung\n15 %","Modul","Summe Modul","Punkte Modul (0-4)","gewichtet Modul",null,"gewichtet Gesamt","Pflegegrad"," "]
[null,null,null,{"$f":"'M6'!F2","v":1},{"$f":"'M6'!G2","v":4},{"$f":"'M6'!H2","v":7},{"$f":"'M6'!I2","v":12},{"$f":"'M6'!J2","v":3.75},6,{"$f":"'M6'!L2","v":0},{"$f":"'M6'!M2","v":0},{"$f":"'M6'!N2","v":0},null,{"$f":"'M6'!P2","v":0},{"$f":"'M6'!Q2","v":0}," "]
[null,"Zu bewerten ist, ob die Person die jeweilige Aktivität praktisch durchführen kann. Es ist unerheblich, ob die Beeinträchtigungen der Selbständigkeit aufgrund von Schädigungen somatischer oder mentaler Funktionen bestehen oder ob Teilaspekte bereits in anderen Modulen berücksichtigt worden sind.","6. Gestaltung des Alltagslebens und sozialer Kontakte","selbständig","überwiegend selbständig","überwiegend unselbständig","unselbständig",null,"Fehler-Hinweis","Punkte","selbständig","überwiegend selbständig","überwiegend unselbständig","unselbständig",null," "]
[null,"Den Tagesablauf nach individuellen Gewohnheiten und Vorlieben einteilen und bewusst gestalten und ggf. an äußere Veränderungen anpassen: Dies erfordert planerische Fähigkeiten zur Umsetzung von Alltagsroutinen. Zu beurteilen ist, ob die Person von sich aus festlegen kann, ob und welche Aktivitäten sie im Laufe des Tages durchführen möchte, z. B. wann sie baden, essen oder zu Bett gehen oder ob und wann sie Fernsehen oder spazieren gehen möchte. Solche Festlegungen setzen voraus, dass die zeitliche Orientierung zumindest teilweise erhalten ist. Die Gutachterin bzw. der Gutachter kann dies prüfen, indem er sich z. B. den bisherigen oder künftigen Tagesablauf schildern lässt.","6.1 Gestaltung des Tagesablaufs und Anpassung an Veränderungen",null,null,null,null,"jew. 0-3",{"$f":"IF(COUNTA(D99:G99)>1,\"Fehler!\",\"\")","v":""},{"$f":"'M6'!J7","v":0},"Die Person kann die beschriebene Aktivität ohne personelle Hilfe durchführen.","Die Routineabläufe können weitgehend selbständig gestaltet werden, bei ungewohnten Veränderungen ist Unterstützung notwendig. Es reichen z. B. Erinnerungshilfen an einzelne vereinbarte Termine. Überwiegend selbständig ist eine Person beispielsweise auch dann, wenn ihre Kommunikationsfähigkeit oder Sinneswahrnehmung stark beeinträchtigt ist und sie daher Hilfe benötigt, um den Tagesablauf mit anderen Menschen abzustimmen.","Die Person benötigt Hilfe beim Planen des Routinetagesablaufs. Sie ist aber in der Lage, Zustimmung oder Ablehnung zu Strukturierungsangeboten zu signalisieren. Sie kann eigene Planungen häufig nicht einhalten, da diese wieder vergessen werden. Deshalb ist über den ganzen Tag hinweg eine Erinnerung bzw. Aufforderung erforderlich. Überwiegend unselbständig ist auch eine Person, die zwar selbst planen und entscheiden kann, aber für jegliche Umsetzung personelle Hilfe benötigt.","Mitwirkung an der Tagesstrukturierung oder Orientierung an vorgegebenen Strukturen ist nicht oder nur minimal möglich.",null," "]
[null,"Nach individuellen Gewohnheiten einen Tag-Nacht-Rhythmus einhalten und für ausreichende Ruhe- und Schlafphasen sorgen: Dazu gehört die Fähigkeit, die Notwendigkeit von Ruhephasen erkennen, sich ausruhen und mit Phasen der Schlaflosigkeit umgehen aber auch somatischen Funktionen, um ins Bett zu kommen und die Ruhephasen insbesondere nachts einhalten zu können.","6.2 Ruhen und Schlafen",null,null,null,null,"Punkte","",{"$f":"'M6'!J12","v":0},"Die Person kann die beschriebene Aktivität ohne personelle Hilfe durchführen","Die Person benötigt personelle Hilfe beim Aufstehen oder Zu-Bett-Gehen, z. B. Transferhilfen oder zeitliche Orientierungshilfen beim Wecken oder Aufforderung schlafen zu gehen oder einzelne Hilfen wie z. B. Abdunkeln des Schlafraumes. Die Nachtruhe ist meist ungestört, nur gelegentlich entsteht nachts ein Hilfebedarf.","Es treten regelmäßig Einschlafprobleme oder nächtliche Unruhe auf, die die Person größtenteils nicht allein bewältigen kann. Deshalb sind regelmäßige Einschlafrituale und beruhigende Ansprache in der Nacht erforderlich. Überwiegend unselbständig ist auch eine Person, die wegen hochgradiger motorischer Beeinträchtigung regelmäßig in der Nacht personeller Hilfe bedarf, um weiterschlafen zu können, z. B. bei Lagewechsel oder Toilettengängen in der Nacht.","Die Person verfügt über keinen oder einen gestörten Schlaf-Wach-Rhythmus. Dies gilt u. a. für mobile gerontopsychiatrisch erkrankte Personen und auch für Menschen, die keinerlei Aktivitäten ausüben, z. B. im Wachkoma oder Personen, die regelmäßig mindestens dreimal in der Nacht personelle Unterstützung benötigen.",null," "]
[null,"Die verfügbare Zeit nutzen, um Aktivitäten durchzuführen, die den eigenen Vorlieben und Interessen entsprechen: „Verfügbare Zeit“ ist in diesem Zusammenhang definiert als Zeit, die nicht durch Notwendigkeiten wie Ruhen, Schlafen, Essen, Mahlzeitenzubereitung, Körperpflege, Arbeit etc. gebunden ist („freie“ Zeit). Bei der Beurteilung geht es vorrangig um die Fähigkeit nach individuellen kognitiven, manuellen, visuellen oder auditiven Fähigkeiten und Bedürfnissen, geeignete Aktivitäten der Freizeitbeschäftigung auszuwählen und auch praktisch durchzuführen, z. B. Handarbeiten, Basteln, Bücher oder Zeitschriften lesen, Sendungen im Radio oder Fernsehen verfolgen, Computer nutzen. Dies gilt auch für Personen, die Angebote auswählen und steuern können, aber aufgrund somatischer Einschränkungen für die praktische Durchführung personelle Unterstützung benötigen.","6.3 Sich beschäftigen",null,null,null,null,null,"",{"$f":"'M6'!J17","v":0},"Die Person kann die beschriebene Aktivität ohne personelle Hilfe durchführen.","Es ist nur in geringem Maße Hilfe erforderlich, z. B. Zurechtlegen und Richten von Gegenständen, z. B.: Utensilien wie Bastelmaterial, Fernbedienung, Kopfhörer, o.ä. oder Erinnerung an gewohnte Aktivitäten, Motivation oder Unterstützung bei der Entscheidungsfindung (Vorschläge unterbreiten).","Die Person kann sich an Beschäftigungen beteiligen, aber nur mit (kontinuierlicher) Anleitung, Begleitung oder motorische Unterstützung.","Die Person kann an der Entscheidung oder Durchführung nicht nennenswert mitwirken. Sie zeigt keine Eigeninitiative, kann Anleitung und Aufforderungen nicht kognitiv umsetzen, beteiligt sich nicht oder nur minimal an angebotenen Beschäftigungen.",null," "]
[null,"Längere Zeitabschnitte überschauend über den Tag hinaus planen: Dies kann beispielsweise anhand der Frage beurteilt werden, ob Vorstellungen oder Wünsche zu anstehenden Festlichkeiten wie Geburtstag oder Jahresfeste bestehen, ob die Zeitabläufe eingeschätzt werden können, z. B. vorgegebene Strukturen wie regelmäßige Termine nachvollzogen werden können oder ob die körperlichen Fähigkeiten vorhanden sind, um eigene Zukunftsplanungen mit anderen Menschen kommunizieren zu können. Es ist auch zu berücksichtigen, wenn stark ausgeprägte psychische Problemlagen (z. B. Ängste) es verhindern, sich mit Fragen des zukünftigen Handelns auseinanderzusetzen.","6.4 Vornehmen von in die Zukunft gerichteten Planungen",null,null,null,null,null,"",{"$f":"'M6'!J22","v":0},"Die Person kann die beschriebene Aktivität ohne personelle Hilfe durchführen.","Die Person nimmt sich etwas vor, muss aber erinnert werden, dies auch durchzuführen. Oder sie benötigt infolge körperlicher Beeinträchtigungen regelmäßig Hilfe im Bereich der Kommunikation, um sich mit anderen Menschen verabreden zu können.","Die Person plant von sich aus nicht, entscheidet aber mit Unterstützung durch andere Personen. Sie muss an die Umsetzung der eigenen Entscheidungen erinnert werden oder benötigt bei der Umsetzung emotionale oder körperliche Unterstützung. Überwiegend unselbständig ist daher auch eine Person, die zwar kognitiv in der Lage ist, selbständig zu planen und zu entscheiden, die aber so stark somatisch beeinträchtigt ist, dass sie für alle Umsetzungsschritte personelle Hilfe benötigt.","Die Person verfügt nicht über Zeitvorstellungen für Planungen über den Tag hinaus, auch bei Vorgabe von Auswahloptionen wird weder Zustimmung noch Ablehnung signalisiert.",null," "]
[null,"Im direkten Kontakt mit Angehörigen, Pflegepersonen, Mitbewohnern oder Besuchern umgehen, Kontakt aufnehmen, Personen ansprechen, auf Ansprache reagieren.","6.5 Interaktion mit Personen im direkten Kontakt",null,null,null,null,null,"",{"$f":"'M6'!J27","v":0},"Die Person kann die beschriebene Aktivität ohne personelle Hilfe durchführen.","Umgang mit bekannten Personen erfolgt selbständig, zur Kontaktaufnahme mit Fremden ist Unterstützung erforderlich z. B. Anregung, zu einer neuen Mitbewohnerin oder einem neuen Mitbewohner Kontakt aufzunehmen oder punktuelle Unterstützung bei der Überwindung von Sprech-, Sprach- und Hörproblemen.","Die Person ergreift von sich aus kaum Initiative. Sie muss angesprochen oder motiviert werden, reagiert aber verbal oder deutlich erkennbar durch andere Formen der Kommunikation (Blickkontakt, Mimik, Gestik). Überwiegend unselbständig ist auch eine Person, die auf weitgehende Unterstützung bei der Überwindung von Sprech-, Sprach oder Hörproblemen angewiesen ist.","Die Person reagiert nicht auf Ansprache. Auch nonverbale Kontaktversuche, z. B. Berührungen führen zu keiner nennenswerten Reaktion.",null," "]
[null,"Bestehende Kontakte zu Freunden, Bekannten, Nachbarn aufrechterhalten, beenden oder zeitweise ablehnen: Dazu gehört auch die Fähigkeit, mit einfachen technischen Kommunikationsmitteln wie Telefon umgehen zu können z. B. Besuche verabreden oder Telefon- oder Brief- oder Mail-Kontakte.","6.6 Kontaktpflege zu Personen außerhalb des direkten Umfeldes",null,null,null,null,null,"",{"$f":"'M6'!J32","v":0},"Die Person kann die beschriebene Aktivität ohne personelle Hilfe durchführen.","Die Person kann planen, braucht aber Hilfe beim Umsetzen wie z. B. Erinnerungszettel bereitlegen oder Telefonnummern mit Namen oder mit Bild versehen, Erinnern und Nachfragen, ob Kontakt hergestellt wurde, oder Erinnern an Terminabsprachen. Pflegeperson wählt die Telefonnummer, die Person führt dann das Gespräch; oder die Person beauftragt die Pflegeperson, ein Treffen mit Freunden, Bekannten zu verabreden.","Die Kontaktgestaltung der Person ist eher reaktiv. Sie sucht von sich aus kaum Kontakt, wirkt aber mit, wenn beispielsweise die Pflegeperson die Initiative ergreift. Überwiegend unselbständig ist auch, wer aufgrund von somatischen Beeinträchtigungen während der Kontaktaufnahme personelle Unterstützung durch die Bezugsperson, z. B. bei der Nutzung von Kommunikationshilfen (Telefon halten) oder bei der Überwindung von Sprech-, Sprach- oder Hörproblemen benötigt.","Die Person nimmt keinen Kontakt außerhalb des  direkten Umfeldes auf und reagiert nicht auf Anregungen zur Kontaktaufnahme.",null," "]

{"sheet":"Pflegegrad","index":1,"n_rows":9,"n_cols":12,"rows_kept":9,"cut":false,"hidden":false,"merged":[[0,1,0,11],[1,8,1,10],[7,7,8,7],[7,8,8,8],[7,9,8,9],[7,10,8,10],[3,5,4,6],[7,11,8,11]]}
[null,"Alle Angaben ohne Gewähr! Diese Exceldatei wurde auf der Grundlage der Begutachtungs-Richtlinien (BRi) vom 15.04.2016 sowie des zweiten Pflegestärkungsgesetzes (PSG II) erstellt von: Günther Schwarz, Alzheimer Beratung, Evangelische Gesellschaft, Stuttgart."]
[null,null,"Beeinträchtigung der Selbständigkeit (0=gering, 4=hoch)","Gewichteter Punktwert (Punkte mal ¼ Prozentwert)","Gewichtung der Selbständig-keitswerte",null,null,null,"bei Punktwerten (Schwellenwerten)\nvon - bis",null,null,"Begriffsdefinition"]
[null,{"$f":"'M1'!B2","v":"1. Mobilität"},{"$f":"'M1'!M2","v":0},{"$f":"'M1'!N2","v":0},0.1,null,null,"Kein Pflegegrad",0,"-",12.49]
[null,{"$f":"'M2'!B2","v":"2. Kognitive und kommunikative Fähigkeiten"},{"$f":"'M2'!M2","v":0},{"$f":"IF('M2'!N2>='M3'!N2,'M2'!N2,\"--\")","v":0},"15%*","* von Modul 2 und 3 geht nur der höhere Wert von beiden in die Berechnung ein.",null,"Pflegegrad 1",12.5,"-",26.99,"geringe Beeinträchtigung der Selbständigkeit oder der Fähigkeiten"]
[null,{"$f":"'M3'!B2","v":"3. Verhaltensweisen und psychische Problemlagen"},{"$f":"'M3'!M2","v":0},{"$f":"IF('M3'!N2>'M2'!N2,'M3'!N2,\"--\")","v":"--"},"15%*",null,null,"Pflegegrad 2",27,"-",47.49,"erhebliche Beeinträchtigung der Selbständigkeit oder der Fähigkeiten"]
[null,{"$f":"'M4'!B2","v":"4. Selbstversorgung"},{"$f":"'M4'!M2","v":0},{"$f":"'M4'!N2","v":0},0.4,null,null,"Pflegegrad 3",47.5,"-",69.989999999999995,"schwere Beeinträchtigung der Selbständigkeit oder der Fähigkeiten"]
[null,{"$f":"'M5'!B2","v":"5. Umgang mit krankheits- / therapiebedingten Anforderungen und Belastungen"},{"$f":"'M5'!M2","v":0},{"$f":"'M5'!N2","v":0},0.2,null,null,"Pflegegrad 4",70,"-",89.99,"schwerste Beeinträchtigung der Selbständigkeit oder der Fähigkeiten"]
[null,{"$f":"'M6'!B2","v":"6. Gestaltung des Alltagslebens und sozialer Kontakte"},{"$f":"'M6'!M2","v":0},{"$f":"'M6'!N2","v":0},0.15,null,null,"Pflegegrad 5",90,"-",100,"schwerste Beeinträchtigung der Selbständigkeit oder der Fähigkeiten mit besonderen Anforderungen an die pflegerische Versorgung (auch bei besonderer Bedarfskonstellation)"]
[null,null,"Gesamtpunktwert (max. 100)",{"$f":"SUM(D3:D8)","v":0},{"$f":"IF(D9>=I8,5,IF(D9>=I7,4,IF(D9>=I6,3,IF(D9>=I5,2,IF(D9>=I4,1,0)))))","v":0},"Pflegegrad"]

{"sheet":"Anleitung","index":2,"n_rows":133,"n_cols":2,"rows_kept":133,"cut":false,"hidden":false,"merged":[]}
[null,"Anleitung: Exceldatei zur Begutachtung in Pflegegrade"]
[]
[null,"Diese Exceldatei wurde auf der Grundlage der Begutachtungs-Richtlinien (BRi) "]
[null,"vom 15.04.2016 sowie des zweiten Pflegestärkungsgesetzes (PSG II) erstellt. "]
[null,"(nur zur Beurteilung von Personen über 18 Jahren. Für Kinder und Jugendliche "]
[null,"gelten abweichende Regelungen)"]
[null,"Stand: 9.10.16"]
[null,"Erstellt von: Günther Schwarz, Alzheimer Beratung, Evang. Gesellschaft, Stuttgart. ©"]
[null,"Für die Richtigkeit und Entsprechung der Angaben übernehme ich keine Gewähr."]
[null,"(Anregungen oder Hinweise zu Fehlern bitte an guenther.schwarz@eva-stuttgart.de)"]
[]
[null,"Information zum neuen Begutachtungsassessment (NBA) ab 2017"]
[null,"und Anleitung zu dieser Datei"]
[null,"In dieser Datei sind alle relevanten Teile des Begutachtungsassessments "]
[null,"eingearbeitet, die für die Bestimmung des Pflegegrads ab 2017 relevant sind. "]
[null,"Nach der Eingabe aller Bewertungen im Arbeitsblatt \"Bewertungen\" wird der "]
[null,"Pflegegrad automatisch entsprechend der Berechnungsregeln berechnet."]
[null,"(Um das Arbeitsblatt \"Bewertungen\" anzuzeigen, klicken Sie unten links auf den"]
[null,"gelben Reiter \"Bewertungen\". Zur Anleitung kommen Sie zurück durch Klick auf den "]
[null,"weißen Reiter \"Anleitung\")."]
[]
[null,"Anzeigen von Erläuterungen aus den Begutachtungsrichtlinien:"]
[null,"Um die Bewertungen entsprechend der Begutachtungsrichtlinien korrekt vornehmen"]
[null,"zu können, müssen Sie sich an die Erläuterungen in den Richtlinien halten."]
[null,"Beim Klicken auf die hellblauen Felder vor den Modulen und in Spalte M-Q erscheinen"]
[null,"in der Bearbeitungsleiste (oben über den Spaltenbezeichnungen) die zum"]
[null,"Modul oder dem Kriterium gehörenden Erläuterungen aus den Richtlinien."]
[null,"Die Erläuterungen erscheinen in mehreren Zeilen (besser lesbar), wenn Sie rechts"]
[null,"neben der Bearbeitungsleiste auf das kleine graue Viereck (Schaltfläche) mit Pfeil"]
[null,"nach unten (˅) klicken. Wenn der Text aus mehr als drei Zeilen besteht, könne Sie"]
[null,"mit Hilfe der zwei darunterliegenden Schaltflächen den Text nach unten oder oben"]
[null,"verschieben (scrollen). Dies geht ebenso mit Hilfe des Mausrads."]
[null,"Die gesamten Richtlinien sind als Download zu finden bei: www.mds-ev.de unter"]
[null,"der Rubrik \"Richtlinien\" / Pflegebedürftigkeit\"."]
[]
[null,"Vorgehensweise bei der Eingabe der Bewertungen:"]
[null,"Kreuzen Sie der Reihe nach bei jedem der Punkte 1.1 bis 6.6 eine Bewertung an "]
[null,"(einfach eines der gelben Felder anklicken, dann erscheint das \"X\". Durch Taste \"Entf\""]
[null," das \"X\" ggf. wieder löschen). Bei 5.1 bis 5.11 ist teilweise auch eine Zahl einzugeben. "]
[null,"Darauf wird hingewiesen. Scrollen Sie mit dem Mausrad das Blatt nach unten oder oben."]
[null,"Wenn Sie eine Frage frei lassen (kein \"x\" eintragen), wird dies so gewertet, als ob"]
[null,"\"selbständig\" bzw. \"unbeeinträchtigt\" angekreuzt worden wäre (0 Punkte)."]
[null,"Gehen Sie der Reihe nach die Module 1-6 (Mobilität, Kognition, …..) durch."]
[null,"Wenn Sie versehentlich zwei Einschätzungen in einer Zeile machen, wird in Spalte \"I\""]
[null,"ein Fehlerhinweis gegeben."]
[]
[null,"Das Ergebnis:"]
[null,"Den errechneten Pflegegrad finden Sie in der Spalte \"O\" im rosa Feld über jedem "]
[null,"der 6 Module. Erst wenn Sie bei allen Modulen Bewertungen gemacht haben,"]
[null,"wird der Pflegegrad korrekt berechnet."]
[null,"In der Kopfzeile über jedem der 6 Module finden Sie weitere Informationen."]
[null,"Im türkisen Feld links neben dem Pflegegrad wird der gewichtete Gesamtpunktwert "]
[null,"angezeigt, der zwischen 0-100 liegt. Links daneben in Spalte \"L\" (hellblaues Feld)"]
[null,"der gewichtete Punktwert des betreffenden Moduls angezeigt. Dann im hellbraunen"]
[null,"Feld der sich im Modul ergebende Grad der Selbständigkeit (zwischen 0 bis 4)."]
[null,"Und im hellgrünen Feld steht die Summe der Punkte des Moduls)"]
[null,"In den grauen Feldern in Spalte \"D\" bis \"G\" finden Sie die Schwellenwerte zu jedem"]
[null,"Modul. Wenn die Summe der Punkte im Modul den Schwellenwert links in Spalte \"D\""]
[null,"erreicht, dann ist die Selbständigkeit leicht beeinträchtigt (Grad 1). Wenn der Wert"]
[null,"in Spalte \"E\" erreicht wird, ist der Beeinträchtigungsgrad 2 erreicht, usw."]
[null,"Eine Übersicht zu allen Punktwerten der Module und dem sich ergebenden Pflegegrad"]
[null,"finden Sie im Arbeitsblatt \"Pflegegrad\" (rosa Reiter unten)."]
[null,"Dort finden Sie auch weitere Informationen wie beispielsweise mit welcher"]
[null,"prozentualen Gewichtung die Punktwerte der einzelnen Module in den"]
[null,"Gesamtpunktwert einfließen. "]
[null,"Sie können alle Tabellen bzw. Arbeitsblätter ausdrucken. Ebenso können Sie"]
[null,"in der Spalte \"Notizen\" (rechts) eigene Anmerkungen in jede Zeile eingeben."]
[]
[null,"Überprüfen, ob ein höherer Pflegegrad anerkannt werden müsste"]
[null,"Tragen Sie zunächst aus dem zugesandten Gutachten alle Bewertungen in das"]
[null,"Arbeitsblatt \"Bewertungen\" ein. Dann prüfen Sie bei jedem der 6 Module, wo die"]
[null,"Summe der Punkte des Moduls (hellgrüne Felder) den nächst höheren Schwellenwert "]
[null,"(graue Felder in Spalte D-G) am ehesten erreicht. Bei diesem Modul können"]
[null,"bereits kleine Veränderungen bei den einzelnen Einschätzungen zu einem"]
[null,"Sprung in den nächst höheren Beeiträchtigungsgrad führen. Prüfen Sie daher"]
[null,"zunächst in diesem Modul, wo Sie zu einer vom Gutachten abweichenden "]
[null,"Einschätzung kommen und tragen Sie diese ein. Tragen Sie in Spalte \"P\" (Notizen)"]
[null,"jeweils in der Zeile einen kurzen Hinweis zur Änderung ein, damit Sie in der "]
[null,"Begründung Ihres Widerspruchs gegen die Einstufung darauf Bezug nehmen können."]
[null,"Gehen Sie so gegebenenfalls der Reihe nach alle Module und Einschätzungen"]
[null,"durch. Im Arbeitsblatt \"Pflegegrad\" sehen Sie zudem, ob der Gesamtpunktwert im"]
[null,"jetzigen Gutachten bereits nahe am Schwellenwert für den nächst höheren Pflegegrad"]
[null," liegt. Aufgrund dessen können Sie einschätzen, wie stark eine neue Einschätzung"]
[null,"von der des Gutachtens abweichen muss, um einen höheren Pflegerad zu"]
[null,"erreichen."]
[null,"(Alternativ zum Eintrag eines Hinweises in Spalte \"P\" (Notizen) können Sie auch mit"]
[null,"Rechtsklick auf ein Feld \"Kommentar einfügen\" auswählen und einen Texthinweis"]
[null,"eingeben und als Kommentar anzeigen lassen. Wollen Sie alle Kommentare sehen,"]
[null,"müssen Sie im Menü \"Überprüfen\" (oben) auf \"Alle Kommentare anzeigen\" klicken.)"]
[]
[null,"Weitere Arbeitsblätter (Richtlinien, Haushalt, Außer Haus, M1-M6, Druckvorlage)"]
[null,"Im Arbeitsblatt \"Richtlinien\" finden Sie wichtige Auszüge aus den Begutachtungs-"]
[null,"Richtlinien für die Einstufung in Pflegegrade."]
[null,"In den Arbeitsblättern \"Haushalt\" und \"Außer Haus\" können Sie weitere Bewertungen"]
[null,"vornehmen, die jedoch für die Bestimmung des Pflegegrads nicht relevant sind."]
[null,"Die Bewertungen sollen die Gutachter bei der Beratung und Empfehlung weiterer"]
[null,"Hilfen unterstützen."]
[null,"Die Arbeitsblätter \"M1-M6\" dienen lediglich dazu, die automatischen Berechnung der "]
[null,"eingegebenen Bewertungen im Arbeitsblatt \"Bewertungen\" durchzuführen. Die im Blatt"]
[null,"\"Bewertungen\" eingegebenen Daten werden dort nochmals für jedes Modul angezeigt. "]
[null,"Ganz rechts im Arbeitsblatt \"Druckvorlage\" finden Sie eine Vorlage zum Ausdrucken,"]
[null,"die sie von Hand ausfüllen und ankrezen können."]
[]
[null,"Verstehen der Berechnungsregel:"]
[null,"Wenn Sie verstehen wollen wie der Gesamtpunktwert zustande kommt, erhalten Sie"]
[null,"hier eine kurze Erklärung: Bei jedem der Unterpunkte 1.1 bis 6.6 ergeben sich je"]
[null,"nach Ausmaß der Beeinträchtigung der Selbständigkeit oder der schwere der"]
[null,"Problemlagen bis zu 4 Punkte (teils auch mehr Punkte). Die Punkte jedes Moduls"]
[null,"werden zunächst in der Regel einfach zusammengerechnet (siehe grüne Spalte"]
[null,"Summe Modul). Links davon sind in den hellgrauen Feldern in jeder Kopfzeile"]
[null,"die für jedes Modul vorgegebenen Schwellenwerte und der Gewichtungsfaktor "]
[null,"angegeben. Je nachdem zwischen welchen Schwellenwerten sich der Gesamtpunktwert"]
[null,"befindet, ergibt sich für das Modul ein Wert für die Beeinträchtigung der Selbständigkeit"]
[null,"(hellbraunes Feld) zwischen 0 bis 4 Punkten. Dieser Punktwert wird nun noch"]
[null,"mit dem Gewichtungsfaktor (hellgraues Feld) multipliziert. Der Gewichtungs-"]
[null,"faktor entspricht der prozentualen Gewichtung, die auch in der Tabelle beim Reiter"]
[null,"Pflegegrad angegeben ist. Daraus ergibt sich der gewichtete Gesamtpunktwert (türkis)"]
[null,"des Moduls. Die gewichteten Gesamtpunktwerte werden dann wie in der Tabelle"]
[null,"\"Pflegegrad\" zu sehen ist zusammengezählt. Dabei wird von Modul 2 und 3"]
[null,"nur der höhere Wert von beiden Modulen berücksichtigt bzw. hinzugezählt."]
[]
[null,"Wer in 2016 schon eine Pflegestufe hat wird 2017 nicht neu begutachtet:"]
[null,"Die Begutachtung werden wie bisher Gutachter des Medizinischen Dienstes "]
[null,"durchführen."]
[null,"Bei wem bereits im Jahr 2016 oder früher eine Pflegestufe anerkannt wurde,"]
[null,"wird keine erneute Begutachtung nach dem neuen Verfahren durchgeführt."]
[null,"Diesen Personen wird automatisch am 1.1.2017 ein Pflegegrad zuerkannt,"]
[null,"der um eine Stufe höher ist als die bisherige Pflegestufe. Bei Menschen mit"]
[null,"zusätzlich anerkannter eingeschränkter Alltagskompetenz (Demenzkranke)"]
[null,"wird sogar ein um zwei Stufen höherer Pflegegrad zuerkannt. Diese automatische"]
[null,"Überleitung von der bisherigen Pflegestufe in einen Pflegegrad ist in der Regel"]
[null,"günstiger als wenn eine erneute Begutachtung nach dem neuen Verfahren"]
[null,"durchgeführt würde."]

{"sheet":"Richtlinien","index":3,"n_rows":129,"n_cols":2,"rows_kept":129,"cut":false,"hidden":false,"merged":[]}
[]
[null,"Wichtige Auszüge aus den Begutachtungs-Richtlinien (Bri)"]
[null,"vom 16.4.2016:"]
[]
[null,"4.8.1 Grundsätze bei der Feststellung der Pflegebedürftigkeit"]
[null,"Als pflegebedürftig im Sinne des SGB XI gelten Personen, die gesundheitliche "]
[null,"Beeinträchtigungen der Selbständigkeit oder der Fähigkeiten aufweisen und deshalb"]
[null,"der Hilfe durch andere bedürfen. Es muss sich um Personen handeln, die körperliche,"]
[null,"kognitive oder psychische Beeinträchtigungen oder gesundheitlich bedingte"]
[null,"Belastungen oder Anforderungen nicht selbständig kompensieren oder bewältigen"]
[null,"können. Die Pflegebedürftigkeit muss auf Dauer, voraussichtlich für mindestens"]
[null,"sechs Monate, und mit mindestens der in § 15 SGB XI festgelegten Schwere bestehen."]
[]
[null,"4.8.2 Feststellung der gesundheitlichen bedingten Beeinträchtigungen der"]
[null,"Selbständigkeit oder der Fähigkeiten"]
[null,"Im Mittelpunkt steht die Beurteilung der Selbständigkeit eines Menschen in sechs"]
[null,"Lebensbereichen, die jeden Menschen jeden Tag betreffen. Selbständig ist eine Person,"]
[null,"die eine Handlung bzw. Aktivität alleine, d. h. ohne Unterstützung durch andere"]
[null,"Personen oder unter Nutzung von Hilfsmitteln durchführen kann. Die Selbständigkeit"]
[null,"einer Person bei der Ausführung bestimmter Handlungen bzw. Aktivitäten"]
[null,"wird unter der Annahme bewertet, dass sie diese ausführen möchte. Es ist unerheblich,"]
[null,"welche Hilfeleistungen tatsächlich erbracht werden. Die Beurteilung der"]
[null,"Selbständigkeit erfolgt auch dann, wenn die Person die betreffende Handlung bzw."]
[null,"Aktivität in ihrem Lebensalltag nicht (mehr) durchführt. So ist beispielsweise die"]
[null,"Selbständigkeit beim Treppen zu steigen, auch dann zu beurteilen, wenn die Wohnung"]
[null,"im Erdgeschoss liegt und in der Wohnung gar keine Treppen vorhanden sind."]
[null,"Für die Beurteilung der Selbständigkeit ist unerheblich, welche personelle Unterstützung"]
[null,"die Person bei einer Handlung bzw. Aktivität tatsächlich erhält."]
[]
[null,"Grundsätzlich gilt, dass vorübergehende (voraussichtlich weniger als sechs Monate)"]
[null,"oder vereinzelt (weniger als einmal pro Woche) auftretende Beeinträchtigungen"]
[null,"der Selbständigkeit oder der Fähigkeiten nicht zu berücksichtigen sind."]
[]
[null,"4.8.3 Beurteilung von Selbständigkeit"]
[null,"Für die Zwecke der Beurteilung ist eine Person selbständig, die eine Handlung bzw."]
[null,"Aktivität alleine, d. h. ohne Unterstützung durch andere Personen oder unter Nutzung"]
[null,"von Hilfsmitteln durchführen kann."]
[null,"Dementsprechend liegt eine Beeinträchtigung von Selbständigkeit nur vor, wenn"]
[null,"personelle Hilfe erforderlich ist. Unter personeller Hilfe versteht man alle unterstützenden"]
[null,"Handlungen, die eine Person benötigt, um die betreffenden Aktivitäten"]
[null,"durchzuführen. Ob personelle Hilfe durch Pflegepersonen oder Pflegekräfte erbracht"]
[null,"wird, ist für die Bewertung nicht relevant. Diese Frage spielt allerdings für"]
[null,"die Pflege- und Hilfeplanung eine Rolle."]
[null,"Zu bewerten ist, ob die Person die jeweilige Handlung bzw. Aktivität praktisch"]
[null,"durchführen kann. In der Regel sind dazu sowohl somatische als auch mentale "]
[null,"Fähigkeiten erforderlich."]
[null,"Selbständigkeit wird in den Modulen 1, 4 und 6 mittels einer vierstufigen Skala mit"]
[null,"folgenden Ausprägungen bewertet:"]
[]
[null,"0 = selbständig"]
[null,"Die Person kann die Handlung bzw. Aktivität in der Regel selbständig durchführen."]
[null,"Möglicherweise ist die Durchführung erschwert oder verlangsamt oder nur unter"]
[null,"Nutzung von Hilfs-/Pflegehilfsmitteln möglich. Entscheidend ist jedoch, dass die"]
[null,"Person keine personelle Hilfe benötigt. Vorübergehende oder nur vereinzelt auftretende"]
[null,"Beeinträchtigungen sind nicht zu berücksichtigen."]
[]
[null,"1 = überwiegend selbständig"]
[null,"Die Person kann den größten Teil der Aktivität selbständig durchführen. Dementsprechend"]
[null,"entsteht nur ein geringer, mäßiger Aufwand für die Pflegeperson. Überwiegend"]
[null,"selbständig ist eine Person also dann, wenn lediglich folgende Hilfestellungen"]
[null,"erforderlich sind:"]
[null,"-  Unmittelbares Zurechtlegen, Richten von Gegenständen meint die Vorbereitung"]
[null,"einer Aktivität durch Bereitstellung sächlicher Hilfen, damit die Person die"]
[null,"Aktivität dann selbständig durchführen kann. Dabei wird vorausgesetzt, dass"]
[null,"die Umgebung der antragstellenden Person so eingerichtet wird, dass die Person"]
[null,"so weit wie möglich selbständig an alle notwendigen Utensilien herankommt"]
[null,"und diese nicht jedes Mal angereicht werden müssen. Wenn dies aber"]
[null,"nicht ausreicht (z. B. die Seife nicht von der Ablage am Waschbecken genommen"]
[null,"werden kann, sondern direkt in die Hand gegeben werden muss), führt"]
[null,"diese Beeinträchtigung zur Bewertung überwiegend selbständig."]
[null,"-  Aufforderung bedeutet, dass die Pflegeperson (ggf. auch mehrfach) einen Anstoß"]
[null,"geben muss, damit die oder der Betroffene die jeweilige Tätigkeit allein"]
[null,"durchführt. Auch wenn nur einzelne Handreichungen erforderlich sind, ist die"]
[null,"Person als überwiegend selbständig zu beurteilen (punktueller Hilfebedarf, der"]
[null,"lediglich an einzelnen Stellen des Handlungsablaufs auftritt). Einzelne Hinweise"]
[null,"zur Abfolge der Einzelschritte meinen, dass zwischenzeitlich immer wieder ein"]
[null,"Anstoß gegeben werden muss, dann aber Teilverrichtungen selbst ausgeführt"]
[null,"werden können."]
[null,"-  Unterstützung bei der Entscheidungsfindung bedeutet, dass z. B. verschiedene"]
[null,"Optionen zur Auswahl angeboten werden, die Person danach aber selbständig"]
[null,"handelt."]
[null,"-  Partielle Beaufsichtigung und Kontrolle meint die Überprüfung, ob die Abfolge"]
[null,"einer Handlung eingehalten wird (ggf. unter Hinführung zu weiteren Teilschritten"]
[null,"oder zur Vervollständigung) sowie die Kontrolle der korrekten und sicheren"]
[null,"Durchführung. Hierzu gehört auch die Überprüfung, ob Absprachen eingehalten"]
[null,"werden."]
[null,"-  Punktuelle Übernahme von Teilhandlungen der Aktivität bedeutet, dass nur"]
[null,"einzelne Handreichungen erforderlich sind, die Person den überwiegenden Teil"]
[null,"der Aktivität aber selbständig durchführt."]
[null,"-  Anwesenheit aus Sicherheitsgründen: Wenn eine Person eine Aktivität selbständig"]
[null,"ausführen kann, aber aus nachvollziehbaren Sicherheitsgründen (z. B."]
[null,"Sturzgefahr, Krampfanfälle) die Anwesenheit einer anderen Person benötigt,"]
[null,"trifft die Bewertung „überwiegend selbständig“ zu."]
[]
[null,"2 = überwiegend unselbständig"]
[null,"Die Person kann die Aktivität nur zu einem geringen Anteil selbständig durchführen."]
[null,"Es sind aber Ressourcen vorhanden, so dass sie sich beteiligen kann. Dies setzt ggf."]
[null,"ständige Anleitung oder aufwändige Motivation auch während der Aktivität voraus"]
[null,"oder Teilschritte der Handlung müssen übernommen werden. Zurechtlegen und"]
[null,"Richten von Gegenständen, wiederholte Aufforderungen oder punktuelle Unterstützungen"]
[null,"reichen nicht aus."]
[null,"Alle der oben genannten Hilfen können auch hier von Bedeutung sein, reichen allerdings"]
[null,"alleine nicht aus. Weitergehende Unterstützung umfasst vor allem:"]
[null,"-  Ständige Motivation im Sinne der motivierenden Begleitung einer Aktivität"]
[null,"(notwendig vor allem bei psychischen Erkrankungen mit Antriebsminderung)."]
[null,"-  Ständige Anleitung bedeutet, dass die Pflegeperson den Handlungsablauf nicht"]
[null,"nur anstoßen, sondern die Handlung demonstrieren oder lenkend begleiten"]
[null,"muss. Dies kann insbesondere dann erforderlich sein, wenn die oder der Betroffene"]
[null,"trotz vorhandener motorischer Fähigkeiten eine konkrete Aktivität"]
[null,"nicht in einem sinnvollen Ablauf durchführen kann."]
[null,"-  Ständige Beaufsichtigung und Kontrolle unterscheidet sich von der oben genannten"]
[null,"„partiellen Beaufsichtigung und Kontrolle“ nur durch das Ausmaß der"]
[null,"erforderlichen Hilfe. Es ist ständige und unmittelbare Eingreifbereitschaft in die"]
[null,"Handlung erforderlich."]
[null,"-  Übernahme von Teilhandlungen der Aktivität bedeutet, dass ein erheblicher"]
[null,"Teil der Handlungsschritte durch die Pflegeperson übernommen wird."]
[]
[null,"3 = unselbständig"]
[null,"Die Person kann die Aktivität in der Regel nicht selbständig durchführen bzw. steuern,"]
[null,"auch nicht in Teilen. Es sind kaum oder keine Ressourcen vorhanden. Ständige"]
[null,"Motivation, Anleitung und Beaufsichtigung reichen auf keinen Fall aus. Die Pflegeperson"]
[null,"muss alle oder nahezu alle Teilhandlungen anstelle der betroffenen Person"]
[null,"durchführen. Eine minimale Beteiligung ist nicht zu berücksichtigen (z. B. wenn sich"]
[null,"die antragstellende Person im sehr geringen Umfang mit Teilhandlungen beteiligt)."]
[null,"Das Einschätzungsinstrument beinhaltet in den Modulen 2, 3 und 5 abgewandelte"]
[null,"Formen dieser Skala, die an den entsprechenden Stellen erläutert werden. Durchgängig"]
[null,"gilt bei diesen Skalen, dass der Grad der Beeinträchtigung mit dem jeweiligen"]
[null,"Punktwert steigt. „0“ bedeutet stets, dass keine Beeinträchtigungen der Selbständigkeit"]
[null,"oder der Fähigkeiten bzw. sonstige Probleme bestehen."]

{"sheet":"Haushalt","index":4,"n_rows":37,"n_cols":17,"rows_kept":37,"cut":false,"hidden":false,"merged":[[1,1,1,4],[0,5,0,8]]}
[null,"Modul",null,"Hinweise","Beim Klicken auf hellblaue Felder vor den Kategorien erscheinen Erläuterungen aus dem Begutachtungsmanual in der Bearbeitungsleiste (über den Spalten).",null,null,null,null,null,null,null,null,null,null,"gewichteter Punktwert (über alle Module)","Pflegegrad (über alle Module)"]
["Zu bewerten ist, ob die untersuchte Person die jeweilige Aktivität praktisch durchführen kann. Es ist unerheblich, ob die Beeinträchtigungen der Selbständigkeit aufgrund von Schädigungen somatischer oder mentaler Funktionen bestehen.","8. Haushaltsführung\n(nicht für Pflegegrad relevant)",null,null,null,null,null,null,null,null,null,null,null,null,null,{"$f":"Pflegegrad!D9","v":0},{"$f":"Pflegegrad!E9","v":0}]
[null,"Einkäufe für den täglichen Bedarf z. B. Lebensmittel, Hygieneartikel, Zeitung tätigen.","8.1 Einkaufen für den täglichen Bedarf"]
[null,null,null,"Die Person kann die beschriebene Aktivität ohne personelle Hilfe durchführen.","selbständig",null,null,null,null,null,null,"Bei jedem Unterpunkt höchstens eine Kategorie ankreuzen (\"x\" eingeben)"]
[null,null,null,"Die Person kann Einkäufe noch überwiegend selbständig durchführen, wenn z. B. ein Einkaufszettel erstellt oder bei der Erstellung geholfen wird. Überwiegend selbständig ist auch eine Person, die lediglich Hilfe beim Tragen schwerer Einkäufe in die Wohnung benötigt.","überwiegend selbständig",null,null,null,null,null,null,"oder nichts ankreuzen (nichts ankreuzen = selbständig)"]
[null,null,null,"Es ist beispielsweise Begleitung und Beratung bei Einkäufen erforderlich oder größere Einkäufe müssen übernommen werden. Einzelne Produkte wie Brötchen, Zeitung können noch selbst besorgt werden. Oder die Person kann zwar selber nichts aus den Regalen nehmen, gibt aber Anweisungen, was eingekauft werden soll.","überwiegend unselbständig"]
[null,null,null,"Die Person kann sich an der Aktivität nicht oder nur minimal beteiligen.","unselbständig"]
[null,"Vorbereitete Speisen erwärmen, je nach individuellen Gegebenheiten auf dem Herd, im Backofen oder in der Mikrowelle oder einfache Mahlzeiten zubereiten. Dies umfasst die Zubereitung eines Heißgetränkes oder kleiner Speisen wie z. B. eines Spiegeleies. Ebenso sind das Entnehmen der Speisen aus Aufbewahrungsort und -behältnis sowie das Belegen von Brotscheiben oder Brötchen, Öffnen von Konserven zu berücksichtigen.","8.2 Zubereitung einfacher Mahlzeiten"]
[null,null,null,"Die Person kann die beschriebene Aktivität ohne personelle Hilfe durchführen.","selbständig"]
[null,null,null,"Die Person kann die Aktivität noch überwiegend selbständig durchführen, benötigt lediglich punktuelle Hilfen, Anleitung oder zeitliche Orientierungshilfen oder es muss aus Sicherheitsgründen beobachtet werden, ob z. B. der Herd wieder ausgeschaltet oder korrekt mit der Kaffeemaschine umgegangen wird.","überwiegend selbständig"]
[null,null,null,"Personelle Hilfe ist z. B. erforderlich bei der Zubereitung aller heißen Speisen und Getränke, die Person kann aber noch ein Brot belegen.","überwiegend unselbständig"]
[null,null,null,"Die Person kann sich an der Aktivität nicht oder nur minimal beteiligen.","unselbständig",null,null,null,null,null,null,"Exceldatei erstellt von: "]
[null,"Einfache und körperlich leichte Haushaltstätigkeiten ausführen: Darunter fallen z. B. Tisch decken, abräumen, spülen, Spülmaschine nutzen, Wäsche falten, Staub wischen.","8.3 Einfache Aufräum- und Reinigungsarbeiten",null,null,null,null,null,null,null,null,"Günther Schwarz, Alzheimer Beratung, Evangelische Gesellschaft, Stuttgart. ©"]
[null,null,null,"Die Person kann die beschriebene Aktivität ohne personelle Hilfe durchführen.","selbständig"]
[null,null,null,"Die Person muss z. B. erinnert werden, bzw. es muss kontrolliert werden, ob die genannten Tätigkeiten auch wirklich durchgeführt wurden und ggf. muss eine Aufforderung zur Vervollständigung gegeben werden oder es muss nur bei wenigen Aktivitäten geholfen werden.","überwiegend selbständig",null,null,null,null,null,null,"Anleitung siehe Reiter \"Anleitung\" (unten anklicken)"]
[null,null,null,"Die Person kann sich beteiligen. Einzelne Tätigkeiten wie beispielsweise Tisch decken oder das Ausräumen der Spülmaschine können ggf. unter ständiger Anleitung noch durchgeführt werden.","überwiegend unselbständig"]
[null,null,null,"Die Person kann sich an der Aktivität nicht oder nur minimal beteiligen.","unselbständig"]
[null,"Aufwändige und körperlich schwere Haushaltstätigkeiten ausführen: Darunter fallen z. B. Böden wischen, Staubsaugen, Fenster putzen, Wäsche waschen, Bett beziehen.","8.4 Aufwändige Aufräum- und Reinigungsarbeiten einschließlich Wäschepflege"]
[null,null,null,"Die Person kann die beschriebene Aktivität ohne personelle Hilfe durchführen.","selbständig"]
[null,null,null,"Die Person muss z. B. erinnert werden, bzw. es muss kontrolliert werden, ob die genannten Tätigkeiten auch wirklich durchgeführt wurden und ggf. muss eine Aufforderung zur Vervollständigung oder Teilhilfe gegeben werden.","überwiegend selbständig"]
[null,null,null,"Die Person kann nur bei einzelnen Tätigkeiten mithelfen oder benötigt ggf. ständiger Anleitung.","überwiegend unselbständig"]
[null,null,null,"Die Person kann sich an der Aktivität nicht oder nur minimal beteiligen.","unselbständig"]
[null,"Pflegerische oder haushaltsnahe Dienstleistungen organisieren und steuern: Darunter fallen z. B. Pflegedienst, Haushaltshilfen, Essen auf Rädern, Wäscherei, Handwerker, Friseur oder Fußpflege.","8.5 Nutzung von Dienstleistungen"]
[null,null,null,"Die Person kann die beschriebene Aktivität ohne personelle Hilfe durchführen.","selbständig"]
[null,null,null,"Die Person kann die Aktivität noch überwiegend selbständig durchführen, sie muss aber gelegentlich erinnert werden, bzw. es muss kontrolliert werden, ob z. B. geplante Telefonate auch durchgeführt wurden.","überwiegend selbständig"]
[null,null,null,"Die Person kann sich beispielsweise an Entscheidungen beteiligen, die Umsetzung aber nicht mehr selbst organisieren.","überwiegend unselbständig"]
[null,null,null,"Die Person kann sich an der Aktivität nicht oder nur minimal beteiligen.","unselbständig"]
[null,"Alltägliche finanzielle Angelegenheiten erledigen: Darunter fallen z. B. Führen eines Girokontos, Überweisungen vornehmen oder entscheiden, ob genügend Bargeld im Hause ist, eine Rechnung bezahlt werden muss und ggf. die dazu notwendigen Schritte einzuleiten oder durchzuführen.","8.6 Umgang mit finanziellen Angelegenheiten"]
[null,null,null,"Die Person kann die beschriebene Aktivität ohne personelle Hilfe durchführen.","selbständig"]
[null,null,null,"Die Person ist in der Lage, über finanzielle Angelegenheiten zu entscheiden, muss aber andere mit der Ausführung beauftragen oder sie benötigt punktuelle Hilfe beim Ausfüllen von Formularen oder vermehrt Erklärungen, entscheidet danach aber selbst.","überwiegend selbständig"]
[null,null,null,"Die Person entscheidet nur auf Nachfrage, muss weitgehend angeleitet werden oder sie entscheidet zwar selbst, benötigt aber aus somatischen Gründen bei jeglicher Umsetzung personelle Hilfe.","überwiegend unselbständig"]
[null,null,null,"Die Person kann sich an der Aktivität nicht oder nur minimal beteiligen.","unselbständig"]
[null,"Umgang mit staatlichen und kommunalen Behörden sowie Sozialversicherungsträgern: Darunter fallen z. B. die Entscheidung, ob ein Antrag gestellt oder ein Behördenbrief beantwortet werden muss, und ggf. die dazu notwendigen Schritte einzuleiten oder durchzuführen.","8.7 Umgang mit Behördenangelegenheiten"]
[null,null,null,"Die Person kann die beschriebene Aktivität ohne personelle Hilfe durchführen.","selbständig"]
[null,null,null,"Die Person ist in der Lage, über Behördenangelegenheiten zu entscheiden, benötigt aber Hilfe z. B. beim Ausfüllen von Dokumenten oder sie benötigt Erinnerung oder Erklärungen, entscheidet danach aber selbst.","überwiegend selbständig"]
[null,null,null,"Die Person entscheidet nur auf Nachfrage oder muss weitgehend angeleitet werden oder sie entscheidet zwar selbst, benötigt aber aus somatischen Gründen bei jeglicher Umsetzung personelle Hilfe.","überwiegend unselbständig"]
[null,null,null,"Die Person kann sich an der Aktivität nicht oder nur minimal beteiligen.","unselbständig"]

{"sheet":"Außer Haus","index":5,"n_rows":35,"n_cols":16,"rows_kept":35,"cut":false,"hidden":false,"merged":[[1,1,1,4],[0,5,0,8]]}
[null,"Modul",null,"Hinweise","Beim Klicken auf hellblaue Felder vor den Kategorien erscheinen Erläuterungen aus dem Begutachtungsmanual in der Bearbeitungsleiste (über den Spalten).",null,null,null,null,null,null,null,null,null,"gewichteter Punktwert (über alle Module)","Pflegegrad (über alle Module)"]
["Dieser Bereich geht nicht in die Ermittlung eines Pflegegrades ein. Die Einschätzung der Selbständigkeit bei außerhäuslichen Aktivitäten kann aber für die individuelle Versorgungsplanung oder Beratung wichtig sein. Zu bewerten ist, ob die Person die jeweilige Aktivität praktisch durchführen kann. Es ist unerheblich, ob die Beeinträchtigungen der Selbständigkeit aufgrund von Schädigungen somatischer oder mentaler Funktionen bestehen.","7. Außerhäusliche Aktivitäten \n(nicht für Pflegegrad relevant)",null,null,null,null,null,null,null,null,null,null,null,null,{"$f":"Pflegegrad!D9","v":0},{"$f":"Pflegegrad!E9","v":0}]
["Fortbewegen im außerhäuslichen Bereich: Hier sind auch die örtliche Orientierungsfähigkeit sowie Sicherheitsaspekte zu berücksichtigen.","Fähigkeit, den konkreten individuellen Wohnbereich verlassen zu können, also von den Wohnräumen bis vor das Haus gelangen zu können","7.1 Verlassen des Bereichs der Wohnung oder der Einrichtung"]
[null,null,null,null,"selbständig (ohne Begleitung)",null,null,null,null,{"$f":"IF(COUNTA(F4:F7)>1,\"Fehler!\",\"\")","v":""}]
[null,null,null,null,"überwiegend selbständig (mit Unterstützung, aber auch mit Eigenaktivität der Person)",null,null,null,null,null,null,"Bei jedem Unterpunkt höchstens eine Kategorie ankreuzen (\"x\" eingeben)"]
[null,null,null,null,"überwiegend/völlig unselbständig, Hilfe durch eine Person reicht jedoch aus",null,null,null,null,null,null,"oder nichts ankreuzen (nichts ankreuzen = selbständig)"]
[null,null,null,null,"überwiegend/völlig unselbständig, Hilfe durch zwei Personen erforderlich"]
[null,"Fähigkeit, sich in einem Bewegungsradius von ca. 500 m sicher und zielgerichtet zu bewegen: Gemeint ist der Umkreis der von den meisten Menschen üblicherweise zu Fuß bewältigt wird, z. B. für kurze Spaziergänge an der frischen Luft oder um Nachbarn oder naheliegende Geschäfte aufzusuchen. Die Person kann dabei ein Hilfsmittel z. B. einen Rollator, Rollstuhl oder sonstigen Gegenstand, z. B. einen Stock benutzen.","7.2 Fortbewegung außerhalb der Wohnung oder Einrichtung "]
[null,null,null,null,"selbständig (ohne Begleitung)"]
[null,null,null,null,"nur auf gewohnten Wegen selbständig"]
[null,null,null,null,"auf allen Wegen nur mit personeller Hilfe möglich"]
[null,null,null,null,"auch mit personeller Hilfe nicht möglich",null,null,null,null,null,null,"Exceldatei erstellt von: "]
[null,"Fähigkeit, in einen Bus oder eine Straßenbahn einzusteigen und an der richtigen Haltestelle wieder auszusteigen.","7.3 Nutzung öffentlicher Verkehrsmittel im Nahverkehr",null,null,null,null,null,null,null,null,"Günther Schwarz, Alzheimer Beratung, Evangelische Gesellschaft, Stuttgart. ©"]
[null,null,null,null,"selbständig (ohne Begleitung)"]
[null,null,null,null,"nur auf gewohnten Strecken selbständig",null,null,null,null,null,null,"Anleitung siehe Reiter \"Anleitung\" (unten anklicken)"]
[null,null,null,null,"auf allen Strecken nur mit personeller Hilfe möglich"]
[null,null,null,null,"auch mit personeller Hilfe nicht möglich"]
[null,"Fähigkeit, in einen PKW einund auszusteigen und Selbständigkeit während der Fahrt. Die Beaufsichtigungsnotwendigkeit während der Fahrt aus Sicherheitsgründen ist zu berücksichtigen.","7.4 Mitfahren in einem Kraftfahrzeug"]
[null,null,null,null,"selbständig"]
[null,null,null,null,"Benötigt nur Hilfe beim Ein- und Aussteigen (Hilfsperson zusätzlich zum Fahrer während der Fahrt ist nicht erforderlich)"]
[null,null,null,null,"benötigt Hilfe (auch) während der Fahrt mit dem PKW/Taxi (zusätzlich zum Fahrer)"]
[null,null,null,null,"nicht möglich, Liegendtransport oder Transport im Rollstuhl (Spezialfahrzeuge) notwendig"]
["Teilnahme an Aktivitäten (Beurteilung ohne Berücksichtigung von Wegstrecken) Hier ist nur die selbständige Teilnahme an außerhäuslichen Aktivitäten zu berücksichtigen. Zur Einschätzung wird eine modifizierte und vereinfachte Fassung der Selbständigkeitsskala verwendet. In den Erläuterung(en) können besondere Wünsche erfasst werden.",null,null,null,null,null," "]
[null,"Hier geht es um die Teilnahme an Veranstaltungen, bei denen in der Regel eine größere Anzahl an Personen versammelt ist. Dazu gehören beispielsweise Veranstaltungen wie Theater, Konzert, Gottesdienst oder Sportveranstaltungen. Zur Teilnahme gehört die Fähigkeit, sich längere Zeit selbständig oder in Begleitung in einer größeren Ansammlung von Menschen aufhalten zu können.","7.5 Teilnahme an kulturellen, religiösen oder sportlichen Veranstaltungen"]
[null,null,null,"Die Person kann ohne Begleitung an außerhäuslichen Aktivitäten teilnehmen.","Teilnahme selbständig möglich"]
[null,null,null,"Teilnahme ist nur mit unterstützender Begleitung möglich. Die Person benötigt zur Teilnahme eine Begleitperson während der Aktivität.","Nicht selbständig"]
[null,null,null,null,"Teilnahme ist auch mit unterstützender Begleitung nicht möglich"]
[null,"Hierbei geht es um Lebensbereiche, die der Bildung, Arbeit und Beschäftigung dienen. Bei einigen dieser Aktivitäten übernehmen in der Regel andere Betreuungspersonen (in der Regel geschultes Personal) in den entsprechenden Einrichtungen beaufsichtigende und ggf. steuernde Funktionen. Solche Aktivitäten kommen nur bei bestimmten Personen vor. Wenn die Gutachterin oder der Gutachter den Besuch in Betracht zieht, dann sollte er dies ankreuzen und die Teilnahmefähigkeit bewerten. Bei Mehrfachauswahl ist eine Bewertung zu jeder Aktivität vorzunehmen.","7.6 Besuch von Arbeitsplatz, Werkstatt, Tagespflegeeinrichtung, Tagesbetreuung"]
[null,null,null,"Die Person kann ohne Begleitung an außerhäuslichen Aktivitäten teilnehmen.","Teilnahme selbständig möglich"]
[null,null,null,"Teilnahme ist nur mit unterstützender Begleitung möglich. Die Person benötigt zur Teilnahme eine Begleitperson während der Aktivität.","Nicht selbständig, zur Teilnahme ist unterstützende Begleitung erforderlich"]
[null,null,null,null,"Teilnahme ist auch mit unterstützender Begleitung nicht möglich"]
[null,"Damit sind soziale Aktivitäten außerhalb des engeren Familienkreises in kleineren Gruppen mit bekannten Personen gemeint. Hierunter fallen Besuche bei Freunden, Bekannten oder Verwandten sowie die Teilnahme an Sitzungen in Vereinen, oder Selbsthilfegruppen.","7.7 Teilnahme an sonstigen Aktivitäten mit anderen Menschen"]
[null,null,null,"Die Person kann ohne Begleitung an außerhäuslichen Aktivitäten teilnehmen.","Teilnahme selbständig möglich"]
[null,null,null,"Teilnahme ist nur mit unterstützender Begleitung möglich. Die Person benötigt zur Teilnahme eine Begleitperson während der Aktivität.","Nicht selbständig, zur Teilnahme ist unterstützende Begleitung erforderlich"]
[null,null,null,null,"Teilnahme ist auch mit unterstützender Begleitung nicht möglich"]

{"sheet":"M1","index":6,"n_rows":32,"n_cols":17,"rows_kept":32,"cut":false,"hidden":false,"merged":[[0,5,0,8]]}
[null,"Modul",null,"Hinweise","Beim Klicken auf hellblaue Felder vor den Kategorien erscheinen Erläuterungen aus dem Begutachtungsmanual in der Bearbeitungsleiste (über den Spalten).","Schwellenwerte (wenn erreicht, dann 1-4 Punkte bei M2)",null,null,null,"Gewich-tungs-faktor",null,"Gesamt-punktwert (für dieses Modul)","Beeinträchti-gung der Selbständig-keit (0-4)","gewichteter Gesamt-punktwert",null,"gewichteter Punktwert (über alle Module)","Pflegegrad (über alle Module)"]
["Die Einschätzung richtet sich ausschließlich danach, ob die Person in der Lage ist ohne personelle Unterstützung eine Körperhaltung einzunehmen/zu wechseln und sich fortzubewegen. Zu beurteilen sind hier lediglich Aspekte wie Körperkraft, Balance, Bewegungskoordination etc. und nicht die zielgerichtete Fortbewegung. Hier werden nicht die Folgen kognitiver Beeinträchtigungen auf Planung, Steuerung und Durchführung motorischer Handlungen abgebildet.","1. Mobilität",null,null,null,2,4,6,10,2.5,null,{"$f":"SUM(J4:J27)","v":0},{"$f":"IF(L2>=I2,4,IF(L2>=H2,3,IF(L2>=G2,2,IF(L2>=F2,1,0))))","v":0},{"$f":"M2*J2","v":0},null,{"$f":"Pflegegrad!D9","v":0},{"$f":"Pflegegrad!E9","v":0}]
[null,"Einnehmen von verschiedenen Positionen im Bett, Drehen um die Längsachse, Aufrichten aus dem Liegen.","1.1 Positionswechsel im Bett"]
[null,null,null,"Selbständig ist auch eine Person, die ihre Position unter Nutzung von Hilfsmitteln (Aufrichter, Bettgitter, Strickleiter, elektrisch verstellbares Bett) allein verändern kann.","selbständig",{"$f":"Bewertungen!D6","v":0},{"$f":"IF(F4=\"x\",1,0)","v":0},0,{"$f":"G4*H4","v":0}]
[null,null,null,"Die Person kann beispielsweise nach Anreichen eines Hilfsmittels oder Reichen der Hand ihre Lage im Bett verändern.","überwiegend selbständig",{"$f":"Bewertungen!E6","v":0},{"$f":"IF(F5=\"x\",1,0)","v":0},1,{"$f":"G5*H5","v":0}]
[null,null,null,"Die Person kann beim Positionswechsel nur wenig mithelfen, z. B. auf den Rücken rollen, am Bettgestell festhalten, Aufforderungen folgen wie z. B. „Bitte die Arme vor der Brust verschränken und den Kopf auf die Brust legen.“","überwiegend unselbständig",{"$f":"Bewertungen!F6","v":0},{"$f":"IF(F6=\"x\",1,0)","v":0},2,{"$f":"G6*H6","v":0}]
[null,null,null,"Die Person kann sich beim Positionswechsel nicht oder nur minimal beteiligen.","unselbständig",{"$f":"Bewertungen!G6","v":0},{"$f":"IF(F7=\"x\",1,0)","v":0},3,{"$f":"G7*H7","v":0},{"$f":"SUM(I4:I7)","v":0}]
[null,"Sich auf einem Bett, Stuhl oder Sessel aufrecht halten.","1.2 Halten einer stabilen Sitzposition"]
[null,null,null,"Selbständig ist eine Person auch dann, wenn sie beim Sitzen gelegentlich ihre Sitzposition korrigieren muss.","selbständig",{"$f":"Bewertungen!D7","v":0},{"$f":"IF(F9=\"x\",1,0)","v":0},0,{"$f":"G9*H9","v":0}]
[null,null,null,"Die Person kann sich nur kurz, z. B. für die Dauer einer Mahlzeit oder eines Waschvorgangs selbständig in der Sitzposition halten, darüber hinaus benötigt sie aber personelle Unterstützung zur Positionskorrektur.","überwiegend selbständig",{"$f":"Bewertungen!E7","v":0},{"$f":"IF(F10=\"x\",1,0)","v":0},1,{"$f":"G10*H10","v":0}]
[null,null,null,"Die Person kann sich wegen eingeschränkter Rumpfkontrolle auch mit Rücken- und Seitenstütze nicht in aufrechter Position halten und benötigt auch während der Dauer einer Mahlzeit oder eines Waschvorgangs personelle Unterstützung zur Positionskorrektur.","überwiegend unselbständig",{"$f":"Bewertungen!F7","v":0},{"$f":"IF(F11=\"x\",1,0)","v":0},2,{"$f":"G11*H11","v":0}]
[null,null,null,"Die Person kann sich nicht in Sitzposition halten. Bei fehlender Rumpf- und Kopfkontrolle kann die Person nur im Bett oder Lagerungsstuhl liegend gelagert werden.","unselbständig",{"$f":"Bewertungen!G7","v":0},{"$f":"IF(F12=\"x\",1,0)","v":0},3,{"$f":"G12*H12","v":0},{"$f":"SUM(I9:I12)","v":0},null,"Exceldatei erstellt von: "]
[null,"Von einer erhöhten Sitzfläche, Bettkante, Stuhl, Sessel, Bank, Toilette etc., aufstehen und sich auf einen Rollstuhl, Toilettenstuhl, Sessel o.ä. umsetzen","1.3 Umsetzen",null,null,null,null,null,null,null,null,"Günther Schwarz, Alzheimer Beratung, Evangelische Gesellschaft, Stuttgart. ©"]
[null,null,null,"Selbständig ist jemand auch dann, wenn er keine Personenhilfe benötigt, aber ein Hilfsmittel oder einen anderen Gegenstand zum Festhalten oder Hochziehen (z.B. Griffstangen) benutzt oder sich auf Tisch/Armlehnen oder sonstigen Gegenständen abstützen muss, um aufzustehen. Als selbständig ist auch zu bewerten, wer zwar nicht stehen kann, aber sich mit Armkraft ohne personelle Hilfe umsetzen kann (z.B. Bett – Rollstuhl, Rollstuhl – Toilette)","selbständig",{"$f":"Bewertungen!D8","v":0},{"$f":"IF(F14=\"x\",1,0)","v":0},0,{"$f":"G14*H14","v":0}]
[null,null,null,"Die Person kann aus eigener Kraft aufstehen oder sich umsetzen, wenn sie eine Hand oder einen Arm gereicht bekommt.","überwiegend selbständig",{"$f":"Bewertungen!E8","v":0},{"$f":"IF(F15=\"x\",1,0)","v":0},1,{"$f":"G15*H15","v":0},null,null,"Anleitung siehe Reiter \"Anleitung\" (unten anklicken)"]
[null,null,null,"Die Pflegeperson muss beim Aufstehen/Umsetzen (erheblichen) Kraftaufwand aufbringen (hochziehen, halten, stützen, heben). Die beeinträchtigte Person hilft jedoch in geringem Maße mit, kann z.B. kurzzeitig stehen.","überwiegend unselbständig",{"$f":"Bewertungen!F8","v":0},{"$f":"IF(F16=\"x\",1,0)","v":0},2,{"$f":"G16*H16","v":0}]
[null,null,null,"Die Person muss gehoben oder getragen werden, Mithilfe ist nicht möglich.","unselbständig",{"$f":"Bewertungen!G8","v":0},{"$f":"IF(F17=\"x\",1,0)","v":0},3,{"$f":"G17*H17","v":0},{"$f":"SUM(I14:I17)","v":0}]
[null,"Sich innerhalb einer Wohnung oder im Wohnbereich einer Einrichtung zwischen den Zimmern sicher bewegen. Als Anhaltsgröße für übliche Gehstrecken innerhalb einer Wohnung werden mindestens acht Meter festgelegt. Die Fähigkeiten zur räumlichen Orientierung und zum Treppensteigen sind unter Punkt F 4.2.2 bzw. Punkt F 4.1.5 zu berücksichtigen.","1.4 Fortbewegen innerhalb des Wohnbereichs"]
[null,null,null,"Die Person kann sich ohne Hilfe durch andere Personen fortbewegen. Dies kann ggf. unter Nutzung von Hilfsmitteln, z. B. Rollator, Rollstuhl oder sonstigen Gegenständen, z. B. Stock oder Möbelstück geschehen.","selbständig",{"$f":"Bewertungen!D9","v":0},{"$f":"IF(F19=\"x\",1,0)","v":0},0,{"$f":"G19*H19","v":0}]
[null,null,null,"Die Person kann die Aktivität überwiegend selbständig durchführen. Personelle Hilfe ist beispielsweise erforderlich im Sinne von Bereitstellen von Hilfsmitteln (z.B. Rollator oder Gehstock), Beobachtung aus Sicherheitsgründen oder gelegentlichem Stützen/Unterhaken.","überwiegend selbständig",{"$f":"Bewertungen!E9","v":0},{"$f":"IF(F20=\"x\",1,0)","v":0},1,{"$f":"G20*H20","v":0}]
[null,null,null,"Die Person kann nur wenige Schritte gehen oder sich mit dem Rollstuhl nur wenige Meter fortbewegen oder kann nur mit Stützung oder Festhalten einer Pflegeperson gehen. Die ausschließliche Fähigkeit der Fortbewegung durch Krabbeln oder Robben ist generell als „überwiegend unselbständig“ zu bewerten.","überwiegend unselbständig",{"$f":"Bewertungen!F9","v":0},{"$f":"IF(F21=\"x\",1,0)","v":0},2,{"$f":"G21*H21","v":0}]
[null,null,null,"Die Person muss getragen oder vollständig im Rollstuhl geschoben werden","unselbständig",{"$f":"Bewertungen!G9","v":0},{"$f":"IF(F22=\"x\",1,0)","v":0},3,{"$f":"G22*H22","v":0},{"$f":"SUM(I19:I22)","v":0}]
[null,"Überwinden von Treppen zwischen zwei Etagen","1.5 Treppensteigen"]
[null,null,null,"Die Person kann ohne Hilfe durch andere Personen  in aufrechter Position eine Treppe steigen.","selbständig",{"$f":"Bewertungen!D10","v":0},{"$f":"IF(F24=\"x\",1,0)","v":0},0,{"$f":"G24*H24","v":0}]
[null,null,null,"Die Person kann die eine Treppe alleine steigen, benötigt aber Begleitung wegen eines Sturzrisikos.","überwiegend selbständig",{"$f":"Bewertungen!E10","v":0},{"$f":"IF(F25=\"x\",1,0)","v":0},1,{"$f":"G25*H25","v":0}]
[null,null,null,"Treppensteigen ist nur mit Stützen oder Festhalten der Person möglich.","überwiegend unselbständig",{"$f":"Bewertungen!F10","v":0},{"$f":"IF(F26=\"x\",1,0)","v":0},2,{"$f":"G26*H26","v":0}]
[null,null,null,"Person muss getragen oder mit Hilfsmitteln transportiert werden, keine Eigenbeteiligung.","unselbständig",{"$f":"Bewertungen!G10","v":0},{"$f":"IF(F27=\"x\",1,0)","v":0},3,{"$f":"G27*H27","v":0},{"$f":"SUM(I24:I27)","v":0}]
[]
[null,"Vollständiger Verlust der Greif-, Steh- und Gehfunktionen: Das Kriterium der „Gebrauchsunfähigkeit beider Arme und beider Beine“ umfasst nicht zwingend die Bewegungsunfähigkeit der Arme und Beine, die durch Lähmungen aller Extremitäten hervorgerufen werden kann. Ein vollständiger Verlust der Greif-, Steh- und Gehfunktion ist unabhängig von der Ursache zu bewerten. Dies kann z. B. auch bei Menschen im Wachkoma vorkommen oder durch hochgradige Kontrakturen, Versteifungen, hochgradigen Tremor und Rigor oder Athetose bedingt sein. Eine Gebrauchsunfähigkeit beider Arme und beider Beine liegt auch vor, wenn eine minimale Restbeweglichkeit der Arme noch vorhanden ist, z. B. die Person mit dem Ellenbogen noch den Joystick eines Rollstuhls bedienen kann, oder nur noch unkontrollierbare Greifreflexe bestehen.","1.6 Besondere Bedarfskonstellation: "]
[null,null,"Gebrauchsunfähigkeit beider Arme und beider Beine"]
[null,null,"Bei dieser besonderen Bedarfskonstellation wird unabhängig"]
[null,null,"vom erreichten Gesamtpunktwert Pflegegrad 5 anerkannt!"]

{"sheet":"M2","index":7,"n_rows":57,"n_cols":17,"rows_kept":57,"cut":false,"hidden":false,"merged":[[1,1,1,4],[0,5,0,8]]}
[null,"Modul",null,"Hinweise","Beim Klicken auf hellblaue Felder vor den Kategorien erscheinen Erläuterungen aus dem Begutachtungsmanual in der Bearbeitungsleiste (über den Spalten).","Schwellenwerte (wenn erreicht, dann 1-4 Punkte bei M2)",null,null,null,"Gewich-tungs-faktor",null,"Gesamt-punktwert (für dieses Modul)","Beeinträchti-gung der Selbständig-keit (0-4)","gewichteter Gesamt-punktwert",null,"gewichteter Punktwert (über alle Module)","Pflegegrad (über alle Module)"]
["Die Einschätzung bezieht sich bei den Merkmalen 4.2.1 bis 4.2.8 ausschließlich auf die kognitiven Funktionen und Aktivitäten. Zu beurteilen sind hier lediglich Aspekte wie Erkennen, Entscheiden oder Steuern etc. und nicht die motorische Umsetzung. Bei den Kriterien zur Kommunikation 4.2.9 bis 4.2.11 sind auch die Auswirkungen von Hör-, Sprech- oder Sprachstörungen zu berücksichtigen. Für diesen Bereich gilt eine ähnliche Graduierung wie im Falle der Selbständigkeit (vierstufige Skala). Der Unterschied liegt darin, dass hier keine Aktivität, sondern eine geistige Funktion beurteilt wird. Für die Bewertung ist unerheblich, ob ein zuvor selbständiger Erwachsener eine Fähigkeit verloren hat oder nie ausgebildet hat. Die Bewertungsskala umfasst folgende Ausprägungen: 0 = Fähigkeit vorhanden, unbeeinträchtigt (Die Fähigkeit ist (nahezu) vollständig vorhanden); 1 = Fähigkeit größtenteils vorhanden (Die Fähigkeit ist überwiegend (die meiste Zeit über, in den meisten Situationen), aber nicht durchgängig vorhanden. Die Person hat Schwierigkeiten, höhere oder komplexere Anforderungen zu bewältigen.); 2 = Fähigkeit in geringem Maße vorhanden (Die Fähigkeit ist stark beeinträchtigt, aber erkennbar vorhanden. Die Person hat häufig oder in vielen Situationen Schwierigkeiten. Sie kann nur geringe Anforderungen bewältigen. Es sind Ressourcen vorhanden.) 3 = Fähigkeit nicht vorhanden (Die Fähigkeit ist nicht oder nur in sehr geringem Maße (sehr selten) vorhanden.)","2. Kognitive und kommunikative Fähigkeiten",null,null,null,2,6,11,17,3.75,null,{"$f":"SUM(J4:J57)","v":0},{"$f":"IF(L2>=I2,4,IF(L2>=H2,3,IF(L2>=G2,2,IF(L2>=F2,1,0))))","v":0},{"$f":"M2*J2","v":0},null,{"$f":"Pflegegrad!D9","v":0},{"$f":"Pflegegrad!E9","v":0}]
[null,"Fähigkeit, Personen aus dem näheren Umfeld wiederzuerkennen, d. h. Menschen, zu denen im Alltag regelmäßig ein direkter Kontakt besteht. Dazu gehören z. B. Familienmitglieder, Nachbarn aber auch Pflegekräfte eines ambulanten Dienstes oder einer stationären Pflegeeinrichtung.","2.1 Erkennen von Personen aus dem näheren Umfeld"]
[null,null,null,"Die Person erkennt andere Personen aus ihrem näheren Umfeld unmittelbar.","vorhanden/unbeeinträchtigt",{"$f":"Bewertungen!D18","v":0},{"$f":"IF(F4=\"x\",1,0)","v":0},0,{"$f":"G4*H4","v":0}]
[null,null,null,"Die Person erkennt bekannte Personen beispielsweise erst nach einer längeren Zeit des Kontaktes in einem Gespräch oder sie hat Schwierigkeiten wenn auch nicht täglich, aber doch in regelmäßigen Abständen, vertraute Personen zu erkennen.","größtenteils vorhanden",{"$f":"Bewertungen!E18","v":0},{"$f":"IF(F5=\"x\",1,0)","v":0},1,{"$f":"G5*H5","v":0}]
[null,null,null,"Die aus dem näheren Umfeld stammenden Personen werden nur selten erkannt oder die Fähigkeit hängt ggf. von der Tagesform ab, d. h. die Fähigkeit unterliegt im Zeitverlauf erheblichen Schwankungen.","in geringem Maße vorhanden",{"$f":"Bewertungen!F18","v":0},{"$f":"IF(F6=\"x\",1,0)","v":0},2,{"$f":"G6*H6","v":0}]
[null,null,null,"Auch Familienmitglieder werden nicht oder nur ausnahmsweise erkannt.","nicht vorhanden",{"$f":"Bewertungen!G18","v":0},{"$f":"IF(F7=\"x\",1,0)","v":0},3,{"$f":"G7*H7","v":0},{"$f":"SUM(I4:I7)","v":0}]
[null,"Fähigkeit, sich in der räumlichen Umgebung zurechtzufinden, andere Orte gezielt anzusteuern und zu wissen, wo man sich befindet.","2.2 Örtliche Orientierung"]
[null,null,null,"Die Person weiß in welcher Stadt, auf welchem Stockwerk und ggf. in welcher Einrichtung sie sich befindet. Sie kennt sich in den regelmäßig genutzten Räumlichkeiten aus. Ein Verirren in den Räumlichkeiten der eigenen Wohnung oder unmittelbar im Wohnbereich einer Einrichtung kommt nicht vor und die Person findet sich auch in der näheren außerhäuslichen Umgebung zurecht. Sie weiß beispielsweise, wie sie zu benachbarten Geschäften, zu einer Bushaltestelle oder zu einer anderen nahe gelegenen Örtlichkeit gelangt.","vorhanden/unbeeinträchtigt",{"$f":"Bewertungen!D19","v":0},{"$f":"IF(F9=\"x\",1,0)","v":0},0,{"$f":"G9*H9","v":0}]
[null,null,null,"Es bestehen Schwierigkeiten, sich in der außerhäuslichen Umgebung zu orientieren, beispielsweise nach Verlassen des Hauses wieder den Weg zurück zu finden. In den eigenen Wohnräumen existieren solche Schwierigkeiten hingegen nicht.","größtenteils vorhanden",{"$f":"Bewertungen!E19","v":0},{"$f":"IF(F10=\"x\",1,0)","v":0},1,{"$f":"G10*H10","v":0}]
[null,null,null,"Die Person hat auch in einer gewohnten Wohnumgebung Schwierigkeiten sich zurechtzufinden. Regelmäßig genutzte Räumlichkeiten und Wege in der Wohnumgebung werden nicht immer erkannt.","in geringem Maße vorhanden",{"$f":"Bewertungen!F19","v":0},{"$f":"IF(F11=\"x\",1,0)","v":0},2,{"$f":"G11*H11","v":0}]
[null,null,null,"Selbst in der eigenen Wohnumgebung ist die Person regelmäßig auf Unterstützung angewiesen, um sich zurechtzufinden.","nicht vorhanden",{"$f":"Bewertungen!G19","v":0},{"$f":"IF(F12=\"x\",1,0)","v":0},3,{"$f":"G12*H12","v":0},{"$f":"SUM(I9:I12)","v":0},null,"Exceldatei erstellt von: "]
[null,"Die Fähigkeit, zeitliche Strukturen zu erkennen. Dazu gehören Uhrzeit, Tagesabschnitte (Vormittag, Nachmittag, Abend etc.), Jahreszeiten und die zeitliche Abfolge des eigenen Lebens. Aufschluss über die Fähigkeit zur zeitlichen Orientierung geben Antworten auf die Frage nach der Jahreszeit, dem Jahr, dem Wochentag, dem Monat oder der Tageszeit.","2.3 Zeitliche Orientierung",null,null,null,null,null,null,null,null,"Günther Schwarz, Alzheimer Beratung, Evangelische Gesellschaft, Stuttgart. ©"]
[null,null,null,"Die zeitliche Orientierung ist ohne nennenswerte Beeinträchtigungen vorhanden.","vorhanden/unbeeinträchtigt",{"$f":"Bewertungen!D20","v":0},{"$f":"IF(F14=\"x\",1,0)","v":0},0,{"$f":"G14*H14","v":0}]
[null,null,null,"Die Person ist die meiste Zeit über zeitlich orientiert, aber nicht durchgängig. Sie hat auch Schwierigkeiten, ohne äußere Orientierungshilfen (Uhr, Dunkelheit etc.) den Tagesabschnitt zu bestimmen","größtenteils vorhanden",{"$f":"Bewertungen!E20","v":0},{"$f":"IF(F15=\"x\",1,0)","v":0},1,{"$f":"G15*H15","v":0},null,null,"Anleitung siehe Reiter \"Anleitung\" (unten anklicken)"]
[null,null,null,"Die zeitliche Orientierung ist die meiste Zeit nur in Ansätzen vorhanden. Die Person ist auch unter Nutzung äußerer Orientierungshilfen zumeist nicht in der Lage, Tageszeiten zu erkennen, zu denen regelmäßig bestimmte Ereignisse stattfinden (z.B. Mittagessen).","in geringem Maße vorhanden",{"$f":"Bewertungen!F20","v":0},{"$f":"IF(F16=\"x\",1,0)","v":0},2,{"$f":"G16*H16","v":0}]
[null,null,null,"Das Verständnis für zeitliche Strukturen und Abläufe ist kaum oder noch nicht vorhanden.","nicht vorhanden",{"$f":"Bewertungen!G20","v":0},{"$f":"IF(F17=\"x\",1,0)","v":0},3,{"$f":"G17*H17","v":0},{"$f":"SUM(I14:I17)","v":0}]
[null,"Fähigkeit, sich an kurz und auch länger zurückliegende Ereignisse oder Beobachtungen zu erinnern: Dazu gehört, dass die Person z. B. weiß, was sie zum Frühstück gegessen hat oder mit welchen Tätigkeiten sie den Vormittag verbracht hat. Im Hinblick auf das Langzeitgedächtnis geht es bei Erwachsenen z. B. um die Kenntnis des Geburtsjahres, des Geburtsorts oder wichtiger Bestandteile des Lebensverlaufs wie Eheschließung und Berufstätigkeit.","2.4 Erinnern an wesentliche Ereignisse oder Beobachtungen"]
[null,null,null,"Die Person kann über kurz zurückliegende Ereignisse Auskunft geben oder durch Handlungen und Gesten signalisieren, dass sie sich erinnert.","vorhanden/unbeeinträchtigt",{"$f":"Bewertungen!D21","v":0},{"$f":"IF(F19=\"x\",1,0)","v":0},0,{"$f":"G19*H19","v":0}]
[null,null,null,"Die Person hat Schwierigkeiten, sich an manche kurz zurückliegende Ereignisse zu erinnern oder muss hierzu länger nachdenken, sie hat aber keine nennenswerten Probleme, sich an Ereignisse aus der eigenen Lebensgeschichte zu erinnern.","größtenteils vorhanden",{"$f":"Bewertungen!E21","v":0},{"$f":"IF(F20=\"x\",1,0)","v":0},1,{"$f":"G20*H20","v":0}]
[null,null,null,"Die Person vergisst kurz zurückliegende Ereignisse häufig. Nicht alle, aber wichtige Ereignisse aus der eigenen Lebensgeschichte sind (noch) präsent.","in geringem Maße vorhanden",{"$f":"Bewertungen!F21","v":0},{"$f":"IF(F21=\"x\",1,0)","v":0},2,{"$f":"G21*H21","v":0}]
[null,null,null,"Die Person ist nicht (oder nur selten) in der Lage, sich an Ereignisse, Dinge oder Personen aus der eigenen Lebensgeschichte zu erinnern.","nicht vorhanden",{"$f":"Bewertungen!G21","v":0},{"$f":"IF(F22=\"x\",1,0)","v":0},3,{"$f":"G22*H22","v":0},{"$f":"SUM(I19:I22)","v":0}]
[null,"Fähigkeit, zielgerichtete Handlungen des Lebensalltags, die eine Abfolge von Teilschritten umfassen, zu steuern: Die Betonung liegt in diesem Fall auf dem Begriff Alltagshandlungen. Gemeint sind zielgerichtete Handlungen, die diese Person täglich oder nahezu täglich im Lebensalltag durchführt oder durchgeführt hat, wie z. B. das komplette Ankleiden, Kaffeekochen oder Tischdecken.","2.5 Steuern von mehrschrittigen Alltagshandlungen"]
[null,null,null,"Die Person ist in der Lage, die erforderlichen Handlungsschritte selbständig in der richtigen Reihenfolge auszuführen oder zu steuern, so dass das angestrebte Ergebnis der Handlung erreicht wird.","vorhanden/unbeeinträchtigt",{"$f":"Bewertungen!D22","v":0},{"$f":"IF(F24=\"x\",1,0)","v":0},0,{"$f":"G24*H24","v":0}]
[null,null,null,"Die Person verliert manchmal den Faden und vergisst, welcher Handlungsschritt der nächste ist. Erhält sie dabei eine Erinnerungshilfe, kann sie die Handlung aber selbständig fortsetzen.","größtenteils vorhanden",{"$f":"Bewertungen!E22","v":0},{"$f":"IF(F25=\"x\",1,0)","v":0},1,{"$f":"G25*H25","v":0}]
[null,null,null,"Die Person hat erhebliche Schwierigkeiten. Sie verwechselt regelmäßig die Reihenfolge der einzelnen Handlungsschritte oder vergisst einzelne, notwendige Handlungsschritte.","in geringem Maße vorhanden",{"$f":"Bewertungen!F22","v":0},{"$f":"IF(F26=\"x\",1,0)","v":0},2,{"$f":"G26*H26","v":0}]
[null,null,null,"Mehrschrittige Alltagshandlungen werden erst gar nicht begonnen oder nach den ersten Versuchen aufgegeben.","nicht vorhanden",{"$f":"Bewertungen!G22","v":0},{"$f":"IF(F27=\"x\",1,0)","v":0},3,{"$f":"G27*H27","v":0},{"$f":"SUM(I24:I27)","v":0}]
[null,"Fähigkeit, folgerichtige und geeignete Entscheidungen im Alltagsleben zu treffen: Dazu gehört z. B. die dem Wetter angepasste Auswahl von Kleidung, die Entscheidung über die Durchführung von Aktivitäten wie Einkaufen, Familienangehörige oder Freunde anrufen, einer Freizeitbeschäftigung nachzugehen. Zu klären ist hier die Frage, ob die Entscheidungen folgerichtig sind, d. h. geeignet sind, das angestrebte Ziel zu erreichen oder ein gewisses Maß an Sicherheit und Wohlbefinden oder Bedürfnisbefriedigung zu gewährleisten, z. B. warme Kleidung.","2.6 Treffen von Entscheidungen im Alltagsleben"]
[null,null,null,"Die Person kann auch in unbekannten Situationen folgerichtige Entscheidungen treffen, beispielsweise beim Umgang mit unbekannten Personen, die an der Haustür klingeln.","vorhanden/unbeeinträchtigt",{"$f":"Bewertungen!D23","v":0},{"$f":"IF(F29=\"x\",1,0)","v":0},0,{"$f":"G29*H29","v":0}]
[null,null,null,"Im Rahmen der Alltagsroutinen oder zuvor besprochenen Situationen können Entscheidungen getroffen werden, die Person hat aber Schwierigkeiten in unbekannten Situationen.","größtenteils vorhanden",{"$f":"Bewertungen!E23","v":0},{"$f":"IF(F30=\"x\",1,0)","v":0},1,{"$f":"G30*H30","v":0}]
[null,null,null,"Die Person trifft zwar Entscheidungen, diese Entscheidungen sind jedoch in der Regel nicht geeignet, ein bestimmtes Ziel zu erreichen. Dies ist beispielsweise der Fall, wenn die Person mit nur leichter Bekleidung bei winterlichen Temperaturen im Freien spazieren gehen will. Weiterhin liegt eine schwere Beeinträchtigung vor, wenn die Person nur mit Unterstützung in Form von Anleitung, Aufforderung, Aufzeigen von Handlungsalternativen in der Lage ist, Entscheidungen zu treffen.","in geringem Maße vorhanden",{"$f":"Bewertungen!F23","v":0},{"$f":"IF(F31=\"x\",1,0)","v":0},2,{"$f":"G31*H31","v":0}]
[null,null,null,"Die Person kann Entscheidungen auch mit Unterstützung nicht mehr oder nur selten treffen. Sie zeigt keine deutbare Reaktion auf das Angebot mehrerer Entscheidungsalternativen).","nicht vorhanden",{"$f":"Bewertungen!G23","v":0},{"$f":"IF(F32=\"x\",1,0)","v":0},3,{"$f":"G32*H32","v":0},{"$f":"SUM(I29:I32)","v":0}]
[null,"Fähigkeit, Sachverhalte zu verstehen und Informationen inhaltlich einordnen zu können: Hier geht es um Ereignisse und Inhalte, die Bestandteil des Alltagslebens der meisten Menschen sind. Gemeint ist etwa die Fähigkeit, zu erkennen, dass man sich in einer bestimmten Situation befindet, z. B. gemeinschaftliche Aktivitäten mit anderen Menschen, Versorgung durch eine Pflegekraft, MDK-Begutachtung sowie die Fähigkeit, Informationen zum Tagesgeschehen aus den Medien z. B. Fernsehgerät, Tageszeitung aufzunehmen und inhaltlich zu verstehen. Gleiches gilt für mündlich von anderen Personen übermittelte Informationen.","2.7 Verstehen von Sachverhalten und Informationen"]
[null,null,null,"Die Person kann Sachverhalte und Informationen aus dem Alltagsleben ohne nennenswerte Probleme verstehen.","vorhanden/unbeeinträchtigt",{"$f":"Bewertungen!D24","v":0},{"$f":"IF(F34=\"x\",1,0)","v":0},0,{"$f":"G34*H34","v":0}]
[null,null,null,"Die Person kann einfache Sachverhalte und Informationen nachvollziehen, hat bei komplizierteren jedoch Schwierigkeiten.","größtenteils vorhanden",{"$f":"Bewertungen!E24","v":0},{"$f":"IF(F35=\"x\",1,0)","v":0},1,{"$f":"G35*H35","v":0}]
[null,null,null,"Die Person kann auch einfache Informationen häufig nur nachvollziehen, wenn sie wiederholt erklärt werden. Eine schwere Beeinträchtigung liegt auch dann vor, wenn das Verständnis sehr stark von der Tagesform abhängt.","in geringem Maße vorhanden",{"$f":"Bewertungen!F24","v":0},{"$f":"IF(F36=\"x\",1,0)","v":0},2,{"$f":"G36*H36","v":0}]
[null,null,null,"Die Person gibt weder verbal noch nonverbal zu erkennen, dass sie Situationen und übermittelte Informationen verstehen kann.","nicht vorhanden",{"$f":"Bewertungen!G24","v":0},{"$f":"IF(F37=\"x\",1,0)","v":0},3,{"$f":"G37*H37","v":0},{"$f":"SUM(I34:I37)","v":0}]
[null,"Fähigkeit, Risiken und Gefahren zu erkennen: Dazu gehören Gefahren wie Stromund Feuerquellen, Barrieren und Hindernisse auf dem Fußboden bzw. auf Fußwegen, eine problematische Beschaffenheit des Bodens (z. B. Glätte) oder Gefahrenzonen in der außerhäuslichen Umgebung (z. B. verkehrsreiche Straßen, Baustellen).","2.8 Erkennen von Risiken und Gefahren"]
[null,null,null,"Die Person kann solche Risiken und Gefahrenquellen im Alltagsleben ohne weiteres erkennen, auch wenn sie ihnen aus anderen Gründen (z. B. aufgrund von somatischen Beeinträchtigungen) nicht aus dem Weg gehen kann.","vorhanden/unbeeinträchtigt",{"$f":"Bewertungen!D25","v":0},{"$f":"IF(F39=\"x\",1,0)","v":0},0,{"$f":"G39*H39","v":0}]
[null,null,null,"Die Person erkennt meist nur solche Risiken und Gefahren, die sich in der vertrauten innerhäuslichen  Wohnumgebung wiederfinden. Es bestehen aber beispielsweise Schwierigkeiten, Risiken im Straßenverkehr angemessen einzuschätzen oder Gefährdungen in ungewohnter Umgebung zu erkennen.","größtenteils vorhanden",{"$f":"Bewertungen!E25","v":0},{"$f":"IF(F40=\"x\",1,0)","v":0},1,{"$f":"G40*H40","v":0}]
[null,null,null,"Die Person kann auch Risiken und Gefahren, denen sie häufig auch in der Wohnumgebung begegnet, oft nicht als solche erkennen.","in geringem Maße vorhanden",{"$f":"Bewertungen!F25","v":0},{"$f":"IF(F41=\"x\",1,0)","v":0},2,{"$f":"G41*H41","v":0}]
[null,null,null,"Die Person kann Risiken und Gefahren so gut wie gar nicht erkennen.","nicht vorhanden",{"$f":"Bewertungen!G25","v":0},{"$f":"IF(F42=\"x\",1,0)","v":0},3,{"$f":"G42*H42","v":0},{"$f":"SUM(I39:I42)","v":0}]
[null,"Fähigkeit, elementare Bedürfnisse verbal oder nonverbal mitzuteilen: Das beinhaltet sich bei Hunger oder Durst, Schmerzen oder Frieren bemerkbar zu machen. Bei Sprachstörungen kann dies ggf. durch Laute, Mimik oder Gestik bzw. unter Nutzung von Hilfsmitteln erfolgen. (Bei den Kriterien zur Kommunikation 4.2.9 bis 4.2.11 sind auch die Auswirkungen von Hör-, Sprech- oder Sprachstörungen zu berücksichtigen.)","2.9 Mitteilen von elementaren Bedürfnissen"]
[null,null,null,"Die Person kann Bedürfnisse äußern.","vorhanden/unbeeinträchtigt",{"$f":"Bewertungen!D26","v":0},{"$f":"IF(F44=\"x\",1,0)","v":0},0,{"$f":"G44*H44","v":0}]
[null,null,null,"Die Person kann auf Nachfrage elementare Bedürfnisse äußern. Die Person äußert Bedürfnisse aber nicht immer von sich aus.","größtenteils vorhanden",{"$f":"Bewertungen!E26","v":0},{"$f":"IF(F45=\"x\",1,0)","v":0},1,{"$f":"G45*H45","v":0}]
[null,null,null,"Elementare Bedürfnisse sind nur aus nonverbalen Reaktionen (Mimik, Gestik, Lautäußerungen) ableitbar, ggf. nach oder durch entsprechende(r) Stimulation; oder die Person äußert von sich aus keine elementaren Bedürfnisse, muss dazu ständig angeleitet werden, kann aber Zustimmung oder Ablehnung deutlich machen.","in geringem Maße vorhanden",{"$f":"Bewertungen!F26","v":0},{"$f":"IF(F46=\"x\",1,0)","v":0},2,{"$f":"G46*H46","v":0}]
[null,null,null,"Die Person äußert nicht oder nur sehr selten Bedürfnisse, auch nicht in nonverbaler Form. Sie kann weder Zustimmung noch Ablehnung deutlich machen.","nicht vorhanden",{"$f":"Bewertungen!G26","v":0},{"$f":"IF(F47=\"x\",1,0)","v":0},3,{"$f":"G47*H47","v":0},{"$f":"SUM(I44:I47)","v":0}]
[null,"Fähigkeit, Aufforderungen in Hinblick auf alltägliche Grundbedürfnisse zu verstehen: Zu den alltäglichen Grundbedürfnissen gehören z. B. Essen, Trinken, sich kleiden, sich beschäftigen.  (Bei den Kriterien zur Kommunikation 4.2.9 bis 4.2.11 sind auch die Auswirkungen von Hör-, Sprech- oder Sprachstörungen zu berücksichtigen.)","2.10 Verstehen von Aufforderungen"]
[null,null,null,"Aufforderungen und Bitten zu alltäglichen Grundbedürfnissen werden ohne weiteres verstanden.","vorhanden/unbeeinträchtigt",{"$f":"Bewertungen!D27","v":0},{"$f":"IF(F49=\"x\",1,0)","v":0},0,{"$f":"G49*H49","v":0}]
[null,null,null,"Einfache Bitten und Aufforderungen, wie z. B. „Setz dich bitte an den Tisch!“, „Zieh dir die Jacke über!“, „Komm zum Essen!“, „Prosit!“ werden verstanden, Aufforderungen in nicht alltäglichen Situationen müssen erklärt werden. Ggf. sind besonders deutliche Ansprache, Wiederholungen, Zeichensprache, Gebärdensprache oder Schrift erforderlich, um Aufforderungen verständlich zu machen.","größtenteils vorhanden",{"$f":"Bewertungen!E27","v":0},{"$f":"IF(F50=\"x\",1,0)","v":0},1,{"$f":"G50*H50","v":0}]
[null,null,null,"Die Person kann Aufforderungen und Bitten meist nicht verstehen, wenn diese nicht wiederholt geäußert und erläutert werden. Das Verständnis ist sehr von der Tagesform abhängig. Sie zeigt aber Zustimmung oder Ablehnung gegenüber nonverbalen Aufforderungen, z. B. Berührungen oder Geleiten an den Esstisch.","in geringem Maße vorhanden",{"$f":"Bewertungen!F27","v":0},{"$f":"IF(F51=\"x\",1,0)","v":0},2,{"$f":"G51*H51","v":0}]
[null,null,null,"Die Person kann Anleitung und Aufforderungen kaum oder nicht verstehen.","nicht vorhanden",{"$f":"Bewertungen!G27","v":0},{"$f":"IF(F52=\"x\",1,0)","v":0},3,{"$f":"G52*H52","v":0},{"$f":"SUM(I49:I52)","v":0}]
[null,"Fähigkeit, in einem Gespräch Gesprächsinhalte aufzunehmen, sinngerecht zu antworten und zur Weiterführung des Gesprächs Inhalte einzubringen:  (Bei den Kriterien zur Kommunikation 4.2.9 bis 4.2.11 sind auch die Auswirkungen von Hör-, Sprech- oder Sprachstörungen zu berücksichtigen.)","2.11 Beteiligen an einem Gespräch"]
[null,null,null,"Die Person kommt sowohl in Einzel- als auch in Gesprächen kleiner Gruppen gut zurecht. Sie zeigt im Gespräch Eigeninitiative, Interesse und beteiligt sich, wenn vielleicht auch nur auf direkte Ansprache hin. Ihre Äußerungen passen zu den Inhalten des Gesprächs.","vorhanden/unbeeinträchtigt",{"$f":"Bewertungen!D28","v":0},{"$f":"IF(F54=\"x\",1,0)","v":0},0,{"$f":"G54*H54","v":0}]
[null,null,null,"Die Person kommt in Gesprächen mit einer Person gut zurecht, in Gruppen ist sie jedoch meist überfordert und verliert den Faden. Wortfindungsstörungen treten ggf. regelmäßig auf. Die Person ist häufig auf besonders deutliche Ansprache oder Wiederholung von Worten, Sätzen angewiesen.","größtenteils vorhanden",{"$f":"Bewertungen!E28","v":0},{"$f":"IF(F55=\"x\",1,0)","v":0},1,{"$f":"G55*H55","v":0}]
[null,null,null,"Die Person kann auch einem Gespräch nur mit einer Person kaum folgen oder sie kann sich nur wenig oder mit einzelnen Worten beteiligen. Die Person zeigt nur wenig Eigeninitiative, reagiert aber auf Ansprache oder Fragen mit wenigen Worten, z. B. mit ja oder nein; Die Person beteiligt sich am Gespräch, weicht aber in aller Regel vom Gesprächsinhalt ab (führt mehr ein Selbstgespräch) oder es besteht leichte Ablenkbarkeit durch Umgebungseinflüsse.","in geringem Maße vorhanden",{"$f":"Bewertungen!F28","v":0},{"$f":"IF(F56=\"x\",1,0)","v":0},2,{"$f":"G56*H56","v":0}]
[null,null,null,"Ein Gespräch mit der Person, das über einfache Mitteilungen hinausgeht, ist auch unter Einsatz nonverbaler Kommunikation kaum oder nicht möglich.","nicht vorhanden",{"$f":"Bewertungen!G28","v":0},{"$f":"IF(F57=\"x\",1,0)","v":0},3,{"$f":"G57*H57","v":0},{"$f":"SUM(I54:I57)","v":0}]

{"sheet":"M3","index":8,"n_rows":67,"n_cols":17,"rows_kept":67,"cut":false,"hidden":false,"merged":[[1,1,1,4],[0,5,0,8]]}
[null,"Modul",null,"Hinweise","Beim Klicken auf hellblaue Felder vor den Kategorien erscheinen Erläuterungen aus dem Begutachtungsmanual in der Bearbeitungsleiste (über den Spalten).","Schwellenwerte (wenn erreicht, dann 1-4 Punkte bei M2)",null,null,null,"Gewich-tungs-faktor",null,"Gesamt-punktwert (für dieses Modul)","Beeinträchti-gung der Selbständig-keit (0-4)","gewichteter Gesamt-punktwert",null,"gewichteter Punktwert (über alle Module)","Pflegegrad (über alle Module)"]
["In diesem Modul geht es um Verhaltensweisen und psychische Problemlagen als Folge von Gesundheitsproblemen, die immer wieder auftreten und personelle Unterstützung erforderlich machen. Es geht hier um Unterstützung des pflegebedürftigen Menschen bei der Bewältigung von belastenden Emotionen (wie z. B. Panikattacken), beim Abbau psychischer Spannungen und bei der Impulssteuerung,  bei der Förderung positiver Emotionen durch Ansprache oder körperliche Berührung;  bei der Vermeidung von Gefährdungen im Lebensalltag, bei Tendenz zu selbstschädigendem Verhalten. Im Mittelpunkt dieses Moduls steht die Frage, inwieweit die Person ihr Verhalten ohne personelle Unterstützung steuern kann. Von fehlender Selbststeuerung ist auch dann auszugehen, wenn ein Verhalten zwar nach Aufforderung abgestellt wird, aber danach immer wieder aufs Neue auftritt, weil das Verbot nicht verstanden wird oder die Person sich nicht erinnern kann. Abzugrenzen sind hier gezielte herausfordernde Verhaltensweisen, z. B. im Rahmen von Beziehungsproblemen, die nicht zu berücksichtigen sind. Anders als in den übrigen Modulen sind die Kriterien nicht abschließend definiert, sondern beispielhaft erläutert. Manche Verhaltensweisen lassen sich nicht eindeutig nur einem Kriterium zuordnen, z. B. Beschimpfungen zu verbaler Aggression (F 4.3.6) oder zu anderen pflegerelevanten vokalen Auffälligkeiten (F 4.3.7) oder treten in Kombination auf. Ausschlaggebend ist, ob und wie oft die Verhaltensweisen eine personelle Unterstützung notwendig machen. Bei Kombination verschiedener Verhaltensweisen wird die Häufigkeit von Ereignissen mit personellem Unterstützungsbedarf nur einmal erfasst, z. B. wird nächtliche Unruhe bei Angstzuständen, entweder unter Punkt F 4. 3.2 oder unter Punkt F 4.3.10 bewertet. Es werden folgende Merkmalsausprägungen erfasst: 0 = nie 1 = selten, d.h. maximal 1x wöchentlich 2 = häufig, d.h. zweimal oder mehrmals wöchentlich, aber nicht täglich 3 = täglich.","3. Verhaltensweisen und psychische Problemlagen",null,null,null,1,3,5,7,3.75,null,{"$f":"SUM(J4:J67)","v":0},{"$f":"IF(K71>0,4,IF(L2>=I2,4,IF(L2>=H2,3,IF(L2>=G2,2,IF(L2>=F2,1,0)))))","v":0},{"$f":"M2*J2","v":0},null,{"$f":"Pflegegrad!D9","v":0},{"$f":"Pflegegrad!E9","v":0}]
[null,"Dieses Kriterium fasst verschiedene Verhaltensweisen zusammen. Dazu gehören vor allem das (scheinbar) ziellose Umhergehen in der Wohnung oder der Einrichtung und der Versuch desorientierter Personen, ohne Begleitung die Wohnung, Einrichtung zu verlassen oder Orte aufzusuchen, die für diese Person unzugänglich sein sollten, z. B. Treppenhaus, Zimmer anderer Bewohner. Ebenso zu berücksichtigen ist allgemeine Rastlosigkeit in Form von ständigem Aufstehen und Hinsetzen oder Hin- und Herrutschen auf dem Sitzplatz oder im und aus dem Bett.","3.1 Motorisch geprägte Verhaltensauffälligkeiten"]
[null,null,null,null,"nie",{"$f":"Bewertungen!D33","v":0},{"$f":"IF(F4=\"x\",1,0)","v":0},0,{"$f":"G4*H4","v":0}]
[null,null,null,null,"maximal 1x wöchentlich",{"$f":"Bewertungen!E33","v":0},{"$f":"IF(F5=\"x\",1,0)","v":0},1,{"$f":"G5*H5","v":0}]
[null,null,null,null,"mehrmals wöchentlich",{"$f":"Bewertungen!F33","v":0},{"$f":"IF(F6=\"x\",1,0)","v":0},3,{"$f":"G6*H6","v":0}]
[null,null,null,null,"täglich",{"$f":"Bewertungen!G33","v":0},{"$f":"IF(F7=\"x\",1,0)","v":0},5,{"$f":"G7*H7","v":0},{"$f":"SUM(I4:I7)","v":0}]
[null,"Gemeint sind hier nächtliches Umherirren oder nächtliche Unruhephasen bis hin zur Umkehr des Tag-, Nachtrhythmus im Sinne von aktiv sein in der Nacht und schlafen während des Tages. Zu bewerten ist, wie häufig Anlass für personelle Unterstützung zur Steuerung des Schlaf-Wach-Rhythmus bestehen, z. B. wieder ins Bett bringen und beruhigen. Schlafstörungen wie Einschlafschwierigkeiten am Abend oder Wachphasen während der Nacht sind nicht zu werten. Andere nächtliche Hilfen, z. B. Aufstehen, zu Bett bringen bei Nykturie oder Lagerungen sind nur unter F 4.6.2. zu werten.","3.2 Nächtliche Unruhe"]
[null,null,null,null,"nie",{"$f":"Bewertungen!D34","v":0},{"$f":"IF(F9=\"x\",1,0)","v":0},0,{"$f":"G9*H9","v":0}]
[null,null,null,null,"maximal 1x wöchentlich",{"$f":"Bewertungen!E34","v":0},{"$f":"IF(F10=\"x\",1,0)","v":0},1,{"$f":"G10*H10","v":0}]
[null,null,null,null,"mehrmals wöchentlich",{"$f":"Bewertungen!F34","v":0},{"$f":"IF(F11=\"x\",1,0)","v":0},3,{"$f":"G11*H11","v":0}]
[null,null,null,null,"täglich",{"$f":"Bewertungen!G34","v":0},{"$f":"IF(F12=\"x\",1,0)","v":0},5,{"$f":"G12*H12","v":0},{"$f":"SUM(I9:I12)","v":0},null,"Exceldatei erstellt von: "]
[null,"Selbstschädigendes und autoaggressives Verhalten kann z. B. darin bestehen, sich selbst durch Gegenstände zu verletzen, ungenießbare Substanzen zu essen und zu trinken, sich selbst schlagen und sich selbst mit den Fingernägeln oder Zähnen verletzen.","3.3 Selbstschädigendes und autoaggressives Verhalten",null,null,null,null,null,null,null,null,"Günther Schwarz, Alzheimer Beratung, Evangelische Gesellschaft, Stuttgart. ©"]
[null,null,null,null,"nie",{"$f":"Bewertungen!D35","v":0},{"$f":"IF(F14=\"x\",1,0)","v":0},0,{"$f":"G14*H14","v":0}]
[null,null,null,null,"maximal 1x wöchentlich",{"$f":"Bewertungen!E35","v":0},{"$f":"IF(F15=\"x\",1,0)","v":0},1,{"$f":"G15*H15","v":0},null,null,"Anleitung siehe Reiter \"Anleitung\" (unten anklicken)"]
[null,null,null,null,"mehrmals wöchentlich",{"$f":"Bewertungen!F35","v":0},{"$f":"IF(F16=\"x\",1,0)","v":0},3,{"$f":"G16*H16","v":0}]
[null,null,null,null,"täglich",{"$f":"Bewertungen!G35","v":0},{"$f":"IF(F17=\"x\",1,0)","v":0},5,{"$f":"G17*H17","v":0},{"$f":"SUM(I14:I17)","v":0}]
[null,"Gemeint sind hier aggressive, auf Gegenstände gerichtete Handlungen wie Gegenstände wegstoßen oder wegschieben, gegen Gegenstände schlagen, das Zerstören von Dingen sowie das Treten nach Gegenständen.","3.4 Beschädigen von Gegenständen"]
[null,null,null,null,"nie",{"$f":"Bewertungen!D36","v":0},{"$f":"IF(F19=\"x\",1,0)","v":0},0,{"$f":"G19*H19","v":0}]
[null,null,null,null,"maximal 1x wöchentlich",{"$f":"Bewertungen!E36","v":0},{"$f":"IF(F20=\"x\",1,0)","v":0},1,{"$f":"G20*H20","v":0}]
[null,null,null,null,"mehrmals wöchentlich",{"$f":"Bewertungen!F36","v":0},{"$f":"IF(F21=\"x\",1,0)","v":0},3,{"$f":"G21*H21","v":0}]
[null,null,null,null,"täglich",{"$f":"Bewertungen!G36","v":0},{"$f":"IF(F22=\"x\",1,0)","v":0},5,{"$f":"G22*H22","v":0},{"$f":"SUM(I19:I22)","v":0}]
[null,"Physisch aggressives Verhalten gegenüber anderen Personen kann z. B. darin bestehen, nach Personen zu schlagen oder zu treten, andere mit Zähnen oder Fingernägeln zu verletzen, andere zu stoßen oder wegzudrängen oder in Verletzungsversuchen gegenüber anderen Personen mit Gegenständen.","3.5 Physisch aggressives Verhalten gegenüber anderen Personen"]
[null,null,null,null,"nie",{"$f":"Bewertungen!D37","v":0},{"$f":"IF(F24=\"x\",1,0)","v":0},0,{"$f":"G24*H24","v":0}]
[null,null,null,null,"maximal 1x wöchentlich",{"$f":"Bewertungen!E37","v":0},{"$f":"IF(F25=\"x\",1,0)","v":0},1,{"$f":"G25*H25","v":0}]
[null,null,null,null,"mehrmals wöchentlich",{"$f":"Bewertungen!F37","v":0},{"$f":"IF(F26=\"x\",1,0)","v":0},3,{"$f":"G26*H26","v":0}]
[null,null,null,null,"täglich",{"$f":"Bewertungen!G37","v":0},{"$f":"IF(F27=\"x\",1,0)","v":0},5,{"$f":"G27*H27","v":0},{"$f":"SUM(I24:I27)","v":0}]
[null,"Verbale Aggression kann sich z. B. in verbalen Beschimpfungen oder in der Bedrohung anderer Personen ausdrücken.","3.6 Verbale Aggression"]
[null,null,null,null,"nie",{"$f":"Bewertungen!D38","v":0},{"$f":"IF(F29=\"x\",1,0)","v":0},0,{"$f":"G29*H29","v":0}]
[null,null,null,null,"maximal 1x wöchentlich",{"$f":"Bewertungen!E38","v":0},{"$f":"IF(F30=\"x\",1,0)","v":0},1,{"$f":"G30*H30","v":0}]
[null,null,null,null,"mehrmals wöchentlich",{"$f":"Bewertungen!F38","v":0},{"$f":"IF(F31=\"x\",1,0)","v":0},3,{"$f":"G31*H31","v":0}]
[null,null,null,null,"täglich",{"$f":"Bewertungen!G38","v":0},{"$f":"IF(F32=\"x\",1,0)","v":0},5,{"$f":"G32*H32","v":0},{"$f":"SUM(I29:I32)","v":0}]
[null,"Andere pflegerelevante vokale Auffälligkeiten können sein: Lautes Rufen, Schreien, Klagen ohne nachvollziehbaren Grund, vor sich hin schimpfen, fluchen, seltsame Laute von sich geben, ständiges Wiederholen von Sätzen und Fragen.","3.7 Andere pflegerelevante vokale Auffälligkeiten"]
[null,null,null,null,"nie",{"$f":"Bewertungen!D39","v":0},{"$f":"IF(F34=\"x\",1,0)","v":0},0,{"$f":"G34*H34","v":0}]
[null,null,null,null,"maximal 1x wöchentlich",{"$f":"Bewertungen!E39","v":0},{"$f":"IF(F35=\"x\",1,0)","v":0},1,{"$f":"G35*H35","v":0}]
[null,null,null,null,"mehrmals wöchentlich",{"$f":"Bewertungen!F39","v":0},{"$f":"IF(F36=\"x\",1,0)","v":0},3,{"$f":"G36*H36","v":0}]
[null,null,null,null,"täglich",{"$f":"Bewertungen!G39","v":0},{"$f":"IF(F37=\"x\",1,0)","v":0},5,{"$f":"G37*H37","v":0},{"$f":"SUM(I34:I37)","v":0}]
[null,"Hier ist die Abwehr von Unterstützung, z. B. bei der Körperpflege, die Verweigerung der Nahrungsaufnahme, der Medikamenteneinnahme oder anderer notwendiger Verrichtungen sowie die Manipulation an Vorrichtungen wie z. B. an Kathetern, Infusionen oder Sondenernährung gemeint. Dazu gehört nicht die willentliche (selbstbestimmte) Ablehnung bestimmter Maßnahmen.","3.8 Abwehr pflegerischer oder anderer unterstützender Maßnahmen"]
[null,null,null,null,"nie",{"$f":"Bewertungen!D40","v":0},{"$f":"IF(F39=\"x\",1,0)","v":0},0,{"$f":"G39*H39","v":0}]
[null,null,null,null,"maximal 1x wöchentlich",{"$f":"Bewertungen!E40","v":0},{"$f":"IF(F40=\"x\",1,0)","v":0},1,{"$f":"G40*H40","v":0}]
[null,null,null,null,"mehrmals wöchentlich",{"$f":"Bewertungen!F40","v":0},{"$f":"IF(F41=\"x\",1,0)","v":0},3,{"$f":"G41*H41","v":0}]
[null,null,null,null,"täglich",{"$f":"Bewertungen!G40","v":0},{"$f":"IF(F42=\"x\",1,0)","v":0},5,{"$f":"G42*H42","v":0},{"$f":"SUM(I39:I42)","v":0}]
[null,"Wahnvorstellungen beziehen sich z. B. auf die Vorstellung, mit Verstorbenen oder imaginären Personen in Kontakt zu stehen oder auf die Vorstellung, verfolgt, bedroht oder bestohlen zu werden.","3.9 Wahnvorstellungen"]
[null,null,null,null,"nie",{"$f":"Bewertungen!D41","v":0},{"$f":"IF(F44=\"x\",1,0)","v":0},0,{"$f":"G44*H44","v":0}]
[null,null,null,null,"maximal 1x wöchentlich",{"$f":"Bewertungen!E41","v":0},{"$f":"IF(F45=\"x\",1,0)","v":0},1,{"$f":"G45*H45","v":0}]
[null,null,null,null,"mehrmals wöchentlich",{"$f":"Bewertungen!F41","v":0},{"$f":"IF(F46=\"x\",1,0)","v":0},3,{"$f":"G46*H46","v":0}]
[null,null,null,null,"täglich",{"$f":"Bewertungen!G41","v":0},{"$f":"IF(F47=\"x\",1,0)","v":0},5,{"$f":"G47*H47","v":0},{"$f":"SUM(I44:I47)","v":0}]
[null,"Die Person hat starke Ängste oder Sorgen, sie erlebt Angstattacken unabhängig von der Ursache.","3.10 Ängste"]
[null,null,null,null,"nie",{"$f":"Bewertungen!D42","v":0},{"$f":"IF(F49=\"x\",1,0)","v":0},0,{"$f":"G49*H49","v":0}]
[null,null,null,null,"maximal 1x wöchentlich",{"$f":"Bewertungen!E42","v":0},{"$f":"IF(F50=\"x\",1,0)","v":0},1,{"$f":"G50*H50","v":0}]
[null,null,null,null,"mehrmals wöchentlich",{"$f":"Bewertungen!F42","v":0},{"$f":"IF(F51=\"x\",1,0)","v":0},3,{"$f":"G51*H51","v":0}]
[null,null,null,null,"täglich",{"$f":"Bewertungen!G42","v":0},{"$f":"IF(F52=\"x\",1,0)","v":0},5,{"$f":"G52*H52","v":0},{"$f":"SUM(I49:I52)","v":0}]
[null,"Antriebslosigkeit bei depressiver Stimmungslage zeigt sich z. B. daran, dass die Person kaum Interesse an der Umgebung hat, kaum Eigeninitiative aufbringt und Motivierung durch andere benötigt, um etwas zu tun. Sie wirkt traurig oder apathisch, möchte am liebsten das Bett nicht verlassen. Hier ist nicht gemeint, dass Menschen mit rein kognitiven Beeinträchtigungen, z. B. bei Demenz Impulse benötigen, um eine Handlung zu beginnen oder fortzuführen.","3.11 Antriebslosigkeit bei depressive Stimmungslage"]
[null,null,null,null,"nie",{"$f":"Bewertungen!D43","v":0},{"$f":"IF(F54=\"x\",1,0)","v":0},0,{"$f":"G54*H54","v":0}]
[null,null,null,null,"maximal 1x wöchentlich",{"$f":"Bewertungen!E43","v":0},{"$f":"IF(F55=\"x\",1,0)","v":0},1,{"$f":"G55*H55","v":0}]
[null,null,null,null,"mehrmals wöchentlich",{"$f":"Bewertungen!F43","v":0},{"$f":"IF(F56=\"x\",1,0)","v":0},3,{"$f":"G56*H56","v":0}]
[null,null,null,null,"täglich",{"$f":"Bewertungen!G43","v":0},{"$f":"IF(F57=\"x\",1,0)","v":0},5,{"$f":"G57*H57","v":0},{"$f":"SUM(I54:I57)","v":0}]
[null,"Sozial inadäquate Verhaltensweisen sind z. B. distanzloses Verhalten, auffälliges Einfordern von Aufmerksamkeit, sich vor anderen in unpassenden Situationen auskleiden, unangemessenes Greifen nach Personen oder unangemessene körperliche oder verbale sexuelle Annäherungsversuche.","3.12 Sozial inadäquate Verhaltensweisen"]
[null,null,null,null,"nie",{"$f":"Bewertungen!D44","v":0},{"$f":"IF(F59=\"x\",1,0)","v":0},0,{"$f":"G59*H59","v":0}]
[null,null,null,null,"maximal 1x wöchentlich",{"$f":"Bewertungen!E44","v":0},{"$f":"IF(F60=\"x\",1,0)","v":0},1,{"$f":"G60*H60","v":0}]
[null,null,null,null,"mehrmals wöchentlich",{"$f":"Bewertungen!F44","v":0},{"$f":"IF(F61=\"x\",1,0)","v":0},3,{"$f":"G61*H61","v":0}]
[null,null,null,null,"täglich",{"$f":"Bewertungen!G44","v":0},{"$f":"IF(F62=\"x\",1,0)","v":0},5,{"$f":"G62*H62","v":0},{"$f":"SUM(I59:I62)","v":0}]
[null,"Sonstige pflegerelevante inadäquate Handlungen sind z. B. Nesteln an der Kleidung, ständiges Wiederholen der gleichen Handlung (Stereotypien), planlose Aktivitäten, Verstecken oder Horten von Gegenständen, Kotschmieren, Urinieren in die Wohnung.","3.13 Sonstige pflegerelevante inadäquate Handlungen"]
[null,null,null,null,"nie",{"$f":"Bewertungen!D45","v":0},{"$f":"IF(F64=\"x\",1,0)","v":0},0,{"$f":"G64*H64","v":0}]
[null,null,null,null,"maximal 1x wöchentlich",{"$f":"Bewertungen!E45","v":0},{"$f":"IF(F65=\"x\",1,0)","v":0},1,{"$f":"G65*H65","v":0}]
[null,null,null,null,"mehrmals wöchentlich",{"$f":"Bewertungen!F45","v":0},{"$f":"IF(F66=\"x\",1,0)","v":0},3,{"$f":"G66*H66","v":0}]
[null,null,null,null,"täglich",{"$f":"Bewertungen!G45","v":0},{"$f":"IF(F67=\"x\",1,0)","v":0},5,{"$f":"G67*H67","v":0},{"$f":"SUM(I64:I67)","v":0}]

{"sheet":"M4","index":9,"n_rows":73,"n_cols":17,"rows_kept":73,"cut":false,"hidden":false,"merged":[[1,1,1,4],[0,5,0,8]]}
[null,"Modul",null,"Hinweise","Beim Klicken auf hellblaue Felder vor den Kategorien erscheinen Erläuterungen aus dem Begutachtungsmanual in der Bearbeitungsleiste (über den Spalten).","Schwellenwerte (wenn erreicht, dann 1-4 Punkte bei M2)",null,null,null,"Gewich-tungs-faktor",null,"Gesamt-punktwert (für dieses Modul)","Beeinträchti-gung der Selbständig-keit (0-4)","gewichteter Gesamt-punktwert",null,"gewichteter Punktwert (über alle Module)","Pflegegrad (über alle Module)"]
["Angaben zur Versorgung: Zu diesem Modul werden zunächst besondere Bedarfsaspekte erfasst. Dazu gehören die parenterale Ernährung oder die Ernährung über eine Sonde, die künstliche Harn- oder Stuhlableitung, sowie Störungen der Blasen- und Darmkontrolle in ihren Ausprägungsgraden.\nErnährung parenteral oder über Sonde: Es ist anzugeben, ob die Ernährung parenteral z. B. über einen Port, über eine perkutane endoskopische Gastrostomie (PEG), eine perkutane endoskopischen Jejunostomie (PEJ) oder eine nasale Magensonde, sowie ob sie über Pumpe, Schwerkraft oder als Bolusgabe erfolgt.\nBlasenkontrolle/Harnkontinenz: Gemeint ist hier, Harndrang zu verspüren und so rechtzeitig zu äußern, dass die Blasenentleerung geregelt werden kann. Jegliche Art von unwillkürlichem Harnabgang ist zu berücksichtigen, unabhängig von der Ursache. Zu erfassen ist hier vorrangig die Kontrolle der Blasenentleerung, die Steuerung der Blasenentleerung, die Vermeidung unwillkürlicher Harnabgänge, ggf. mit personeller Hilfe. Es sind folgende Merkmalsausprägungen vorgesehen: Ständig kontinent (Keine unwillkürlichen Harnabgänge.); Überwiegend kontinent (Maximal einmal täglich unwillkürlicher Harnabgang oder Tröpfcheninkontinenz.); Überwiegend inkontinent (Mehrmals täglich unwillkürliche Harnabgänge, aber gesteuerte Blasenentleerung ist noch teilweise möglich.); Komplett inkontinent (Die Person ist komplett harninkontinent.  Gesteuerte Blasenentleerung ist nicht möglich.) Alternativ anzugeben ist, ob ein suprapubischer oder transurethraler Dauerkatheter oder Urostoma vorhanden ist. Einmalkatheterisieren ist nicht hier sondern unter Punkt F 4.5.10 zu berücksichtigen, hier ist anzugeben, ob und in welchem Umfang daneben eine Inkontinenz besteht.\nDarmkontrolle, Stuhlkontinenz: Gemeint ist, Stuhldrang zu verspüren und so rechtzeitig zu äußern, dass die Darmentleerung geregelt werden kann. Zu bewerten ist hier die Vermeidung unwillkürlicher Stuhlabgänge, ggf. mit personeller Hilfe.\nEs sind folgende Merkmalsausprägungen vorgesehen: Ständig kontinent (Keine unwillkürlichen Stuhlabgänge.); Überwiegend kontinent (Die Person ist überwiegend stuhlkontinent, gelegentlich unwillkürliche Stuhlabgänge oder nur geringe Stuhlmengen, sogenannte Schmierstühle.); Überwiegend inkontinent (Die Person ist überwiegend stuhlinkontinent, selten gesteuerte Darmentleerung möglich.); Komplett inkontinent (Die Person ist komplett stuhlinkontinent,  gesteuerte\nDarmentleerung ist nicht möglich.). Alternativ anzugeben ist, ob ein Colo-, Ileostoma vorhanden ist. \nBewertung der Selbständigkeit: Zu bewerten ist, ob die untersuchte Person die jeweilige Aktivität praktisch durchführen kann. Es ist unerheblich, ob die Beeinträchtigungen der Selbständigkeit aufgrund von Schädigungen somatischer oder mentaler Funktionen bestehen oder ob Teilaspekte bereits in anderen Modulen berücksichtigt worden sind.","4. Selbstversorgung",null,null,null,3,8,19,37,10,null,{"$f":"SUM(J4:J73)","v":0},{"$f":"IF(L2>=I2,4,IF(L2>=H2,3,IF(L2>=G2,2,IF(L2>=F2,1,0))))","v":0},{"$f":"M2*J2","v":0},null,{"$f":"Pflegegrad!D9","v":0},{"$f":"Pflegegrad!E9","v":0}]
[null,"Sich Hände, Gesicht, den Hals, die Arme, Achselhöhlen und den vorderen Brustbereich waschen und abtrocknen.","4.1 Waschen des vorderen Oberkörpers"]
[null,null,null,"Die Person kann die beschriebene Aktivität ohne personelle Hilfe durchführen.","selbständig",{"$f":"Bewertungen!D50","v":0},{"$f":"IF(F4=\"x\",1,0)","v":0},0,{"$f":"G4*H4","v":0}]
[null,null,null,"pv","überwiegend selbständig",{"$f":"Bewertungen!E50","v":0},{"$f":"IF(F5=\"x\",1,0)","v":0},1,{"$f":"G5*H5","v":0}]
[null,null,null,"Die Person kann nur geringe Anteile der Aktivität selbständig durchführen, sich z. B. nur Hände oder Gesicht waschen oder benötigt umfassende Anleitung.","überwiegend unselbständig",{"$f":"Bewertungen!F50","v":0},{"$f":"IF(F6=\"x\",1,0)","v":0},2,{"$f":"G6*H6","v":0}]
[null,null,null,"Die Person kann sich an der Aktivität nicht oder nur minimal beteiligen.","unselbständig",{"$f":"Bewertungen!G50","v":0},{"$f":"IF(F7=\"x\",1,0)","v":0},3,{"$f":"G7*H7","v":0},{"$f":"SUM(I4:I7)","v":0}]
[null,"Kämmen, Zahnpflege, Prothesenreinigung, Rasieren","4.2 Körperpflege im Bereich des Kopfes"]
[null,null,null,"Die Person kann die beschriebenen Aktivitäten ohne personelle Hilfe durchführen.","selbständig",{"$f":"Bewertungen!D51","v":0},{"$f":"IF(F9=\"x\",1,0)","v":0},0,{"$f":"G9*H9","v":0}]
[null,null,null,"Die Person kann die Aktivitäten selbständig durchführen, wenn benötigte Gegenstände bereitgelegt oder gerichtet werden, z. B. Aufdrehen der Zahnpastatube, Auftragen der Zahnpasta auf die Bürste, Aufbringen von Haftcreme auf die Prothese, Anreichen oder Säubern des Rasierapparates. Alternativ sind Aufforderungen oder punktuelle Teilhilfen erforderlich wie Korrekturen nach dem Kämmen oder nur das Kämmen des Hinterkopfes, das Reinigen der hinteren Backenzähne bei der Zahn-, Mundpflege bzw. die Nachrasur bei sonst selbständigem Rasieren.","überwiegend selbständig",{"$f":"Bewertungen!E51","v":0},{"$f":"IF(F10=\"x\",1,0)","v":0},1,{"$f":"G10*H10","v":0}]
[null,null,null,"Die Person kann nur geringe Anteile der Aktivität selbständig leisten, so beginnt sie z. B. mit dem Zähneputzen oder der Rasur, ohne die Aktivität zu Ende zu führen.","überwiegend unselbständig",{"$f":"Bewertungen!F51","v":0},{"$f":"IF(F11=\"x\",1,0)","v":0},2,{"$f":"G11*H11","v":0}]
[null,null,null,"Die Person kann sich an den Aktivitäten nicht oder nur minimal beteiligen.","unselbständig",{"$f":"Bewertungen!G51","v":0},{"$f":"IF(F12=\"x\",1,0)","v":0},3,{"$f":"G12*H12","v":0},{"$f":"SUM(I9:I12)","v":0},null,"Exceldatei erstellt von: "]
[null,"Den Intimbereich waschen und abtrocknen.","4.3 Waschen des Intimbereichs",null,null,null,null,null,null,null,null,"Günther Schwarz, Alzheimer Beratung, Evangelische Gesellschaft, Stuttgart. ©"]
[null,null,null,"Die Person kann die beschriebene Aktivität ohne personelle Hilfe durchführen.","selbständig",{"$f":"Bewertungen!D52","v":0},{"$f":"IF(F14=\"x\",1,0)","v":0},0,{"$f":"G14*H14","v":0}]
[null,null,null,"Die Person kann die Aktivität selbständig durchführen, wenn benötigte Utensilien, z. B. Seife, Waschlappen bereitgelegt werden oder sie Aufforderung bzw. punktuelle Teilhilfen erhält.","überwiegend selbständig",{"$f":"Bewertungen!E52","v":0},{"$f":"IF(F15=\"x\",1,0)","v":0},1,{"$f":"G15*H15","v":0},null,null,"Anleitung siehe Reiter \"Anleitung\" (unten anklicken)"]
[null,null,null,"Die Person kann nur geringe Anteile der Aktivität  selbständig durchführen, sich z. B. nur den vorderen Intimbereich waschen.","überwiegend unselbständig",{"$f":"Bewertungen!F52","v":0},{"$f":"IF(F16=\"x\",1,0)","v":0},2,{"$f":"G16*H16","v":0}]
[null,null,null,"Die Person kann sich an der Aktivität nicht oder nur minimal beteiligen.","unselbständig",{"$f":"Bewertungen!G52","v":0},{"$f":"IF(F17=\"x\",1,0)","v":0},3,{"$f":"G17*H17","v":0},{"$f":"SUM(I14:I17)","v":0}]
[null,"Durchführung des Dusch- oder Wannenbades einschließlich des Waschens der Haare: Dabei sind neben der Fähigkeit, den Körper waschen zu können, auch Sicherheitsaspekte zu berücksichtigen. (Teil-) Hilfen beim Waschen in der Wanne, Dusche sind hier ebenso zu berücksichtigen wie die Hilfe beim Einund Aussteigen oder eine notwendige Überwachung während des Bades. Dazu gehört auch das Abtrocknen, Haare waschen und föhnen.","4.4 Duschen und Baden einschließlich Waschen der Haare"]
[null,null,null,"Die Person kann die beschriebene Aktivität ohne personelle Hilfe durchführen.","selbständig",{"$f":"Bewertungen!D53","v":0},{"$f":"IF(F19=\"x\",1,0)","v":0},0,{"$f":"G19*H19","v":0}]
[null,null,null,"Die Person kann die Aktivität selbständig durchführen, wenn Utensilien vorbereitet bzw. bereitgestellt werden, einzelne Handreichungen geleistet werden, z. B. Stützen beim Ein-, Aussteigen, Bedienung eines Badewannenlifters, Hilfe beim Haare waschen oder Föhnen, beim Abtrocknen oder wenn während des (Dusch-) Bades aus nachvollziehbaren Sicherheitsgründen Anwesenheit erforderlich ist.","überwiegend selbständig",{"$f":"Bewertungen!E53","v":0},{"$f":"IF(F20=\"x\",1,0)","v":0},1,{"$f":"G20*H20","v":0}]
[null,null,null,"Die Person kann nur einen begrenzten Teil der Aktivität selbständig durchführen, z.B. das Waschen des vorderen Oberkörpers.","überwiegend unselbständig",{"$f":"Bewertungen!F53","v":0},{"$f":"IF(F21=\"x\",1,0)","v":0},2,{"$f":"G21*H21","v":0}]
[null,null,null,"Die Person kann sich an der Aktivität nicht oder nur minimal beteiligen.","unselbständig",{"$f":"Bewertungen!G53","v":0},{"$f":"IF(F22=\"x\",1,0)","v":0},3,{"$f":"G22*H22","v":0},{"$f":"SUM(I19:I22)","v":0}]
[null,"Bereitliegende Kleidungsstücke, z. B. Unterhemd, T-Shirt, Hemd, Bluse, Pullover, Jacke, BH, Schlafanzugoberteil oder Nachthemd, an- und ausziehen: Die Beurteilung ist unabhängig davon vorzunehmen, ob solche Kleidungsstücke derzeit getragen werden. Die situationsgerechte Auswahl der Kleidung ist nicht hier sondern unter Punkt F 4.2.6 zu berücksichtigen. Das An- und Ablegen von körpernahen Hilfsmitteln ist unter Punkt F 4.5.7 zu berücksichtigen.","4.5 An- und Auskleiden des Oberkörpers"]
[null,null,null,"Die Person kann die beschriebene Aktivität ohne personelle Hilfe durchführen.","selbständig",{"$f":"Bewertungen!D54","v":0},{"$f":"IF(F24=\"x\",1,0)","v":0},0,{"$f":"G24*H24","v":0}]
[null,null,null,"Die Person kann die Aktivität beispielsweise selbständig durchführen, wenn Kleidungsstücke passend angereicht oder gehalten werden beim Anziehen eines Hemdes etc. Auch wenn Hilfe nur bei Verschlüssen erforderlich ist, trifft die Bewertung „überwiegend selbständig“ zu, ebenso wenn nur Kontrolle des Sitzes der Kleidung und Aufforderungen zur Vervollständigung der Handlung erforderlich sind.","überwiegend selbständig",{"$f":"Bewertungen!E54","v":0},{"$f":"IF(F25=\"x\",1,0)","v":0},1,{"$f":"G25*H25","v":0}]
[null,null,null,"Die Person kann nur bei einem begrenzten Teil der Aktivität mithelfen, beispielsweise die Hände in die Ärmel eines bereitgehaltenen T-Shirts schieben.","überwiegend unselbständig",{"$f":"Bewertungen!F54","v":0},{"$f":"IF(F26=\"x\",1,0)","v":0},2,{"$f":"G26*H26","v":0}]
[null,null,null,"Die Person kann sich an der Aktivität nicht oder nur minimal beteiligen.","unselbständig",{"$f":"Bewertungen!G54","v":0},{"$f":"IF(F27=\"x\",1,0)","v":0},3,{"$f":"G27*H27","v":0},{"$f":"SUM(I24:I27)","v":0}]
[null,"Bereitliegende Kleidungsstücke, z. B. Unterwäsche Hose, Rock, Strümpfe und Schuhe, an- und ausziehen: Die Beurteilung ist unabhängig davon vorzunehmen, ob solche Kleidungsstücke derzeit getragen werden. Die situationsgerechte Auswahl der Kleidung ist unter Punkt F 4.2.6 zu berücksichtigen. Das An- und Ablegen von körpernahen Hilfsmitteln ist unter Punkt F 4.5.7 zu berücksichtigen, z. B. Kompressionstrümpfe.","4.6 An- und Auskleiden des Unterkörpers"]
[null,null,null,"Die Person kann die beschriebene Aktivität ohne personelle Hilfe durchführen.","selbständig",{"$f":"Bewertungen!D55","v":0},{"$f":"IF(F29=\"x\",1,0)","v":0},0,{"$f":"G29*H29","v":0}]
[null,null,null,"Die Person kann die Aktivität beispielsweise selbständig durchführen, wenn Kleidungsstücke angereicht oder gehalten werden (Einstiegshilfe). Auch wenn Hilfe nur bei Verschlüssen, z. B. Schnürsenkel binden, Knöpfe schließen oder Kontrolle des Sitzes der Kleidung und Aufforderungen zur Vervollständigung der Handlung erforderlich sind, trifft die Bewertung „überwiegend selbständig“ zu.","überwiegend selbständig",{"$f":"Bewertungen!E55","v":0},{"$f":"IF(F30=\"x\",1,0)","v":0},1,{"$f":"G30*H30","v":0}]
[null,null,null,"Die Person kann die Aktivität zu einem geringen Teil selbständig durchführen. Beispielsweise gelingt das Hochziehen von Hose, Rock zur Taille selbständig, zuvor muss das Kleidungsstück jedoch von der Pflegeperson über die Füße gezogen werden.","überwiegend unselbständig",{"$f":"Bewertungen!F55","v":0},{"$f":"IF(F31=\"x\",1,0)","v":0},2,{"$f":"G31*H31","v":0}]
[null,null,null,"Die Person kann sich an der Aktivität nicht oder nur minimal beteiligen.","unselbständig",{"$f":"Bewertungen!G55","v":0},{"$f":"IF(F32=\"x\",1,0)","v":0},3,{"$f":"G32*H32","v":0},{"$f":"SUM(I29:I32)","v":0}]
[null,"Zerteilen von Nahrung in mundgerechte Stücke und Eingießen von Getränken: Dazu gehört das Zerteilen von belegten Brotscheiben, Obst oder andere Speisen in mundgerechte Stücke, z. B. das Kleinschneiden von Fleisch, das Zerdrücken von Kartoffeln, Pürieren der Nahrung ,Verschlüsse von Getränkeflaschen öffnen, Getränke aus einer Flasche oder Kanne in ein Glas bzw. eine Tasse eingießen, ggf. unter Nutzung von Hilfsmitteln wie Anti-Rutschbrett oder sonstigem Gegenstand wie Spezialbesteck.","4.7 Mundgerechtes Zubereiten der Nahrung und Eingießen von Getränken"]
[null,null,null,"Die Person kann die beschriebene Aktivität ohne personelle Hilfe durchführen.","selbständig",{"$f":"Bewertungen!D56","v":0},{"$f":"IF(F34=\"x\",1,0)","v":0},0,{"$f":"G34*H34","v":0}]
[null,null,null,"Es ist punktuelle Hilfe erforderlich, z.B. beim Öffnen einer Flasche oder beim Schneiden von sehr harten Nahrungsmitteln.","überwiegend selbständig",{"$f":"Bewertungen!E56","v":0},{"$f":"IF(F35=\"x\",1,0)","v":0},1,{"$f":"G35*H35","v":0}]
[null,null,null,"Die Person kann die Aktivität zu einem geringen Teil selbständig durchführen, beispielsweise schneidet sie zwar belegte Brotscheiben, schafft es aber nicht, mundgerechte Stücke herzustellen. Oder sie gießt aus einer Flasche Wasser ins Glas, verschüttet das Wasser dabei jedoch regelmäßig.","überwiegend unselbständig",{"$f":"Bewertungen!F56","v":0},{"$f":"IF(F36=\"x\",1,0)","v":0},2,{"$f":"G36*H36","v":0}]
[null,null,null,"Die Person kann sich an der Aktivität nicht oder nur minimal beteiligen.","unselbständig",{"$f":"Bewertungen!G56","v":0},{"$f":"IF(F37=\"x\",1,0)","v":0},3,{"$f":"G37*H37","v":0},{"$f":"SUM(I34:I37)","v":0}]
[null,"Bereit gestellte, mundgerecht zubereitete Speisen essen: Dies beinhaltet das Aufnehmen, zum Mund Führen, ggf. Abbeißen, Kauen und Schlucken von mundgerecht zubereiteten Speisen, die üblicherweise mit den Fingern gegessen werden, z. B. Brot, Kekse, Obst oder das Essen mit Gabel oder Löffel, ggf. mit speziellen Hilfsmitteln wie adaptiertem Besteck. Zu berücksichtigen ist auch, inwieweit die Notwendigkeit der ausreichenden Nahrungsaufnahme (auch ohne Hungergefühl oder Appetit) erkannt und die empfohlene, gewohnte Menge tatsächlich gegessen wird. Das Einhalten von Diäten ist nicht hier sondern unter Punkt F 4.5.16 zu bewerten. Die Beurteilung ist auch dann vorzunehmen, wenn die Nahrungsaufnahme über eine Sonde bzw. parenteral erfolgt.","4.8 Essen"]
[null,null,null,"Die Person kann die beschriebene Aktivität ohne personelle Hilfe durchführen.","selbständig",{"$f":"Bewertungen!D57","v":0},{"$f":"IF(F39=\"x\",1,0)","v":0},0,{"$f":"G39*H39","v":0}]
[null,null,null,"Die Person kann überwiegend selbständig essen, benötigt aber punktuelle Anleitung, muss beispielsweise aufgefordert werden, mit dem Essen zu beginnen oder weiter zu essen. Es sind punktuelle Hilfen erforderlich, z. B. Zurücklegen aus der Hand gerutschter Speisen oder Besteck in die Hand geben.","überwiegend selbständig",{"$f":"Bewertungen!E57","v":0},{"$f":"IF(F40=\"x\",1,0)","v":0},3,{"$f":"G40*H40","v":0}]
[null,null,null,"Es muss ständig zur Nahrungsaufnahme motiviert werden oder die Nahrung muss größtenteils gereicht werden oder es ist ständige und unmittelbare Eingreifbereitschaft der Pflegeperson erforderlich, aufgrund von Aspirationsgefahr.","überwiegend unselbständig",{"$f":"Bewertungen!F57","v":0},{"$f":"IF(F41=\"x\",1,0)","v":0},6,{"$f":"G41*H41","v":0},"Kriterium wird dreifach gewichtet!"]
[null,null,null,"Die Nahrung muss (nahezu) komplett gereicht werden.","unselbständig",{"$f":"Bewertungen!G57","v":0},{"$f":"IF(F42=\"x\",1,0)","v":0},9,{"$f":"G42*H42","v":0},{"$f":"SUM(I39:I42)","v":0}]
[null,"Bereitstehende Getränke aufnehmen, ggf. mit Gegenständen wie Strohhalm, Spezialbecher mit Trinkaufsatz: Zu berücksichtigen ist auch, inwieweit die Notwendigkeit der Flüssigkeitsaufnahme (auch ohne ausreichendes Durstgefühl) erkannt und die empfohlene oder gewohnte Menge tatsächlich getrunken wird. Die Beurteilung der Selbständigkeit ist auch dann vorzunehmen, wenn die Flüssigkeitsaufnahme über eine Sonde bzw. parenteral erfolgt.","4.9 Trinken"]
[null,null,null,"Die Person kann die beschriebene Aktivität ohne personelle Hilfe durchführen.","selbständig",{"$f":"Bewertungen!D58","v":0},{"$f":"IF(F44=\"x\",1,0)","v":0},0,{"$f":"G44*H44","v":0}]
[null,null,null,"Die Person kann selbständig trinken, wenn ein Glas, eine Tasse unmittelbar in den Aktionsradius der Person positioniert oder sie ans Trinken erinnert wird.","überwiegend selbständig",{"$f":"Bewertungen!E58","v":0},{"$f":"IF(F45=\"x\",1,0)","v":0},2,{"$f":"G45*H45","v":0}]
[null,null,null,"Das Trinkgefäß muss beispielsweise in die Hand gegeben werden, das Trinken erfolgt jedoch selbständig oder die Person muss zu fast jedem Schluck motiviert werden oder es ist ständige und unmittelbare Eingreifbereitschaft der Pflegeperson erforderlich, aufgrund von Aspirationsgefahr.","überwiegend unselbständig",{"$f":"Bewertungen!F58","v":0},{"$f":"IF(F46=\"x\",1,0)","v":0},4,{"$f":"G46*H46","v":0},"Kriterium wird doppelt gewichtet!"]
[null,null,null,"Getränke müssen (nahezu) komplett gereicht werden.","unselbständig",{"$f":"Bewertungen!G58","v":0},{"$f":"IF(F47=\"x\",1,0)","v":0},6,{"$f":"G47*H47","v":0},{"$f":"SUM(I44:I47)","v":0}]
[null,"Gehen zur Toilette, Hinsetzen und Aufstehen, Sitzen während der Blasen-oder Darmentleerung, Intimhygiene und Richten der Kleidung: Die Beurteilung ist auch dann vorzunehmen, wenn anstelle der Toilettenbenutzung eine Versorgung mit Hilfsmitteln erfolgt, z. B. Inkontinenzmaterial, Katheter, Urostoma, Ileooder Colostoma.","4.10 Benutzen einer Toilette oder eines Toilettenstuhls"]
[null,null,null,"Die Person kann die Aktivität ohne personelle Hilfe durchführen.","selbständig",{"$f":"Bewertungen!D59","v":0},{"$f":"IF(F49=\"x\",1,0)","v":0},0,{"$f":"G49*H49","v":0}]
[null,null,null,"Die Person kann die Aktivität überwiegend selbständig durchführen. Personelle Hilfe kann sich beispielsweise beschränken auf einzelne Handlungsschritte wie:\n- nur Bereitstellen und Leeren des Toilettenstuhls (alternativ Urinflasche oder anderer Behälter),\n- nur Aufforderung oder Orientierungshinweise zum Auffinden der Toilette oder Begleitung auf dem Weg zur Toilette,\n- nur Anreichen von Toilettenpapier oder Waschlappen, Intimhygiene nur nach Stuhlgang,\n- nur Unterstützung beim Hinsetzen, Aufstehen von der Toilette,\n- nur punktuelle Hilfe beim Richten der Bekleidung","überwiegend selbständig",{"$f":"Bewertungen!E59","v":0},{"$f":"IF(F50=\"x\",1,0)","v":0},2,{"$f":"G50*H50","v":0}]
[null,null,null,"Die Person kann nur einzelne Handlungsschritte selbst ausführen, z. B. nur Richten der Bekleidung oder Intimhygiene nur nach Wasserlassen.","überwiegend unselbständig",{"$f":"Bewertungen!F59","v":0},{"$f":"IF(F51=\"x\",1,0)","v":0},4,{"$f":"G51*H51","v":0},"Kriterium wird doppelt gewichtet!"]
[null,null,null,"Die Person kann sich nicht oder nur minimal an der Aktivität beteiligen.","unselbständig",{"$f":"Bewertungen!G59","v":0},{"$f":"IF(F52=\"x\",1,0)","v":0},6,{"$f":"G52*H52","v":0},{"$f":"SUM(I49:I52)","v":0}]
[null,"Inkontinenz- und Stomasysteme sachgerecht verwenden, nach Bedarf wechseln und entsorgen: Dazu gehört auch das Entleeren eines Urinbeutels bei Dauerkatheter, Urostoma oder die Anwendung eines Urinalkondoms. Die regelmäßige Einmalkatheterisierung ist nicht hier sondern unter Punkt 5.10 zu erfassen.","4.11 Bewältigen der Folgen einer Harninkontinenz und Umgang mit Dauerkatheter und Urostoma\n"]
[null,null,null,"entfällt, wenn ständig oder überwiegend kontinent: Ständig kontinent: (keine unwillkürlichen Harnabgänge) (4.11 entfällt). Überwiegend kontinent: Maximal 1x täglichunwillkürlicher Harnabgang oder Tröpfcheninkontinenz) (4.11 entfällt). Überwiegend inkontinent: Mehrmals täglich unwillkürliche Harnabgänge.  ","entfällt",{"$f":"Bewertungen!D61","v":0},{"$f":"IF(F54=\"x\",1,0)","v":0},0,{"$f":"G54*H54","v":0}]
[null,null,null,"Die Person kann Hilfsmittel selbständig benutzen.","selbständig",{"$f":"Bewertungen!E61","v":0},{"$f":"IF(F55=\"x\",1,0)","v":0},0,{"$f":"G55*H55","v":0}]
[null,"Achtung!",null,"Die Person kann die Aktivität überwiegend selbständig durchführen, wenn Inkontinenzsysteme bereit gelegt oder entsorgt werden oder an den Wechsel erinnert wird.","überwiegend selbständig",{"$f":"Bewertungen!F61","v":0},{"$f":"IF(F56=\"x\",1,0)","v":0},1,{"$f":"G56*H56","v":0}]
[null,null,null,"Die Person kann sich am Wechsel der Inkontinenzsysteme beteiligen, z. B. nur Vorlagen einlegen oder Inkontinenzhosen nur entfernen.","überwiegend unselbständig",{"$f":"Bewertungen!G61","v":0},{"$f":"IF(F57=\"x\",1,0)","v":0},2,{"$f":"G57*H57","v":0}]
[null,null,null,"Beteiligung ist nicht oder nur minimal möglich.","unselbständig",{"$f":"Bewertungen!H61","v":0},{"$f":"IF(F58=\"x\",1,0)","v":0},3,{"$f":"G58*H58","v":0},{"$f":"SUM(I54:I58)","v":0}]
[null,"Inkontinenz- und Stomasysteme sachgerecht verwenden, nach Bedarf wechseln und entsorgen: Dazu gehört Inkontinenzsysteme, z. B. große Vorlagen mit Netzhose, Inkontinenzhose mit Klebestreifen oder Pants sachgerecht verwenden, nach Bedarf wechseln und entsorgen. Dazu gehört auch die Anwendung eines Analtampons oder das Entleeren oder Wechseln eines Stomabeutels bei Enterostoma. Die Pflege des Stomas und der Wechsel einer Basisplatte ist unter 5.9 zu berücksichtigen.","4.12 Bewältigen der Folgen einer Stuhlinkontinenz und Umgang  mit Stoma"]
[null,null,null,"entfällt, wenn ständig oder überwiegend kontinent: Ständig kontinent: keine unwillkürlichen Stuhlabgänge (4.12 entfällt). Überwiegend kontinent: gelegentlich unwillkürliche Stuhlabgänge oder nur geringe Stuhlmengen, sogenannte Schmierstühle (4.12 entfällt). Überwiegend inkontinent: selten gesteuerte Darmentleerung.  ","entfällt",{"$f":"Bewertungen!D62","v":0},{"$f":"IF(F60=\"x\",1,0)","v":0},0,{"$f":"G60*H60","v":0}]
[null,null,null,"Die Person kann Hilfsmittel selbständig benutzen.","selbständig",{"$f":"Bewertungen!E62","v":0},{"$f":"IF(F61=\"x\",1,0)","v":0},0,{"$f":"G61*H61","v":0}]
[null,"Achtung!",null,"Die Person kann die Aktivität überwiegend selbständig durchführen, wenn Inkontinenzsysteme bereit gelegt und entsorgt werden oder an den Wechsel erinnert wird.","überwiegend selbständig",{"$f":"Bewertungen!F62","v":0},{"$f":"IF(F62=\"x\",1,0)","v":0},1,{"$f":"G62*H62","v":0}]
[null,null,null,"Die Person kann sich am Wechsel der Inkontinenzsysteme beteiligen, z.B. Mithilfe beim Wechsel eines Stomabeutels. Bei Vorliegen einer Stuhlinkontinenz sind Ressourcen beim Wechsel des Inkontinenzmaterials eher selten.","überwiegend unselbständig",{"$f":"Bewertungen!G62","v":0},{"$f":"IF(F63=\"x\",1,0)","v":0},2,{"$f":"G63*H63","v":0}]
[null,null,null,"Beteiligung ist nicht (oder nur minimal) möglich.","unselbständig",{"$f":"Bewertungen!H62","v":0},{"$f":"IF(F64=\"x\",1,0)","v":0},3,{"$f":"G64*H64","v":0},{"$f":"SUM(I60:I64)","v":0}]
[null,"Blaseninkontinenz: Ständig kontinent: (keine unwillkürlichen Harnabgänge) (4.11 entfällt). Überwiegend kontinent: Maximal 1x täglichunwillkürlicher Harnabgang oder Tröpfcheninkontinenz) (4.11 entfällt). Überwiegend inkontinent: Mehrmals täglich unwillkürliche Harnabgänge.  Stuhlinkontinenz: Ständig kontinent: keine unwillkürlichen Stuhlabgänge (4.12 entfällt). Überwiegend kontinent: gelegentlich unwillkürliche Stuhlabgänge oder nur geringe Stuhlmengen, sogenannte Schmierstühle (4.12 entfällt). Überwiegend inkontinent: selten gesteuerte Darmentleerung.  ","Achtung: Frage 4.11 und 4.12 entfällt, wenn überwiegend oder ständig kontinent."]
[null,null,"(siehe Erläuterung im hellblauen Feld links)"]
[]
[null,"Ernährung über einen parenteralen Zugang (z. B. einen Port) oder über einen Zugang in den Magen oder Dünndarm (PEG/PEJ)","4.13 Ernährung parenteral oder über Sonde"]
[null,null,null,"keine Ernährung parenteral oder über Sonde.","entfällt",{"$f":"Bewertungen!D66","v":0},{"$f":"IF(F69=\"x\",1,0)","v":0},0,{"$f":"G69*H69","v":0}]
[null,null,null,"Die Person führt die Versorgung ohne Fremdhilfe durch.","ohne Hilfe: selbständig",{"$f":"Bewertungen!E66","v":0},{"$f":"IF(F70=\"x\",1,0)","v":0},0,{"$f":"G70*H70","v":0}]
[null,null,null,"erfolgt mit fremder Hilfe: Die Person erhält zusätzlich zur oralen Nahrungsaufnahme Nahrung oder Flüssigkeit parenteral oder über Sonde, aber nur gelegentlich oder vorübergehend.","mit Hilfe: nicht täglich, nicht auf Dauer",{"$f":"Bewertungen!F66","v":0},{"$f":"IF(F71=\"x\",1,0)","v":0},0,{"$f":"G71*H71","v":0}]
[null,null,null,"erfolgt mit fremder Hilfe: Die Person erhält in der Regel täglich Nahrung oder Flüssigkeit parenteral oder über Sonde und täglich oral Nahrung. Sie wird zum Teil, aber nicht ausreichend über die orale Nahrungsaufnahme ernährt und benötigt zur Nahrungsergänzung bzw. zur Vermeidung von Mangelernährung täglich Sondenkost.","mit Hilfe: täglich, zusätzlich zu oraler Ernährung",{"$f":"Bewertungen!G66","v":0},{"$f":"IF(F72=\"x\",1,0)","v":0},6,{"$f":"G72*H72","v":0},"weniger Punkte bei \"ausschließlich\""]
[null,null,null,"erfolgt mit fremder Hilfe: Die Person erhält ausschließlich oder nahezu ausschließlich Nahrung und Flüssigkeit parenteral oder über Sonde. Eine orale Nahrungsaufnahme erfolgt nicht oder nur in geringem Maße zur Förderung der Sinneswahrnehmung.","mit Hilfe: ausschließlich oder nahezu ausschließlich",{"$f":"Bewertungen!H66","v":0},{"$f":"IF(F73=\"x\",1,0)","v":0},3,{"$f":"G73*H73","v":0},{"$f":"SUM(I69:I73)","v":0}]

{"sheet":"M5","index":10,"n_rows":83,"n_cols":17,"rows_kept":83,"cut":false,"hidden":false,"merged":[[1,1,1,4],[2,1,2,9],[0,5,0,8]]}
[null,"Modul",null,"Hinweise","Beim Klicken auf hellblaue Felder vor den Kategorien erscheinen Erläuterungen aus dem Begutachtungsmanual in der Bearbeitungsleiste (über den Spalten).","Schwellenwerte (wenn erreicht, dann 1-4 Punkte bei M2)",null,null,null,"Gewich-tungs-faktor",null,"Gesamt-punktwert (für dieses Modul)","Beeinträchti-gung der Selbständig-keit (0-4)","gewichteter Gesamt-punktwert",null,"gewichteter Punktwert (über alle Module)","Pflegegrad (über alle Module)"]
["Der Bereich „Bewältigung von und selbständiger Umgang mit krankheits- oder therapiebedingten Anforderungen und Belastungen“ erfasst im Rahmen der Begutachtung vom bisherigen Pflegebedürftigkeitsbegriff nicht berücksichtigte Aktivitäten und Fähigkeiten. Sie sind dem Themenkreis der selbstständigen Krankheitsbewältigung zuzuordnen, und zwar insbesondere der „krankheitsbezogene Arbeit“, die direkt auf die Kontrolle von Erkrankungen und Symptomen sowie auf die Durchführung therapeutischer Interventionen bezogen ist. Hierbei geht es ausdrücklich nicht darum, den Bedarf an Maßnahmen der häuslichen Krankenpflege bzw. Behandlungspflege nach dem Fünften Buch einzuschätzen. Insoweit gilt § 13 Absatz 2 SGB XI. Diese Leistungen werden auch weiterhin in der häuslichen Versorgung von der Gesetzlichen Krankenversicherung erbracht; in der vollstationären Versorgung im Rahmen des § 43 SGB XI von der Pflegeversicherung. Ein Großteil der hier aufgeführten Maßnahmen und Handlungen kann von erkrankten Personen eigenständig durchgeführt werden, sofern sie über die dazu nötigen Ressourcen verfügen, d. h. über körperliche und kognitive Fähigkeiten, spezifische Fertigkeiten, Motivation, Kenntnisse u. a. m. Dies gilt auch für Maßnahmen, die nur selten von den Erkrankten selbst durchgeführt werden, wie z. B. das Absaugen von Sekret oder die regelmäßige Einmalkatheterisierung. Mit dem Bereich ist daher häufig ein Hilfebedarf bei der Anleitung und Motivation oder Schulung verknüpft.\nIn die Bewertung gehen nur die ärztlich angeordneten Maßnahmen ein, die gezielt auf eine bestehende Erkrankung ausgerichtet und für voraussichtlich mindestens sechs Monate erforderlich sind. Die ärztliche Anordnung kann sich auch auf nicht verschreibungspflichtige Medikamente oder äußerliche Anwendungen oder Übungsbehandlungen beziehen.\nZu bewerten ist, ob die Person die jeweilige Aktivität praktisch durchführen kann. Ist dies nicht der Fall, wird die Häufigkeit der erforderlichen Hilfe durch andere Personen dokumentiert (Anzahl pro Tag/pro Woche/pro Monat). Es ist unerheblich, ob die personelle Unterstützung durch Pflegepersonen oder Pflege(fach-)kräfte erfolgt und auch ob sie gemäß § 37 SGB V verordnet und abgerechnet wird.\nZu jedem Kriterium ist nur ein Eintrag möglich:\nEntfällt oder selbständig oder Häufigkeit der Hilfe mit einer vollen Zahl pro Tag, pro Woche oder pro Monat. Ggf. ist von Tag auf Woche oder auf Monat umzurechnen. Zur Umrechnung von Woche auf Monat werden wöchentliche Maßnahmen mit vier multipliziert.\nErfolgt eine Medikation z. B. jeden zweiten Tag, so kann man diese Frequenz nur mit 15 x pro Monat darstellen. Werden zweimal täglich Insulin-Injektionen gegeben und zweimal wöchentlich zusätzlich andere Injektionen, ist umzurechnen auf die Woche. Es erfolgt der Eintrag 16 x pro Woche.","5. Umgang mit krankheits- / therapiebedingten Anforderungen und Belastungen",null,null,null,1,2,4,6,5,null,{"$f":"SUM(J5:J83)","v":0},{"$f":"IF(L2>=I2,4,IF(L2>=H2,3,IF(L2>=G2,2,IF(L2>=F2,1,0))))","v":0},{"$f":"M2*J2","v":0},null,{"$f":"Pflegegrad!D9","v":0},{"$f":"Pflegegrad!E9","v":0}]
[null,"Achtung: Hier sind nur Angaben zu ärztlich angeordneten Maßnahmen zu machen, wenn die Hilfe einer anderen Person gebraucht wird und die Aktivitäten voraussichtlich länger als 6 Monate erforderlich sind. \n",null,null,null,null,null,null,null,null,"hier werden jeweils Gruppen von Kriterien zu einem Wert zusammengefasst"]
[null,"Orale Medikation, Augen- oder Ohrentropfen, Zäpfchen und Medikamentenpflaster: Das Ausmaß der Hilfestellung kann von 1x wöchentlichen Stellen der Medikamente im Wochendispenser bis zu mehrfach täglicher Einzelgabe differieren. Werden Medikamente verabreicht, ist das Stellen nicht gesondert zu berücksichtigen.","5.1 Medikation"]
[null,null,null,null,"entfällt oder selbständig",{"$f":"Bewertungen!D75","v":0},{"$f":"IF(F5=\"x\",1,0)","v":0},0,{"$f":"ROUND(G5*H5,4)","v":0}]
[null,null,null,null,"wie oft monatlich",{"$f":"Bewertungen!E75","v":0},{"$f":"F6","v":0},{"$f":"1/30","v":3.3333333333333333E-2},{"$f":"ROUND(G6*H6,4)","v":0}]
[null,null,null,null,"wie oft wöchentlich",{"$f":"Bewertungen!F75","v":0},{"$f":"F7","v":0},{"$f":"1/7","v":0.14285714285714285},{"$f":"ROUND(G7*H7,4)","v":0}]
[null,null,null,null,"wie oft täglich",{"$f":"Bewertungen!G75","v":0},{"$f":"F8","v":0},1,0,null,{"$f":"SUM(I5:I8)","v":0}]
[null,"Subkutane und intramuskuläre Injektionen und subkutane Infusionen: Dazu gehören z. B. Insulininjektionen oder auch die Versorgung mit Medikamentenpumpen über einen subkutanen Zugang.","5.2 Injektionen (s.c./i.m.)"]
[null,null,null,null,"entfällt oder selbständig",{"$f":"Bewertungen!D76","v":0},{"$f":"IF(F10=\"x\",1,0)","v":0},0,{"$f":"ROUND(G10*H10,4)","v":0}]
[null,null,null,null,"wie oft monatlich",{"$f":"Bewertungen!E76","v":0},{"$f":"F11","v":0},{"$f":"1/30","v":3.3333333333333333E-2},{"$f":"ROUND(G11*H11,4)","v":0}]
[null,null,null,null,"wie oft wöchentlich",{"$f":"Bewertungen!F76","v":0},{"$f":"F12","v":0},{"$f":"1/7","v":0.14285714285714285},{"$f":"ROUND(G12*H12,4)","v":0},null,null,"Exceldatei erstellt von: "]
[null,null,null,null,"wie oft täglich",{"$f":"Bewertungen!G76","v":0},{"$f":"F13","v":0},1,0,null,{"$f":"SUM(I10:I13)","v":0},"Günther Schwarz, Alzheimer Beratung, Evangelische Gesellschaft, Stuttgart. ©"]
[null,"Hierunter fällt hauptsächlich die Port-Versorgung. Sie ist oft fachpflegerisch erforderlich. In Bezug auf den Umgang mit intravenösen Zugängen ist auch die Kontrolle zur Vermeidung von Komplikationen wie Verstopfung des Katheters zu berücksichtigen. Analog ist auch die Versorgung intrathekaler Zugänge hier zu erfassen. Das Anhängen von Nährlösungen zur parenteralen Ernährung ist nicht hier sondern unter Punkt 4.13 zu erfassen.","5.3 Versorgung intravenöser Zugänge (z. B. Port)"]
[null,null,null,null,"entfällt oder selbständig",{"$f":"Bewertungen!D77","v":0},{"$f":"IF(F15=\"x\",1,0)","v":0},0,{"$f":"ROUND(G15*H15,4)","v":0},null,null,"Anleitung siehe Reiter \"Anleitung\" (unten anklicken)"]
[null,null,null,null,"wie oft monatlich",{"$f":"Bewertungen!E77","v":0},{"$f":"F16","v":0},{"$f":"1/30","v":3.3333333333333333E-2},{"$f":"ROUND(G16*H16,4)","v":0}]
[null,null,null,null,"wie oft wöchentlich",{"$f":"Bewertungen!F77","v":0},{"$f":"F17","v":0},{"$f":"1/7","v":0.14285714285714285},{"$f":"ROUND(G17*H17,4)","v":0}]
[null,null,null,null,"wie oft täglich",{"$f":"Bewertungen!G77","v":0},{"$f":"F18","v":0},1,0,null,{"$f":"SUM(I15:I18)","v":0}]
[null,"Absaugen kann z. B. bei beatmeten oder tracheotomierten Patienten in sehr unterschiedlicher und wechselnder Häufigkeit notwendig sein. Es ist der durchschnittliche Bedarf anzugeben. Ebenso ist hier das An- und Ablegen von Sauerstoffbrillen oder analog auch von Atemmasken zur nächtlichen Druckbeatmung zu erfassen sowie das Bereitstellen eines Inhalationsgerätes (inkl. deren Reinigung). Jede Maßnahme ist auch einzeln zu berücksichtigen.","5.4 Absaugen oder Sauerstoffgabe"]
[null,null,null,null,"entfällt oder selbständig",{"$f":"Bewertungen!D78","v":0},{"$f":"IF(F20=\"x\",1,0)","v":0},0,{"$f":"ROUND(G20*H20,4)","v":0}]
[null,null,null,null,"wie oft monatlich",{"$f":"Bewertungen!E78","v":0},{"$f":"F21","v":0},{"$f":"1/30","v":3.3333333333333333E-2},{"$f":"ROUND(G21*H21,4)","v":0}]
[null,null,null,null,"wie oft wöchentlich",{"$f":"Bewertungen!F78","v":0},{"$f":"F22","v":0},{"$f":"1/7","v":0.14285714285714285},{"$f":"ROUND(G22*H22,4)","v":0}]
[null,null,null,null,"wie oft täglich",{"$f":"Bewertungen!G78","v":0},{"$f":"F23","v":0},1,0,null,{"$f":"SUM(I20:I23)","v":0}]
[null,"Hier sind alle externen Anwendungen mit ärztlich verordneten Salben, Cremes, Emulsionen etc. abzubilden, außerdem Kälte- und Wärmeanwendungen, die z.B. bei rheumatischen Erkrankungen verordnet werden. Jede Maßnahme ist auch einzeln zu berücksichtigen.","5.5 Einreibungen sowie Kälte- und Wärmeanwendungen"]
[null,null,null,null,"entfällt oder selbständig",{"$f":"Bewertungen!D79","v":0},{"$f":"IF(F25=\"x\",1,0)","v":0},0,{"$f":"ROUND(G25*H25,4)","v":0}]
[null,null,null,null,"wie oft monatlich",{"$f":"Bewertungen!E79","v":0},{"$f":"F26","v":0},{"$f":"1/30","v":3.3333333333333333E-2},{"$f":"ROUND(G26*H26,4)","v":0}]
[null,null,null,null,"wie oft wöchentlich",{"$f":"Bewertungen!F79","v":0},{"$f":"F27","v":0},{"$f":"1/7","v":0.14285714285714285},{"$f":"ROUND(G27*H27,4)","v":0}]
[null,null,null,null,"wie oft täglich",{"$f":"Bewertungen!G79","v":0},{"$f":"F28","v":0},1,0,null,{"$f":"SUM(I25:I28)","v":0}]
[null,"Die Aktivität umfasst Messungen wie z. B. Blutdruck, Puls, Blutzucker, Temperatur, Körpergewicht, Flüssigkeitshaushalt, soweit diese auf ärztliche Anordnung  erfolgen. Dabei geht es nicht nur darum, die Messung durchzuführen, sondern auch notwendige Schlüsse zu ziehen, etwa zur Festlegung der erforderlichen Insulindosis oder zur Notwendigkeit anderer Maßnahmen, wie das Umstellen der Ernährung oder auch das Aufsuchen einer Ärztin oder eines Arztes. Dies gilt beispielsweise auch für Menschen mit erhöhtem Blutdruck, die zur Ergänzung der medikamentösen Therapie und einer Umstellung ihres Lebensstils regelmäßig Blutdruck und Puls kontrollieren.","5.6 Messung und Deutung von Körperzuständen"]
[null,null,null,null,"entfällt oder selbständig",{"$f":"Bewertungen!D80","v":0},{"$f":"IF(F30=\"x\",1,0)","v":0},0,{"$f":"ROUND(G30*H30,4)","v":0}]
[null,null,null,null,"wie oft monatlich",{"$f":"Bewertungen!E80","v":0},{"$f":"F31","v":0},{"$f":"1/30","v":3.3333333333333333E-2},{"$f":"ROUND(G31*H31,4)","v":0}]
[null,null,null,null,"wie oft wöchentlich",{"$f":"Bewertungen!F80","v":0},{"$f":"F32","v":0},{"$f":"1/7","v":0.14285714285714285},{"$f":"ROUND(G32*H32,4)","v":0}]
[null,null,null,null,"wie oft täglich",{"$f":"Bewertungen!G80","v":0},{"$f":"F33","v":0},1,0,null,{"$f":"SUM(I30:I33)","v":0}]
[null,"Hierunter versteht man beispielsweise das Anund Ablegen von Prothesen, kieferorthopädische Apparaturen; Orthesen, Brille, Hörgerät oder Kompressionsstrümpfen (inkl. deren Reinigung). Der Umgang mit Zahnprothesen ist unter Punkt 4.2 zu erfassen.","5.7 Körpernahe Hilfsmittel"]
[null,null,null,null,"entfällt oder selbständig",{"$f":"Bewertungen!D81","v":0},{"$f":"IF(F35=\"x\",1,0)","v":0},0,{"$f":"ROUND(G35*H35,4)","v":0}]
[null,null,null,null,"wie oft monatlich",{"$f":"Bewertungen!E81","v":0},{"$f":"F36","v":0},{"$f":"1/30","v":3.3333333333333333E-2},{"$f":"ROUND(G36*H36,4)","v":0}]
[null,null,null,null,"wie oft wöchentlich",{"$f":"Bewertungen!F81","v":0},{"$f":"F37","v":0},{"$f":"1/7","v":0.14285714285714285},{"$f":"ROUND(G37*H37,4)","v":0}]
[null,null,null,null,"wie oft täglich",{"$f":"Bewertungen!G81","v":0},{"$f":"F38","v":0},1,0,{"$f":"IF(K39>8,3,IF(K39>3,2,IF(K39>=1,1,0)))","v":0},{"$f":"SUM(I35:I38)","v":0}]
[null,null,null,null,null,null,null,null,null,null,{"$f":"SUM(K8:K38)","v":0},"Summe"]
[null,"Die Aktivität beinhaltet die Versorgung chronischer Wunden, wie z. B. Ulcus cruris oder Dekubitus.","5.8 Verbandwechsel und Wundversorgung"]
[null,null,null,null,"entfällt oder selbständig",{"$f":"Bewertungen!D82","v":0},{"$f":"IF(F41=\"x\",1,0)","v":0},0,{"$f":"ROUND(G41*H41,4)","v":0}]
[null,null,null,null,"wie oft monatlich",{"$f":"Bewertungen!E82","v":0},{"$f":"F42","v":0},{"$f":"1/30","v":3.3333333333333333E-2},{"$f":"ROUND(G42*H42,4)","v":0}]
[null,null,null,null,"wie oft wöchentlich",{"$f":"Bewertungen!F82","v":0},{"$f":"F43","v":0},{"$f":"1/7","v":0.14285714285714285},{"$f":"ROUND(G43*H43,4)","v":0}]
[null,null,null,null,"wie oft täglich",{"$f":"Bewertungen!G82","v":0},{"$f":"F44","v":0},1,0,null,{"$f":"SUM(I41:I44)","v":0}]
[null,"Gemeint ist hier die Pflege künstlicher Körperöffnungen wie Tracheostoma, PEG, subrapubischer Blasenkatheter, Urostoma, Colooder Ileostoma. Hierbei ist auch das Reinigen des Katheters, die Desinfektion der Einstichstelle der PEG und falls notwendig auch der Verbandswechsel zu bewerten. Die Pflege eines Urostoma, Colo-oder Ileostoma ist in der Regel mit dem der Wechsel der Basisplatte oder dem Wechsel eines einteiligen Systems verbunden. Der einfache Wechsel oder das Entleeren eines Stomaoder Katheterbeutels oder das Anhängen von Sondennahrung sind unter den Punkten 4.11 ff zu werten.","5.9 Versorgung mit Stoma"]
[null,null,null,null,"entfällt oder selbständig",{"$f":"Bewertungen!D83","v":0},{"$f":"IF(F46=\"x\",1,0)","v":0},0,{"$f":"ROUND(G46*H46,4)","v":0}]
[null,null,null,null,"wie oft monatlich",{"$f":"Bewertungen!E83","v":0},{"$f":"F47","v":0},{"$f":"1/30","v":3.3333333333333333E-2},{"$f":"ROUND(G47*H47,4)","v":0}]
[null,null,null,null,"wie oft wöchentlich",{"$f":"Bewertungen!F83","v":0},{"$f":"F48","v":0},{"$f":"1/7","v":0.14285714285714285},{"$f":"ROUND(G48*H48,4)","v":0}]
[null,null,null,null,"wie oft täglich",{"$f":"Bewertungen!G83","v":0},{"$f":"F49","v":0},1,0,null,{"$f":"SUM(I46:I49)","v":0}]
[null,"Regelmäßige Einmalkatheterisierungen kommen insbesondere bei neurogenen Blasenentleerungsstörungen vor. Mit Abführmethoden sind Anwendungen von Klistier, Einlauf, digitale Ausräumung gemeint.","5.10 Regelmäßige Einmalkatheterisierung und Nutzung von Abführmethoden"]
[null,null,null,null,"entfällt oder selbständig",{"$f":"Bewertungen!D84","v":0},{"$f":"IF(F51=\"x\",1,0)","v":0},0,{"$f":"ROUND(G51*H51,4)","v":0}]
[null,null,null,null,"wie oft monatlich",{"$f":"Bewertungen!E84","v":0},{"$f":"F52","v":0},{"$f":"1/30","v":3.3333333333333333E-2},{"$f":"ROUND(G52*H52,4)","v":0}]
[null,null,null,null,"wie oft wöchentlich",{"$f":"Bewertungen!F84","v":0},{"$f":"F53","v":0},{"$f":"1/7","v":0.14285714285714285},{"$f":"ROUND(G53*H53,4)","v":0}]
[null,null,null,null,"wie oft täglich",{"$f":"Bewertungen!G84","v":0},{"$f":"F54","v":0},1,0,null,{"$f":"SUM(I51:I54)","v":0}]
[null,"Bei vielen Erkrankungen werden aus einer Heilmitteltherapie heraus Anweisungen zu einem Eigenübungsprogramm gegeben, welches dauerhaft und regelmäßig durchgeführt werden soll, z. B. krankengymnastische Übungen, Atemübungen oder logopädische Übungen. Des Weiteren sind Maßnahmen zur Sekretelemination (ausgenommen Absaugen) zu nennen oder die Durchführung spezifischer Therapien nach Bobath oder Vojta oder die Durchführung ambulanter Peritonealdialyse (CAPD).","5.11 Therapiemaßnahmen in häuslicher Umgebung"]
[null,null,null,null,"entfällt oder selbständig",{"$f":"Bewertungen!D85","v":0},{"$f":"IF(F56=\"x\",1,0)","v":0},0,{"$f":"ROUND(G56*H56,4)","v":0}]
[null,null,null,null,"wie oft monatlich",{"$f":"Bewertungen!E85","v":0},{"$f":"F57","v":0},{"$f":"1/30","v":3.3333333333333333E-2},{"$f":"ROUND(G57*H57,4)","v":0}]
[null,null,null,null,"wie oft wöchentlich",{"$f":"Bewertungen!F85","v":0},{"$f":"F58","v":0},{"$f":"1/7","v":0.14285714285714285},{"$f":"ROUND(G58*H58,4)","v":0}]
[null,null,null,null,"wie oft täglich",{"$f":"Bewertungen!G85","v":0},{"$f":"F59","v":0},1,0,{"$f":"IF(K60>=3,3,IF(K60>=1,2,IF(K60>=1/7,1,0)))","v":0},{"$f":"SUM(I56:I59)","v":0}]
[null,null,null,null,null,null,null,null,null,null,{"$f":"SUM(K44:K59)","v":0},"Summe"]
[null,"Gemeint sind hier spezielle Therapiemaßnahmen wie Hämodialyse oder Beatmung, die im häuslichen Umfeld durchgeführt werden können, wenn ständige Überwachung während der Maßnahme durch geschulte Pflegepersonen gewährleistet wird. Spezielle Krankenbeobachtung (gemäß Pos. 24 HKP-Richtlinie) ist meist rund um die Uhr erforderlich, z. B. bei maschineller Beatmung, und ist mit einmal täglich einzutragen.","5.12 Zeit- und technikintensive Maßnahmen in häuslicher Umgebung"]
[null,null,null,null,"entfällt oder selbständig",{"$f":"Bewertungen!D87","v":0},{"$f":"IF(F62=\"x\",1,0)","v":0},0,{"$f":"G62*H62","v":0}]
[null,null,null,null,"wie oft monatlich",{"$f":"Bewertungen!E87","v":0},{"$f":"F63","v":0},2,{"$f":"G63*H63","v":0}]
[null,null,null,null,"wie oft wöchentlich",{"$f":"Bewertungen!F87","v":0},{"$f":"F64","v":0},8.6,{"$f":"G64*H64","v":0}]
[null,null,null,null,"täglich (ggf. \"x\" eingeben)",{"$f":"Bewertungen!G87","v":0},{"$f":"IF(F65=\"x\",1,0)","v":0},60,{"$f":"G65*H65","v":0},null,{"$f":"SUM(I62:I65)","v":0}]
[null,"Hierunter fallen regelmäßige Besuche bei der niedergelassenen Hausärztin bzw. beim niedergelassenen Hausarzt oder Fachärztin bzw. Facharzt zu diagnostischen oder therapeutischen Zwecken. Wenn eine Unterstützung auf dem Weg zu oder bei Arztbesuchen erforderlich ist, ist diese in durchschnittlicher Häufigkeit zu erfassen.","5.13 Arztbesuche"]
[null,null,null,null,"entfällt oder selbständig",{"$f":"Bewertungen!D89","v":0},{"$f":"IF(F67=\"x\",1,0)","v":0},0,{"$f":"G67*H67","v":0}]
[null,null,null,null,"wie oft monatlich",{"$f":"Bewertungen!E89","v":0},{"$f":"F68","v":0},1,{"$f":"G68*H68","v":0}]
[null,null,null,null,"wie oft wöchentlich",{"$f":"Bewertungen!F89","v":0},{"$f":"F69","v":0},4.3,{"$f":"G69*H69","v":0},null,{"$f":"SUM(I67:I69)","v":0}]
[null,"Hier ist das Aufsuchen anderer Therapeuten, z. B. Physiotherapeuten/Krankengymnasten, Ergotherapeuten, Logopäden, Psychotherapeuten, von Krankenhäusern zur ambulanten Behandlung oder Diagnostik oder anderer Einrichtungen des Gesundheitswesens zu berücksichtigen. Sollte der Gesamtzeitaufwand bei der Nutzung dieser Einrichtungen einschließlich der Fahrtzeiten für die Pflegeperson mehr als drei Stunden umfassen, so ist dies unter Punkt 5.15 zu berücksichtigen.","5.14 Besuche anderer medizinischer oder therapeutischer Einrichtungen (bis zu 3 Stunden)"]
[null,null,null,null,"entfällt oder selbständig",{"$f":"Bewertungen!D90","v":0},{"$f":"IF(F71=\"x\",1,0)","v":0},0,{"$f":"G71*H71","v":0}]
[null,null,null,null,"wie oft monatlich",{"$f":"Bewertungen!E90","v":0},{"$f":"F72","v":0},1,{"$f":"G72*H72","v":0}]
[null,null,null,null,"wie oft wöchentlich",{"$f":"Bewertungen!F90","v":0},{"$f":"F73","v":0},4.3,{"$f":"G73*H73","v":0},null,{"$f":"SUM(I71:I73)","v":0}]
[null,"Bei manchen Erkrankungen kann es notwendig sein, spezialisierte Einrichtungen aufzusuchen, wodurch erhebliche Fahrtzeiten anfallen können. Auch kann es erforderlich sein, sich zeitaufwändiger diagnostischer oder therapeutischer Maßnahmen zu unterziehen z. B. onkologische Behandlung oder Dialyse. Der dafür erforderliche Zeitaufwand für die Pflegeperson muss pro Termin mehr als drei Stunden betragen. Sollte der Zeitaufwand bei der Nutzung dieser Einrichtungen (einschl. Fahrtzeiten) unter drei Stunden liegen, so ist dies unter Punkt5.13 oder 5.14 zu berücksichtigen.","5.15 Zeitlich ausgedehnter Besuch medizinischer oder therapeut. Einrichtungen (länger als 3 Std.)"]
[null,null,null,null,"entfällt oder selbständig",{"$f":"Bewertungen!D92","v":0},{"$f":"IF(F75=\"x\",1,0)","v":0},0,{"$f":"G75*H75","v":0}]
[null,null,null,null,"wie oft monatlich",{"$f":"Bewertungen!E92","v":0},{"$f":"F76","v":0},2,{"$f":"G76*H76","v":0}]
[null,null,null,null,"wie oft wöchentlich",{"$f":"Bewertungen!F92","v":0},{"$f":"F77","v":0},8.6,{"$f":"G77*H77","v":0},{"$f":"IF(K78>=60,6,IF(K78>=12.9,3,IF(K78>=8.6,2,IF(K78>=4.3,1,0))))","v":0},{"$f":"SUM(I75:I77)","v":0}]
[null,null,null,null,null,null,null,null,null,null,{"$f":"SUM(K65:K77)","v":0},"Summe"]
[null,"Bei manchen Erkrankungen werden bestimmte Diäten11 oder Essvorschriften oder andere Verhaltensvorschriften von der Ärztin oder vom Arzt angeordnet. Dazu gehören auch die ärztlich angeordnete Nahrungs- und Flüssigkeitszufuhr, in der sowohl die Art und Menge der Lebensmittel wie auch die Art und der Zeitpunkt der Aufnahme aus therapeutischen Gründen geregelt sind, z. B. bei Stoffwechselstörungen, Nahrungsmittelallergien, bei Essstörungen wie Anorexie oder Prader-Willi-Syndrom. Andere Verhaltensvorschriften können sich auf vitale Funktionen beziehen, z. B. Sicherstellung einer Langzeit-Sauerstoff-Therapie bei unruhigen Personen. Diese Vorschriften sind im Einzelnen zu benennen. Im Weiteren sind der Grad der Selbständigkeit bei der Einhaltung dieser Vorschriften und der daraus resultierende Bedarf an personeller Unterstützung zu beurteilen. Es geht hier um die Einsichtsfähigkeit der Person zur Einhaltung der Vorschriften und nicht um die Zubereitung einer Diät oder das An- und Ablegen einer Sauerstoffmaske. Nicht gemeint ist die selbstbestimmte Ablehnung von ärztlichen Vorschriften bei erhaltenen mentalen Funktionen. Liegen keine Vorschriften vor, ist das Feld „entfällt, nicht erforderlich“ anzukreuzen.","5.16 Einhalten einer Diät oder anderer krankheits- oder therapiebedingter Verhaltensvorschriften"]
[null,null,null,"Die Person kann die Vorschriften selbständig einhalten. Das Bereitstellen einer Diät reicht aus. Liegen keine Vorschriften vor, ist das Feld „entfällt, nicht erforderlich“ anzukreuzen.","entfällt oder selbständig",{"$f":"Bewertungen!D94","v":0},{"$f":"IF(F80=\"x\",1,0)","v":0},0,{"$f":"G80*H80","v":0}]
[null,null,null,"Die Person benötigt Erinnerung, Anleitung. In der Regel reicht das Bereitstellen der Diät nicht aus. Darüber hinausgehendes Eingreifen ist maximal einmal täglich erforderlich.","überwiegend selbständig",{"$f":"Bewertungen!E94","v":0},{"$f":"IF(F81=\"x\",1,0)","v":0},1,{"$f":"G81*H81","v":0}]
[null,null,null,"Die Person benötigt meistens Anleitung, Beaufsichtigung. Das Bereitstellen der Diät reicht nicht aus. Darüber hinausgehendes Eingreifen ist mehrmals täglich erforderlich.","überwiegend unselbständig",{"$f":"Bewertungen!F94","v":0},{"$f":"IF(F82=\"x\",1,0)","v":0},2,{"$f":"G82*H82","v":0}]
[null,null,null,"Die Person benötigt immer Anleitung, Beaufsichtigung. Das Bereitstellen der Diät reicht nicht aus. Darüber hinausgehendes Eingreifen ist (fast) durchgehend erforderlich.","unselbständig",{"$f":"Bewertungen!G94","v":0},{"$f":"IF(F83=\"x\",1,0)","v":0},3,{"$f":"G83*H83","v":0},{"$f":"SUM(I80:I83)","v":0}]

{"sheet":"M6","index":11,"n_rows":32,"n_cols":17,"rows_kept":32,"cut":false,"hidden":false,"merged":[[1,1,1,4],[0,5,0,8]]}
[null,"Modul",null,"Hinweise","Beim Klicken auf hellblaue Felder vor den Kategorien erscheinen Erläuterungen aus dem Begutachtungsmanual in der Bearbeitungsleiste (über den Spalten).","Schwellenwerte (wenn erreicht, dann 1-4 Punkte bei M2)",null,null,null,"Gewich-tungs-faktor",null,"Gesamt-punktwert (für dieses Modul)","Beeinträchti-gung der Selbständig-keit (0-4)","gewichteter Gesamt-punktwert",null,"gewichteter Punktwert (über alle Module)","Pflegegrad (über alle Module)"]
["Zu bewerten ist, ob die Person die jeweilige Aktivität praktisch durchführen kann. Es ist unerheblich, ob die Beeinträchtigungen der Selbständigkeit aufgrund von Schädigungen somatischer oder mentaler Funktionen bestehen oder ob Teilaspekte bereits in anderen Modulen berücksichtigt worden sind.","6. Gestaltung des Alltagslebens und sozialer Kontakte",null,null,null,1,4,7,12,3.75,null,{"$f":"SUM(J4:J32)","v":0},{"$f":"IF(L2>=I2,4,IF(L2>=H2,3,IF(L2>=G2,2,IF(L2>=F2,1,0))))","v":0},{"$f":"M2*J2","v":0},null,{"$f":"Pflegegrad!D9","v":0},{"$f":"Pflegegrad!E9","v":0}]
[null,"Den Tagesablauf nach individuellen Gewohnheiten und Vorlieben einteilen und bewusst gestalten und ggf. an äußere Veränderungen anpassen: Dies erfordert planerische Fähigkeiten zur Umsetzung von Alltagsroutinen. Zu beurteilen ist, ob die Person von sich aus festlegen kann, ob und welche Aktivitäten sie im Laufe des Tages durchführen möchte, z. B. wann sie baden, essen oder zu Bett gehen oder ob und wann sie Fernsehen oder spazieren gehen möchte. Solche Festlegungen setzen voraus, dass die zeitliche Orientierung zumindest teilweise erhalten ist. Die Gutachterin bzw. der Gutachter kann dies prüfen, indem er sich z. B. den bisherigen oder künftigen Tagesablauf schildern lässt.","6.1 Gestaltung des Tagesablaufs und Anpassung an Veränderungen"]
[null,null,null,"Die Person kann die beschriebene Aktivität ohne personelle Hilfe durchführen.","selbständig",{"$f":"Bewertungen!D99","v":0},{"$f":"IF(F4=\"x\",1,0)","v":0},0,{"$f":"G4*H4","v":0}]
[null,null,null,"Die Routineabläufe können weitgehend selbständig gestaltet werden, bei ungewohnten Veränderungen ist Unterstützung notwendig. Es reichen z. B. Erinnerungshilfen an einzelne vereinbarte Termine. Überwiegend selbständig ist eine Person beispielsweise auch dann, wenn ihre Kommunikationsfähigkeit oder Sinneswahrnehmung stark beeinträchtigt ist und sie daher Hilfe benötigt, um den Tagesablauf mit anderen Menschen abzustimmen.","überwiegend selbständig",{"$f":"Bewertungen!E99","v":0},{"$f":"IF(F5=\"x\",1,0)","v":0},1,{"$f":"G5*H5","v":0}]
[null,null,null,"Die Person benötigt Hilfe beim Planen des Routinetagesablaufs. Sie ist aber in der Lage, Zustimmung oder Ablehnung zu Strukturierungsangeboten zu signalisieren. Sie kann eigene Planungen häufig nicht einhalten, da diese wieder vergessen werden. Deshalb ist über den ganzen Tag hinweg eine Erinnerung bzw. Aufforderung erforderlich. Überwiegend unselbständig ist auch eine Person, die zwar selbst planen und entscheiden kann, aber für jegliche Umsetzung personelle Hilfe benötigt.","überwiegend unselbständig",{"$f":"Bewertungen!F99","v":0},{"$f":"IF(F6=\"x\",1,0)","v":0},2,{"$f":"G6*H6","v":0}]
[null,null,null,"Mitwirkung an der Tagesstrukturierung oder Orientierung an vorgegebenen Strukturen ist nicht oder nur minimal möglich.","unselbständig",{"$f":"Bewertungen!G99","v":0},{"$f":"IF(F7=\"x\",1,0)","v":0},3,{"$f":"G7*H7","v":0},{"$f":"SUM(I4:I7)","v":0}]
[null,"Nach individuellen Gewohnheiten einen Tag-Nacht-Rhythmus einhalten und für ausreichende Ruhe- und Schlafphasen sorgen: Dazu gehört die Fähigkeit, die Notwendigkeit von Ruhephasen erkennen, sich ausruhen und mit Phasen der Schlaflosigkeit umgehen aber auch somatischen Funktionen, um ins Bett zu kommen und die Ruhephasen insbesondere nachts einhalten zu können.","6.2 Ruhen und Schlafen"]
[null,null,null,"Die Person kann die beschriebene Aktivität ohne personelle Hilfe durchführen","selbständig",{"$f":"Bewertungen!D100","v":0},{"$f":"IF(F9=\"x\",1,0)","v":0},0,{"$f":"G9*H9","v":0}]
[null,null,null,"Die Person benötigt personelle Hilfe beim Aufstehen oder Zu-Bett-Gehen, z. B. Transferhilfen oder zeitliche Orientierungshilfen beim Wecken oder Aufforderung schlafen zu gehen oder einzelne Hilfen wie z. B. Abdunkeln des Schlafraumes. Die Nachtruhe ist meist ungestört, nur gelegentlich entsteht nachts ein Hilfebedarf.","überwiegend selbständig",{"$f":"Bewertungen!E100","v":0},{"$f":"IF(F10=\"x\",1,0)","v":0},1,{"$f":"G10*H10","v":0}]
[null,null,null,"Es treten regelmäßig Einschlafprobleme oder nächtliche Unruhe auf, die die Person größtenteils nicht allein bewältigen kann. Deshalb sind regelmäßige Einschlafrituale und beruhigende Ansprache in der Nacht erforderlich. Überwiegend unselbständig ist auch eine Person, die wegen hochgradiger motorischer Beeinträchtigung regelmäßig in der Nacht personeller Hilfe bedarf, um weiterschlafen zu können, z. B. bei Lagewechsel oder Toilettengängen in der Nacht.","überwiegend unselbständig",{"$f":"Bewertungen!F100","v":0},{"$f":"IF(F11=\"x\",1,0)","v":0},2,{"$f":"G11*H11","v":0}]
[null,null,null,"Die Person verfügt über keinen oder einen gestörten Schlaf-Wach-Rhythmus. Dies gilt u. a. für mobile gerontopsychiatrisch erkrankte Personen und auch für Menschen, die keinerlei Aktivitäten ausüben, z. B. im Wachkoma oder Personen, die regelmäßig mindestens dreimal in der Nacht personelle Unterstützung benötigen.","unselbständig",{"$f":"Bewertungen!G100","v":0},{"$f":"IF(F12=\"x\",1,0)","v":0},3,{"$f":"G12*H12","v":0},{"$f":"SUM(I9:I12)","v":0},null,"Exceldatei erstellt von: "]
[null,"Die verfügbare Zeit nutzen, um Aktivitäten durchzuführen, die den eigenen Vorlieben und Interessen entsprechen: „Verfügbare Zeit“ ist in diesem Zusammenhang definiert als Zeit, die nicht durch Notwendigkeiten wie Ruhen, Schlafen, Essen, Mahlzeitenzubereitung, Körperpflege, Arbeit etc. gebunden ist („freie“ Zeit). Bei der Beurteilung geht es vorrangig um die Fähigkeit nach individuellen kognitiven, manuellen, visuellen oder auditiven Fähigkeiten und Bedürfnissen, geeignete Aktivitäten der Freizeitbeschäftigung auszuwählen und auch praktisch durchzuführen, z. B. Handarbeiten, Basteln, Bücher oder Zeitschriften lesen, Sendungen im Radio oder Fernsehen verfolgen, Computer nutzen. Dies gilt auch für Personen, die Angebote auswählen und steuern können, aber aufgrund somatischer Einschränkungen für die praktische Durchführung personelle Unterstützung benötigen.","6.3 Sich beschäftigen",null,null,null,null,null,null,null,null,"Günther Schwarz, Alzheimer Beratung, Evangelische Gesellschaft, Stuttgart. ©"]
[null,null,null,"Die Person kann die beschriebene Aktivität ohne personelle Hilfe durchführen.","selbständig",{"$f":"Bewertungen!D101","v":0},{"$f":"IF(F14=\"x\",1,0)","v":0},0,{"$f":"G14*H14","v":0}]
[null,null,null,"Es ist nur in geringem Maße Hilfe erforderlich, z. B. Zurechtlegen und Richten von Gegenständen, z. B.: Utensilien wie Bastelmaterial, Fernbedienung, Kopfhörer, o.ä. oder Erinnerung an gewohnte Aktivitäten, Motivation oder Unterstützung bei der Entscheidungsfindung (Vorschläge unterbreiten).","überwiegend selbständig",{"$f":"Bewertungen!E101","v":0},{"$f":"IF(F15=\"x\",1,0)","v":0},1,{"$f":"G15*H15","v":0},null,null,"Anleitung siehe Reiter \"Anleitung\" (unten anklicken)"]
[null,null,null,"Die Person kann sich an Beschäftigungen beteiligen, aber nur mit (kontinuierlicher) Anleitung, Begleitung oder motorische Unterstützung.","überwiegend unselbständig",{"$f":"Bewertungen!F101","v":0},{"$f":"IF(F16=\"x\",1,0)","v":0},2,{"$f":"G16*H16","v":0}]
[null,null,null,"Die Person kann an der Entscheidung oder Durchführung nicht nennenswert mitwirken. Sie zeigt keine Eigeninitiative, kann Anleitung und Aufforderungen nicht kognitiv umsetzen, beteiligt sich nicht oder nur minimal an angebotenen Beschäftigungen.","unselbständig",{"$f":"Bewertungen!G101","v":0},{"$f":"IF(F17=\"x\",1,0)","v":0},3,{"$f":"G17*H17","v":0},{"$f":"SUM(I14:I17)","v":0}]
[null,"Längere Zeitabschnitte überschauend über den Tag hinaus planen: Dies kann beispielsweise anhand der Frage beurteilt werden, ob Vorstellungen oder Wünsche zu anstehenden Festlichkeiten wie Geburtstag oder Jahresfeste bestehen, ob die Zeitabläufe eingeschätzt werden können, z. B. vorgegebene Strukturen wie regelmäßige Termine nachvollzogen werden können oder ob die körperlichen Fähigkeiten vorhanden sind, um eigene Zukunftsplanungen mit anderen Menschen kommunizieren zu können. Es ist auch zu berücksichtigen, wenn stark ausgeprägte psychische Problemlagen (z. B. Ängste) es verhindern, sich mit Fragen des zukünftigen Handelns auseinanderzusetzen.","6.4 Vornehmen von in die Zukunft gerichteten Planungen"]
[null,null,null,"Die Person kann die beschriebene Aktivität ohne personelle Hilfe durchführen.","selbständig",{"$f":"Bewertungen!D102","v":0},{"$f":"IF(F19=\"x\",1,0)","v":0},0,{"$f":"G19*H19","v":0}]
[null,null,null,"Die Person nimmt sich etwas vor, muss aber erinnert werden, dies auch durchzuführen. Oder sie benötigt infolge körperlicher Beeinträchtigungen regelmäßig Hilfe im Bereich der Kommunikation, um sich mit anderen Menschen verabreden zu können.","überwiegend selbständig",{"$f":"Bewertungen!E102","v":0},{"$f":"IF(F20=\"x\",1,0)","v":0},1,{"$f":"G20*H20","v":0}]
[null,null,null,"Die Person plant von sich aus nicht, entscheidet aber mit Unterstützung durch andere Personen. Sie muss an die Umsetzung der eigenen Entscheidungen erinnert werden oder benötigt bei der Umsetzung emotionale oder körperliche Unterstützung. Überwiegend unselbständig ist daher auch eine Person, die zwar kognitiv in der Lage ist, selbständig zu planen und zu entscheiden, die aber so stark somatisch beeinträchtigt ist, dass sie für alle Umsetzungsschritte personelle Hilfe benötigt.","überwiegend unselbständig",{"$f":"Bewertungen!F102","v":0},{"$f":"IF(F21=\"x\",1,0)","v":0},2,{"$f":"G21*H21","v":0}]
[null,null,null,"Die Person verfügt nicht über Zeitvorstellungen für Planungen über den Tag hinaus, auch bei Vorgabe von Auswahloptionen wird weder Zustimmung noch Ablehnung signalisiert.","unselbständig",{"$f":"Bewertungen!G102","v":0},{"$f":"IF(F22=\"x\",1,0)","v":0},3,{"$f":"G22*H22","v":0},{"$f":"SUM(I19:I22)","v":0}]
[null,"Im direkten Kontakt mit Angehörigen, Pflegepersonen, Mitbewohnern oder Besuchern umgehen, Kontakt aufnehmen, Personen ansprechen, auf Ansprache reagieren.","6.5 Interaktion mit Personen im direkten Kontakt"]
[null,null,null,"Die Person kann die beschriebene Aktivität ohne personelle Hilfe durchführen.","selbständig",{"$f":"Bewertungen!D103","v":0},{"$f":"IF(F24=\"x\",1,0)","v":0},0,{"$f":"G24*H24","v":0}]
[null,null,null,"Umgang mit bekannten Personen erfolgt selbständig, zur Kontaktaufnahme mit Fremden ist Unterstützung erforderlich z. B. Anregung, zu einer neuen Mitbewohnerin oder einem neuen Mitbewohner Kontakt aufzunehmen oder punktuelle Unterstützung bei der Überwindung von Sprech-, Sprach- und Hörproblemen.","überwiegend selbständig",{"$f":"Bewertungen!E103","v":0},{"$f":"IF(F25=\"x\",1,0)","v":0},1,{"$f":"G25*H25","v":0}]
[null,null,null,"Die Person ergreift von sich aus kaum Initiative. Sie muss angesprochen oder motiviert werden, reagiert aber verbal oder deutlich erkennbar durch andere Formen der Kommunikation (Blickkontakt, Mimik, Gestik). Überwiegend unselbständig ist auch eine Person, die auf weitgehende Unterstützung bei der Überwindung von Sprech-, Sprach oder Hörproblemen angewiesen ist.","überwiegend unselbständig",{"$f":"Bewertungen!F103","v":0},{"$f":"IF(F26=\"x\",1,0)","v":0},2,{"$f":"G26*H26","v":0}]
[null,null,null,"Die Person reagiert nicht auf Ansprache. Auch nonverbale Kontaktversuche, z. B. Berührungen führen zu keiner nennenswerten Reaktion.","unselbständig",{"$f":"Bewertungen!G103","v":0},{"$f":"IF(F27=\"x\",1,0)","v":0},3,{"$f":"G27*H27","v":0},{"$f":"SUM(I24:I27)","v":0}]
[null,"Bestehende Kontakte zu Freunden, Bekannten, Nachbarn aufrechterhalten, beenden oder zeitweise ablehnen: Dazu gehört auch die Fähigkeit, mit einfachen technischen Kommunikationsmitteln wie Telefon umgehen zu können z. B. Besuche verabreden oder Telefon- oder Brief- oder Mail-Kontakte.","6.6 Kontaktpflege zu Personen außerhalb des direkten Umfeldes"]
[null,null,null,"Die Person kann die beschriebene Aktivität ohne personelle Hilfe durchführen.","selbständig",{"$f":"Bewertungen!D104","v":0},{"$f":"IF(F29=\"x\",1,0)","v":0},0,{"$f":"G29*H29","v":0}]
[null,null,null,"Die Person kann planen, braucht aber Hilfe beim Umsetzen wie z. B. Erinnerungszettel bereitlegen oder Telefonnummern mit Namen oder mit Bild versehen, Erinnern und Nachfragen, ob Kontakt hergestellt wurde, oder Erinnern an Terminabsprachen. Pflegeperson wählt die Telefonnummer, die Person führt dann das Gespräch; oder die Person beauftragt die Pflegeperson, ein Treffen mit Freunden, Bekannten zu verabreden.","überwiegend selbständig",{"$f":"Bewertungen!E104","v":0},{"$f":"IF(F30=\"x\",1,0)","v":0},1,{"$f":"G30*H30","v":0}]
[null,null,null,"Die Kontaktgestaltung der Person ist eher reaktiv. Sie sucht von sich aus kaum Kontakt, wirkt aber mit, wenn beispielsweise die Pflegeperson die Initiative ergreift. Überwiegend unselbständig ist auch, wer aufgrund von somatischen Beeinträchtigungen während der Kontaktaufnahme personelle Unterstützung durch die Bezugsperson, z. B. bei der Nutzung von Kommunikationshilfen (Telefon halten) oder bei der Überwindung von Sprech-, Sprach- oder Hörproblemen benötigt.","überwiegend unselbständig",{"$f":"Bewertungen!F104","v":0},{"$f":"IF(F31=\"x\",1,0)","v":0},2,{"$f":"G31*H31","v":0}]
[null,null,null,"Die Person nimmt keinen Kontakt außerhalb des  direkten Umfeldes auf und reagiert nicht auf Anregungen zur Kontaktaufnahme.","unselbständig",{"$f":"Bewertungen!G104","v":0},{"$f":"IF(F32=\"x\",1,0)","v":0},3,{"$f":"G32*H32","v":0},{"$f":"SUM(I29:I32)","v":0}]

{"sheet":"Druckvorlage","index":12,"n_rows":104,"n_cols":9,"rows_kept":104,"cut":false,"hidden":false,"merged":[[95,2,95,5],[73,6,73,7],[0,2,0,5],[14,2,14,5],[29,2,29,5],[46,2,46,5],[64,6,64,7],[68,2,68,5]]}
[null,null,"Schwellenwerte (wenn erreicht, dann 1-4 Punkte bei gewichteter Punktwert Modul)",null,null,null,"Gewichtungs-faktor",null,"Name / Anschrift"]
[null,null,{"$f":"'M1'!F2","v":2},{"$f":"'M1'!G2","v":4},{"$f":"'M1'!H2","v":6},{"$f":"'M1'!I2","v":10},{"$f":"'M1'!J2","v":2.5}]
[null,"Module / Einschätzungskriterien","Bei jedem Unterpunkt höchstens eine Kategorie ankreuzen (\"x\" eingeben)"]
[null,null,"oder nichts ankreuzen (nichts ankreuzen = selbständig)"]
[null,"1. Mobilität","selbständig","überwiegend selbständig","überwiegend unselbständig","unselbständig"]
[null,"1.1 Positionswechsel im Bett",null,null,null,null,"jew. 0-3",{"$f":"IF(COUNTA(C6:F6)>1,\"Fehler!\",\"\")","v":""},"Notizen"]
[null,"1.2 Halten einer stabilen Sitzposition",null,null,null,null,"Punkte",{"$f":"IF(COUNTA(C7:F7)>1,\"Fehler!\",\"\")","v":""}," "]
[null,"1.3 Umsetzen",null,null,null,null,null,{"$f":"IF(COUNTA(C8:F8)>1,\"Fehler!\",\"\")","v":""}," "]
[null,"1.4 Fortbewegen innerhalb des Wohnbereichs",null,null,null,null,null,{"$f":"IF(COUNTA(C9:F9)>1,\"Fehler!\",\"\")","v":""}," "]
[null,"1.5 Treppensteigen",null,null,null,null,null,{"$f":"IF(COUNTA(C10:F10)>1,\"Fehler!\",\"\")","v":""}," "]
[null,null,null,null,null,null,null,null," "]
[null,"1.6 Besondere Bedarfskonstellation: ","Bei dieser besonderen Bedarfskonstellation wird unabhängig",null,null,null,null,null," "]
[null,"Gebrauchsunfähigkeit beider Arme und beider Beine","vom erreichten Gesamtpunktwert Pflegegrad 5 anerkannt!",null,null,null,null,null," "]
[null,null,null,null,null,null,null,null," "]
[null,null,"Schwellenwerte (wenn erreicht, dann 1-4 Punkte bei gewichteter Punktwert Modul)",null,null,null,"Gewichtung",null," "]
[null,null,{"$f":"'M2'!F2","v":2},{"$f":"'M2'!G2","v":6},{"$f":"'M2'!H2","v":11},{"$f":"'M2'!I2","v":17},{"$f":"'M2'!J2","v":3.75},null," "]
[null,"2. Kognitive und kommunikative Fähigkeiten","vorhanden/unbeeinträchtigt","größtenteils vorhanden","in geringem Maße vorhanden","nicht vorhanden",null,null," "]
[null,"2.1 Erkennen von Personen aus dem näheren Umfeld",null,null,null,null,"jew. 0-3",{"$f":"IF(COUNTA(C18:F18)>1,\"Fehler!\",\"\")","v":""}," "]
[null,"2.2 Örtliche Orientierung",null,null,null,null,"Punkte",""," "]
[null,"2.3 Zeitliche Orientierung",null,null,null,null,null,""," "]
[null,"2.4 Erinnern an wesentliche Ereignisse oder Beobachtungen",null,null,null,null,null,""," "]
[null,"2.5 Steuern von mehrschrittigen Alltagshandlungen",null,null,null,null,null,""," "]
[null,"2.6 Treffen von Entscheidungen im Alltagsleben",null,null,null,null,null,""," "]
[null,"2.7 Verstehen von Sachverhalten und Informationen",null,null,null,null,null,""," "]
[null,"2.8 Erkennen von Risiken und Gefahren",null,null,null,null,null,""," "]
[null,"2.9 Mitteilen von elementaren Bedürfnissen",null,null,null,null,null,""," "]
[null,"2.10 Verstehen von Aufforderungen",null,null,null,null,null,""," "]
[null,"2.11 Beteiligen an einem Gespräch",null,null,null,null,null,""," "]
[null,null,null,null,null,null,null,null," "]
[null,null,"Schwellenwerte (wenn erreicht, dann 1-4 Punkte bei gewichteter Punktwert Modul)",null,null,null,"Gewichtung",null," "]
[null,null,{"$f":"'M3'!F2","v":1},{"$f":"'M3'!G2","v":3},{"$f":"'M3'!H2","v":5},{"$f":"'M3'!I2","v":7},{"$f":"'M3'!J2","v":3.75},null," "]
[null,"3. Verhaltensweisen und psychische Problemlagen","nie","maximal 1x wöchentlich","mehrmals wöchentlich","täglich",null,null," "]
[null,"3.1 Motorisch geprägte Verhaltensauffälligkeiten",null,null,null,null,"jew. 0, 1, 3 ",{"$f":"IF(COUNTA(C33:F33)>1,\"Fehler!\",\"\")","v":""}," "]
[null,"3.2 Nächtliche Unruhe",null,null,null,null,"oder 5",""," "]
[null,"3.3 Selbstschädigendes und autoaggressives Verhalten",null,null,null,null,"Punkte",""," "]
[null,"3.4 Beschädigen von Gegenständen",null,null,null,null,null,""," "]
[null,"3.5 Physisch aggressives Verhalten gegenüber anderen Personen",null,null,null,null,null,""," "]
[null,"3.6 Verbale Aggression",null,null,null,null,null,""," "]
[null,"3.7 Andere pflegerelevante vokale Auffälligkeiten",null,null,null,null,null,""," "]
[null,"3.8 Abwehr pflegerischer oder anderer unterstützender Maßnahmen",null,null,null,null,null,""," "]
[null,"3.9 Wahnvorstellungen",null,null,null,null,null,""," "]
[null,"3.10 Ängste",null,null,null,null,null,""," "]
[null,"3.11 Antriebslosigkeit bei depressiver Stimmungslage",null,null,null,null,null,""," "]
[null,"3.12 Sozial inadäquate Verhaltensweisen",null,null,null,null,null,""," "]
[null,"3.13 Sonstige pflegerelevante inadäquate Handlungen",null,null,null,null,null,""," "]
[null,null,null,null,null,null,null,null," "]
[null,null,"Schwellenwerte (wenn erreicht, dann 1-4 Punkte bei gewichteter Punktwert Modul)",null,null,null,"Gewichtung",null," "]
[null,null,{"$f":"'M4'!F2","v":3},{"$f":"'M4'!G2","v":8},{"$f":"'M4'!H2","v":19},{"$f":"'M4'!I2","v":37},{"$f":"'M4'!J2","v":10},null," "]
[null,"4. Selbstversorgung","selbständig","überwiegend selbständig","überwiegend unselbständig","unselbständig",null,null," "]
[null,"4.1 Waschen des vorderen Oberkörpers",null,null,null,null,"jew. 0-3",{"$f":"IF(COUNTA(C50:F50)>1,\"Fehler!\",\"\")","v":""}," "]
[null,"4.2 Körperpflege im Bereich des Kopfes",null,null,null,null,"Punkte",""," "]
[null,"4.3 Waschen des Intimbereichs",null,null,null,null,null,""," "]
[null,"4.4 Duschen und Baden einschließlich Waschen der Haare",null,null,null,null,null,""," "]
[null,"4.5 An- und Auskleiden des Oberkörpers",null,null,null,null,null,""," "]
[null,"4.6 An- und Auskleiden des Unterkörpers",null,null,null,null,null,""," "]
[null,"4.7 Mundgerechtes Zubereiten der Nahrung und Eingießen von Getränken",null,null,null,null,null,""," "]
[null,"4.8 Essen (dreifach gewichtet!)",null,null,null,null,"0-9 Punkte",""," "]
[null,"4.9 Trinken (doppelt gewichtet!)",null,null,null,null,"0-6 Punkte",""," "]
[null,"4.10 Benutzen einer Toilette oder eines Toilettenstuhls (doppelt gewichtet!)",null,null,null,null,"0-6 Punkte",""," "]
[null,null,"entfällt","selbständig","überwiegend selbständig","überwiegend unselbständig","unselbständig",null," "]
[null,"4.11 Bewältigen der Folgen einer Harninkontinenz und Umgang mit Dauerkatheter und Urostoma\n",null,null,null,null,null,{"$f":"IF(COUNTA(C61:G61)>1,\"Fehler!\",\"\")","v":""}," "]
[null,"4.12 Bewältigen der Folgen einer Stuhlinkontinenz und Umgang  mit Stoma",null,null,null,null,null,{"$f":"IF(COUNTA(C62:G62)>1,\"Fehler!\",\"\")","v":""}," "]
[null,"Achtung: Frage 4.11 und 4.12 entfällt, wenn überwiegend oder ständig kontinent.",null,null,null,null,null,null," "]
[null,"(siehe Erläuterung im hellblauen Feld links)",null,null,null,null,null,null," "]
[null,null,"entfällt","ohne Hilfe: selbständig","mit Hilfe: nicht täglich, nicht auf Dauer \n(0 Punkte)","mit Hilfe: täglich, zusätzlich zu oraler Ernährung \n(6 Punkte)","mit Hilfe: ausschließlich oder nahezu ausschließlich \n(3 Punkte)",null," "]
[null,"4.13 Ernährung parenteral oder über Sonde",null,null,null,null,null,{"$f":"IF(COUNTA(C66:G66)>1,\"Fehler!\",\"\")","v":""}," "]
[null,null,null,null,null,null,"weniger Punkte bei ",null," "]
[null,null,null,null,null,null,"\"ausschließlich\"!",null," "]
[null,null,"Schwellenwerte (wenn erreicht, dann 1-4 Punkte bei gewichteter Punktwert Modul)",null,null,null,"Gewichtung",null," "]
[null,null,{"$f":"'M5'!F2","v":1},{"$f":"'M5'!G2","v":2},{"$f":"'M5'!H2","v":4},{"$f":"'M5'!I2","v":6},{"$f":"'M5'!J2","v":5},null," "]
[null,"Achtung: Hier sind nur Angaben zu ärztlich angeordneten Maßnahmen zu machen, wenn die Hilfe einer ",null,null,null,null,null,null," "]
[null,"anderen Person gebraucht wird und die Aktivitäten voraussichtlich länger als 6 Monate erforderlich sind. ",null,null,null,null,null,null," "]
[null,"Bei jeder Aktivität nur eine Häufigkeitsangabe machen. Dazu eine ganze Zahl eingeben (1, 2, 3, …..)",null,null,null,null,null,null," "]
[null,"5. Umgang mit krankheits- / therapiebedingten Anforderungen und Belastungen","entfällt oder selbständig","wie oft monatlich","wie oft wöchentlich","wie oft täglich","hier werden jeweils Gruppen von Kriterien zu einem Wert zusammengefasst",null," "]
[null,"5.1 Medikation",null,null,null,null,null,{"$f":"IF(COUNTA(C75:F75)>1,\"Fehler!\",\"\")","v":""}," "]
[null,"5.2 Injektionen",null,null,null,null,null,""," "]
[null,"5.3 Versorgung intravenöser Zugänge (z. B. Port)",null,null,null,null,null,""," "]
[null,"5.4 Absaugen oder Sauerstoffgabe",null,null,null,null,null,""," "]
[null,"5.5 Einreibungen sowie Kälte- und Wärmeanwendungen",null,null,null,null,null,""," "]
[null,"5.6 Messung und Deutung von Körperzuständen",null,null,null,null,null,""," "]
[null,"5.7 Körpernahe Hilfsmittel",null,null,null,null,null,""," "]
[null,"5.8 Verbandwechsel und Wundversorgung",null,null,null,null,null,""," "]
[null,"5.9 Versorgung mit Stoma",null,null,null,null,null,""," "]
[null,"5.10 Regelmäßige Einmalkatheterisierung und Nutzung von Abführmethoden",null,null,null,null,null,""," "]
[null,"5.11 Therapiemaßnahmen in häuslicher Umgebung",null,null,null,null,null,""," "]
[null,null,"entfällt oder selbständig","wie oft monatlich\n(je 2 Punkte)","wie oft wöchentlich\n(je 8,6 Pkt.)","täglich (ggf. \"x\" eingeben)\n(je 60 Pkt.)",null,null," "]
[null,"5.12 Zeit- und technikintensive Maßnahmen in häuslicher Umgebung",null,null,null,null,null,{"$f":"IF(COUNTA(C87:F87)>1,\"Fehler!\",\"\")","v":""}," "]
[null,null,"entfällt oder selbständig","wie oft monatlich\n(je 1 Punkt)","wie oft wöchentlich\n(je 4,3 Pkt.)",null,null,null," "]
[null,"5.13 Arztbesuche",null,null,null,null,null,{"$f":"IF(COUNTA(C89:E89)>1,\"Fehler!\",\"\")","v":""}," "]
[null,"5.14 Besuche anderer medizinischer oder therapeutischer Einrichtungen (bis zu 3 Stunden)",null,null,null,null,null,{"$f":"IF(COUNTA(C90:E90)>1,\"Fehler!\",\"\")","v":""}," "]
[null,null,"entfällt oder selbständig","wie oft monatlich\n(je 2 Punkte)","wie oft wöchentlich\n(je 8,6 Pkt.)",null,null,null," "]
[null,"5.15 Zeitlich ausgedehnter Besuch medizinischer oder therapeut. Einrichtungen (länger als 3 Std.)",null,null,null,null,null,""," "]
[null,"ab hier bitte wieder ggf. \"x\" eingeben","selbständig","überwiegend selbständig","überwiegend unselbständig","unselbständig",null,null," "]
[null,"5.16 Einhalten einer Diät oder anderer krankheits- oder therapiebedingter Verhaltensvorschriften",null,null,null,null,null,{"$f":"IF(COUNTA(C94:F94)>1,\"Fehler!\",\"\")","v":""}," "]
[null,null,null,null,null,null,null,null," "]
[null,null,"Schwellenwerte (wenn erreicht, dann 1-4 Punkte bei gewichteter Punktwert Modul)",null,null,null,"Gewichtung",null," "]
[null,null,{"$f":"'M6'!F2","v":1},{"$f":"'M6'!G2","v":4},{"$f":"'M6'!H2","v":7},{"$f":"'M6'!I2","v":12},{"$f":"'M6'!J2","v":3.75},null," "]
[null,"6. Gestaltung des Alltagslebens und sozialer Kontakte","selbständig","überwiegend selbständig","überwiegend unselbständig","unselbständig",null,null," "]
[null,"6.1 Gestaltung des Tagesablaufs und Anpassung an Veränderungen",null,null,null,null,"jew. 0-3",{"$f":"IF(COUNTA(C99:F99)>1,\"Fehler!\",\"\")","v":""}," "]
[null,"6.2 Ruhen und Schlafen",null,null,null,null,"Punkte",""," "]
[null,"6.3 Sich beschäftigen",null,null,null,null,null,""," "]
[null,"6.4 Vornehmen von in die Zukunft gerichteten Planungen",null,null,null,null,null,""," "]
[null,"6.5 Interaktion mit Personen im direkten Kontakt",null,null,null,null,null,""," "]
[null,"6.6 Kontaktpflege zu Personen außerhalb des direkten Umfeldes",null,null,null,null,null,""," "]